Workbook

Sheet Examples (hidden)
B2: IPART colour codes for models, spreadsheets and information requests
B3: NB ALWAYS DESCRIBE THE COLOUR CODE USED IN YOUR MODEL
B4: Note: If you use the formats for the inputs provided in this template, input cells will always be unprotected even when you protect the worksheet
H5: use this column cell to "paint" input cells for numbers (NOT for percentages)
I6: use this column cell to "paint" input cells for percentages (NOT numbers)
B7: Models and spreadsheets
G8: numbers | H8: %
B9: Inputs | G9: 4232 | H9: 0.08
B10: Inputs with default values, default values are shown in italics next to or below | G10: 34345 | H10: 0.08
B11: Hard-coded values used that should not be changed, eg credit ratings or '1' at the start of an index series.
B12: Key outputs
B13: Links from other files (green)
B14: Error check (check =0)
B15: Error warnings, messages and unusual calculation assumptions
B16: Indicate change in formula across row with a double red line
B17: Note: You can combine options for inputs, eg: | E17: Inputs can be links to other files
E18: You can drawn attention to unusual inputs
H20: use this column cell to "paint" input cells for numbers (NOT for percentages)
B21: Information Requests | I21: use this column cell to "paint" input cells for percentages (NOT numbers)
G22: numbers | H22: %
B23: Inputs for historical years (actual values) | G23: 234 | H23: 0.24
B24: Forecast inputs | G24: 6667 | H24: 0.05
B25: Error warnings and messages
B26: Error check (check =0)
B28: QA notes - annotation or documenation by QA staff
A31: User Instructions - IPART CHARTS
B33: Blue | C33: Mid Grey | D33: Pale Blue | E33: Green | F33: Charcoal | G33: Orange | H33: Purple | I33: Pink | L33: Blue | M33: Mid Grey | N33: Pale Blue | O33: Green | P33: Charcoal | Q33: Orange | S33: X value | T33: 1st Y value | U33: 2nd Y value | X33: Black | Y33: Red 100% | Z33: Red 70% | AA33: Grey 40%
A34: 1975-76 | B34: 36.19 | C34: 36.88 | D34: 21.56 | E34: 5.36 | F34: 3.01 | G34: 10 | H34: 3.01 | I34: 10 | K34: 1975-76 | L34: 33.19 | M34: 36.88 | N34: 21.56 | O34: 5.36 | P34: 3.01 | Q34: 10 | S34: 1.8 | T34: 10 | U34: 17 | W34: 1975-76 | X34: 33.19 | Y34: 36.88 | Z34: 21.56 | AA34: 5.36
A35: 1983-84 | B35: 39.39 | C35: 32.02 | D35: 21.6 | E35: 7.01 | F35: 3.36 | G35: 12 | H35: 3.36 | I35: 12 | K35: 1983-84 | L35: 39.39 | M35: 32.02 | N35: 21.6 | O35: 7.01 | P35: 3.36 | Q35: 12 | S35: 2.3 | T35: 12 | U35: 9 | W35: 1983-84 | X35: 39.39 | Y35: 32.02 | Z35: 21.6 | AA35: 7.01
A36: 1988-89 | B36: 42.78 | C36: 29.91 | D36: 18.35 | E36: 6.33 | F36: 2.63 | G36: 14 | H36: 2.63 | I36: 14 | K36: 1988-89 | L36: 42.78 | M36: 29.91 | N36: 18.35 | O36: 6.33 | P36: 2.63 | Q36: 14 | S36: 3.7 | T36: 16 | U36: 14 | W36: 1988-89 | X36: 42.78 | Y36: 29.91 | Z36: 18.35 | AA36: 6.33
A37: 1993-94 | B37: 42.13 | C37: 26.53 | D37: 21.6 | E37: 7.01 | F37: 2.72 | G37: 16 | H37: 2.72 | I37: 16 | K37: 1993-94 | L37: 42.13 | M37: 26.53 | N37: 21.6 | O37: 7.01 | P37: 2.72 | Q37: 16 | S37: 4.1 | T37: 8 | U37: 23 | W37: 1993-94 | X37: 42.13 | Y37: 26.53 | Z37: 21.6 | AA37: 7.01
A38: 1996-97 | B38: 41.69 | C38: 24.76 | D38: 23.98 | E38: 7 | F38: 2.57 | G38: 18 | H38: 2.57 | I38: 18 | K38: 1996-97 | L38: 41.69 | M38: 24.76 | N38: 23.98 | O38: 7 | P38: 2.57 | Q38: 18 | S38: 5.5 | T38: 14 | U38: 27 | W38: 1996-97 | X38: 41.69 | Y38: 24.76 | Z38: 23.98 | AA38: 7
A39: 1997-98 | B39: 39.39 | C39: 32.02 | D39: 21.6 | E39: 7.01 | F39: 3.36 | G39: 12 | H39: 3.36 | I39: 12 | K39: 1997-98 | L39: 39.39 | M39: 32.02 | N39: 21.6 | O39: 7.01 | P39: 3.36 | Q39: 12 | W39: 1997-98 | X39: 39.39 | Y39: 32.02 | Z39: 21.6 | AA39: 7.01
A40: 1998-99 | B40: 42.13 | C40: 26.53 | D40: 21.6 | E40: 7.01 | F40: 2.72 | G40: 16 | H40: 2.72 | I40: 16 | K40: 1998-99 | L40: 42.13 | M40: 26.53 | N40: 21.6 | O40: 7.01 | P40: 2.72 | Q40: 16 | W40: 1998-99 | X40: 42.13 | Y40: 26.53 | Z40: 21.6 | AA40: 7.01
A41: 1999-00 | B41: 45 | C41: 22 | D41: 26 | E41: 8 | F41: 2 | G41: 20 | H41: 2 | I41: 20 | K41: 1999-00 | L41: 45 | M41: 22 | N41: 26 | O41: 8 | P41: 2 | Q41: 20 | W41: 1999-00 | X41: 45 | Y41: 22 | Z41: 26 | AA41: 8
A42: – en rule for when needed

Sheet QA Scope (hidden)
B2: Review that the QA is for
B3: Name of model | E3: =#REF! -> 
B4: File name(s):
B8: Name of modeller
B9: Planned date of QA:
B10: Risk rating for the review:
B11: Note: low risk models do not require independent QA, however the modeller should indicate in section 2.3 what steps have been taken to ensure accuracy of results.
B13: 1. PURPOSE OF MODEL
B14: The modeller provides a concise summary of the model's purpose(s)
B15: Calculates the rate peg and population factors. For more information see 'Overview & instructions' worksheet
B21: 2. CONTEXT AND SCOPE OF QA
B22: The modeller provides information about the context of the QA and the scope of work. | I22: DO NOT DELETE
I23: Yes
B24: 2.1 The model/spreadsheet is for (context) | I24: No
I25: NA
I27: High
I28: Medium
I29: Low
I30: select
B36: 2.2 The scope of the QA is to check
C38: Logic checks | F38: Input checks
B52: * provide details of requirements for "simplified duplication of analysis" and/or "sampling of inputs" in section 2.3 below.
B55: 2.3 Detailed scope of QA
B56: Specify clearly how to identify what needs to be checked (e.g. "check all calculations and inputs highlighted in green on the following worksheets: …")
B57: For "simplified duplications of analysis" (if applicable), specify how you and the QAer have agreed the analysis will be duplicated
B58: For "sampling of inputs" (if applicable), specify how you and the QAer have agreed the inputs will be sampled
B76: 3. QA CHECK LIST
B78: 3.1 Pre-QA check list (for both medium and high risk QAs)
C80: Select an option
C82: No | D82: Is the model consistent with good modelling practice?
C83: No | D83: Tables, inputs and outputs are clearly labelled, e.g.:
D84: – Units e.g. $m, $’000, $ or cents, kL, MWh, GJ, etc
D85: – Nominal or real
D86: – Including or excluding GST
C87: No | D87: The QAer can easily identify the parts of the model that need to be checked
C88: No | D88: The model inputs reflect Tribunal decisions or information from the source documents or related models
C89: No | D89: The source documents (or references) have all been located and provided to the QAer/s
C91: No | D91: Has the QA scope been reviewed by the Chief Modeller? (Only applicable for external models and high risk price determinations)
B94: 3.2 QA check list (for RStudio scripts only)
C96: NA | D96: Code was rerun successfully; or an alternative calculation successfully replicated results
C97: NA | D97: Code is easy to follow, with comments highlighting different sections in code
C98: NA | D98: Variable names are easy to understand
C99: NA | D99: Test variables are used to check that data is not duplicated or excluded in error when joining data sources
C100: NA | D100: If this QA is an update to an existing RStudio script, changes are highlighted and easy to find (e.g. a text comparison tool is used to compare scripts before and after change)
B103: 4 INDUSTRY TEAM REMINDER – POST QA SIGN OFF IN CM9
B105: Has the post-QA deliverable been CM9ed?
B106: Has the QA been signed off via action tracking in CM9 by the QA analyst and Director?

Sheet QA log (hidden)
B2: DETAILS OF ISSUES FOUND IN THE QA
B3: Item no. | C3: Date checked (Month and Year) | D3: QAed by | E3: What is the issue? | F3: Category | G3: Where in model? | H3: Where … continued (optional) | I3: Responses by industry team /model developer (industry team should prioritise red cells, i.e. calculation or data errors) | J3: QA signoff
C4: Required only if QA is staggered over along period | D4: required only if there is more than one QAer | F4: Select the type of issue from the drop-down box (see notes in column N) | G4: e.g. worksheet(s), and rows/columns, or table numbers. May refer to highlighted areas in worksheet(s) | H4: Optional 2nd column, e.g. with cell reference area in (or link to) relevant worksheet | I4: Changed / not changed & reason | M4: Categories for drop-down box. DO NOT DELETE | N4: Notes on when to use the categories
B5: 1 | F5: Calculation or data error | M5: Calculation or data error | N5: The formula logical is flawed, contains a cell reference error or contains another error (e.g. bracket is in the wrong place), or there is a data input problem
B6: =B5+1 -> 2 | F6: Documentation, formatting or structure | M6: Documentation, formatting or structure | N6: Model is not structured efficiently, not consistent with IPART colour coding and formatting, or there is a labelling issue
B7: =B6+1 -> 3
B8: 4
B9: 5
B10: 6
B11: 7
B12: 8
B13: 9
B14: 10
B15: 11
B16: 12
B17: 13
B18: 14
B19: 15
B20: 16
B21: 17
B22: 18
B23: 19
B24: 20
B25: 21
B26: 22
B27: 23
B28: 24
B29: 25
B30: 26
B31: 27
B32: 28
B33: 29
B34: 30
B35: END OF LOG
B36: IF A LONGER LOG IS REQUIRED, INSERT NEW ROWS ABOVE ITEM 29 AND REDO THE NUMBERING

Sheet timing (hidden)
B3: Timing for population factor
B5: Rate peg on 1 July | E5: 2022 | F5: =E5+1 -> 2023 | G5: 2024 | H5: 2025 | I5: 2026 | J5: 2027 | K5: 2028 | L5: 2029
B6: FY | E6: =E5&"-"&RIGHT(F5,2) -> 2022-23 | F6: 2023-24 | G6: 2024-25 | H6: 2025-26 | I6: 2026-27 | J6: 2027-28 | K6: 2028-29
B8: ABS release dates
B9: Regional population, 2019-20 | C9: March 2021 | E9: to 30 June 2020
B10: Regional population, 2020-21 | C10: March 2022 | F10: to June 2021 | G10: Initial census release date Oct 2022 - updated 2020-21 ERP?
B11: Census - 2021-22 | C11: early to mid 2023 | G11: as at Aug 2021 | M11: https://www.abs.gov.au/census/2021-data-releases
B12: Regional population, 2022-23 | C12: March 2024 | H12: to June 2023
B13: Regional population, 2023-24 | C13: March 2025 | I13: to June 2024
B14: Regional population, 2024-25 | C14: March 2026 | J14: to June 2025
B15: Regional population, 2025-26 | C15: March 2027 | K15: to June 2026
B19: Supp val for year | E19: 2019-20 | F19: 2020-21 | G19: 2021-22 | H19: 2022-23 | I19: 2023-24 | J19: 2024-25 | K19: 2025-26

Sheet Rate Peg
B2: Population factors and final Rate Peg for 2022-23
B4: Rate peg before population factor | D4: 0.007
B5: Rate peg from 1 July | D5: 2022
B13: ='Supp val'!B7 -> Org. Id | C13: Council | D13: Change in population | E13: Supplementary valuations percentage | G13: Population factor | H13: Rate Peg (including population factor)
B14: =Names!I7 -> 2047 | C14: =Names!F7 -> Albury | D14: =IF($D$5='Pop calcs'!$D$3,'Pop calcs'!F11,IF($D$5='Pop calcs'!#REF!,'Pop calcs'!#REF!,"'")) -> 0.01308332107 | E14: =IF($D$5='Pop calcs'!$D$3,'Pop calcs'!I11,IF($D$5='Pop calcs'!#REF!,'Pop calcs'!#REF!,"'")) -> 0.009016487951 | G14: =IFERROR(MAX(0,ROUND(D14-E14,3)),0) -> 0.004 | H14: =ROUND($D$4+G14,3) -> 0.011
B15: =Names!I8 -> 2079 | C15: =Names!F8 -> Armidale Regional | D15: =IF($D$5='Pop calcs'!$D$3,'Pop calcs'!F12,IF($D$5='Pop calcs'!#REF!,'Pop calcs'!#REF!,"'")) -> 0 | E15: =IF($D$5='Pop calcs'!$D$3,'Pop calcs'!I12,IF($D$5='Pop calcs'!#REF!,'Pop calcs'!#REF!,"'")) -> 0.001117853721 | G15: =IFERROR(MAX(0,ROUND(D15-E15,3)),0) -> 0 | H15: =ROUND($D$4+G15,3) -> 0.007
B16: =Names!I9 -> 54 | C16: =Names!F9 -> Ballina | D16: =IF($D$5='Pop calcs'!$D$3,'Pop calcs'!F13,IF($D$5='Pop calcs'!#REF!,'Pop calcs'!#REF!,"'")) -> 0.01333422975 | E16: =IF($D$5='Pop calcs'!$D$3,'Pop calcs'!I13,IF($D$5='Pop calcs'!#REF!,'Pop calcs'!#REF!,"'")) -> 0.02043401855 | G16: 0 | H16: 0.007
B17: =Names!I10 -> 55 | C17: =Names!F10 -> Balranald | D17: =IF($D$5='Pop calcs'!$D$3,'Pop calcs'!F14,IF($D$5='Pop calcs'!#REF!,'Pop calcs'!#REF!,"'")) -> 0 | E17: =IF($D$5='Pop calcs'!$D$3,'Pop calcs'!I14,IF($D$5='Pop calcs'!#REF!,'Pop calcs'!#REF!,"'")) -> 0.008366533865 | G17: 0 | H17: 0.007
B18: =Names!I11 -> 2043 | C18: =Names!F11 -> Bathurst Regional | D18: =IF($D$5='Pop calcs'!$D$3,'Pop calcs'!F15,IF($D$5='Pop calcs'!#REF!,'Pop calcs'!#REF!,"'")) -> 0.008804916078 | E18: =IF($D$5='Pop calcs'!$D$3,'Pop calcs'!I15,IF($D$5='Pop calcs'!#REF!,'Pop calcs'!#REF!,"'")) -> 0.007049930954 | G18: 0.002 | H18: 0.009
B19: =Names!I12 -> 2099 | C19: =Names!F12 -> Bayside | D19: =IF($D$5='Pop calcs'!$D$3,'Pop calcs'!F16,IF($D$5='Pop calcs'!#REF!,'Pop calcs'!#REF!,"'")) -> 0.01749920101 | E19: =IF($D$5='Pop calcs'!$D$3,'Pop calcs'!I16,IF($D$5='Pop calcs'!#REF!,'Pop calcs'!#REF!,"'")) -> 0.008905335515 | G19: 0.009 | H19: 0.016
B20: =Names!I13 -> 60 | C20: =Names!F13 -> Bega Valley | D20: =IF($D$5='Pop calcs'!$D$3,'Pop calcs'!F17,IF($D$5='Pop calcs'!#REF!,'Pop calcs'!#REF!,"'")) -> 0.007368085168 | E20: =IF($D$5='Pop calcs'!$D$3,'Pop calcs'!I17,IF($D$5='Pop calcs'!#REF!,'Pop calcs'!#REF!,"'")) -> 0.009257354454 | G20: 0 | H20: 0.007
B21: =Names!I14 -> 61 | C21: =Names!F14 -> Bellingen | D21: =IF($D$5='Pop calcs'!$D$3,'Pop calcs'!F18,IF($D$5='Pop calcs'!#REF!,'Pop calcs'!#REF!,"'")) -> 0.01139074886 | E21: =IF($D$5='Pop calcs'!$D$3,'Pop calcs'!I18,IF($D$5='Pop calcs'!#REF!,'Pop calcs'!#REF!,"'")) -> 0.005437409377 | G21: 0.006 | H21: 0.013
B22: =Names!I15 -> 62 | C22: =Names!F15 -> Berrigan | D22: =IF($D$5='Pop calcs'!$D$3,'Pop calcs'!F19,IF($D$5='Pop calcs'!#REF!,'Pop calcs'!#REF!,"'")) -> 0.003885714286 | E22: =IF($D$5='Pop calcs'!$D$3,'Pop calcs'!I19,IF($D$5='Pop calcs'!#REF!,'Pop calcs'!#REF!,"'")) -> 0.002263296869 | G22: 0.002 | H22: 0.009
B23: =Names!I16 -> 64 | C23: =Names!F16 -> Blacktown | D23: =IF($D$5='Pop calcs'!$D$3,'Pop calcs'!F20,IF($D$5='Pop calcs'!#REF!,'Pop calcs'!#REF!,"'")) -> 0.02259517272 | E23: =IF($D$5='Pop calcs'!$D$3,'Pop calcs'!I20,IF($D$5='Pop calcs'!#REF!,'Pop calcs'!#REF!,"'")) -> 0.0228018597 | G23: 0 | H23: 0.007
B24: =Names!I17 -> 65 | C24: =Names!F17 -> Bland | D24: =IF($D$5='Pop calcs'!$D$3,'Pop calcs'!F21,IF($D$5='Pop calcs'!#REF!,'Pop calcs'!#REF!,"'")) -> 0 | E24: =IF($D$5='Pop calcs'!$D$3,'Pop calcs'!I21,IF($D$5='Pop calcs'!#REF!,'Pop calcs'!#REF!,"'")) -> 0.000596925832 | G24: 0 | H24: 0.007
B25: =Names!I18 -> 66 | C25: =Names!F18 -> Blayney | D25: =IF($D$5='Pop calcs'!$D$3,'Pop calcs'!F22,IF($D$5='Pop calcs'!#REF!,'Pop calcs'!#REF!,"'")) -> 0.0005421523448 | E25: =IF($D$5='Pop calcs'!$D$3,'Pop calcs'!I22,IF($D$5='Pop calcs'!#REF!,'Pop calcs'!#REF!,"'")) -> 0.0003386769022 | G25: 0 | H25: 0.007
B26: =Names!I19 -> 67 | C26: =Names!F19 -> Blue Mountains | D26: =IF($D$5='Pop calcs'!$D$3,'Pop calcs'!F23,IF($D$5='Pop calcs'!#REF!,'Pop calcs'!#REF!,"'")) -> 0.00109976235 | E26: =IF($D$5='Pop calcs'!$D$3,'Pop calcs'!I23,IF($D$5='Pop calcs'!#REF!,'Pop calcs'!#REF!,"'")) -> 0.0002296672695 | G26: 0.001 | H26: 0.008
B27: =Names!I20 -> 68 | C27: =Names!F20 -> Bogan | D27: =IF($D$5='Pop calcs'!$D$3,'Pop calcs'!F24,IF($D$5='Pop calcs'!#REF!,'Pop calcs'!#REF!,"'")) -> 0 | E27: =IF($D$5='Pop calcs'!$D$3,'Pop calcs'!I24,IF($D$5='Pop calcs'!#REF!,'Pop calcs'!#REF!,"'")) -> 0.02849296258 | G27: 0 | H27: 0.007
B28: =Names!I21 -> 72 | C28: =Names!F21 -> Bourke | D28: =IF($D$5='Pop calcs'!$D$3,'Pop calcs'!F25,IF($D$5='Pop calcs'!#REF!,'Pop calcs'!#REF!,"'")) -> 0.01351351351 | E28: =IF($D$5='Pop calcs'!$D$3,'Pop calcs'!I25,IF($D$5='Pop calcs'!#REF!,'Pop calcs'!#REF!,"'")) -> 0 | G28: 0.014 | H28: 0.021
B29: =Names!I22 -> 73 | C29: =Names!F22 -> Brewarrina | D29: =IF($D$5='Pop calcs'!$D$3,'Pop calcs'!F26,IF($D$5='Pop calcs'!#REF!,'Pop calcs'!#REF!,"'")) -> 0 | E29: =IF($D$5='Pop calcs'!$D$3,'Pop calcs'!I26,IF($D$5='Pop calcs'!#REF!,'Pop calcs'!#REF!,"'")) -> 0 | G29: 0 | H29: 0.007
B30: =Names!I23 -> 74 | C30: =Names!F23 -> Broken Hill | D30: =IF($D$5='Pop calcs'!$D$3,'Pop calcs'!F27,IF($D$5='Pop calcs'!#REF!,'Pop calcs'!#REF!,"'")) -> 0 | E30: =IF($D$5='Pop calcs'!$D$3,'Pop calcs'!I27,IF($D$5='Pop calcs'!#REF!,'Pop calcs'!#REF!,"'")) -> 0.005633267928 | G30: 0 | H30: 0.007
B31: =Names!I24 -> 75 | C31: =Names!F24 -> Burwood | D31: =IF($D$5='Pop calcs'!$D$3,'Pop calcs'!F28,IF($D$5='Pop calcs'!#REF!,'Pop calcs'!#REF!,"'")) -> 0.006650901567 | E31: =IF($D$5='Pop calcs'!$D$3,'Pop calcs'!I28,IF($D$5='Pop calcs'!#REF!,'Pop calcs'!#REF!,"'")) -> 0.03570092681 | G31: 0 | H31: 0.007
B32: =Names!I25 -> 76 | C32: =Names!F25 -> Byron | D32: =IF($D$5='Pop calcs'!$D$3,'Pop calcs'!F29,IF($D$5='Pop calcs'!#REF!,'Pop calcs'!#REF!,"'")) -> 0.01990021383 | E32: =IF($D$5='Pop calcs'!$D$3,'Pop calcs'!I29,IF($D$5='Pop calcs'!#REF!,'Pop calcs'!#REF!,"'")) -> 0.003826325117 | G32: 0.016 | H32: 0.023
B33: =Names!I26 -> 77 | C33: =Names!F26 -> Cabonne | D33: =IF($D$5='Pop calcs'!$D$3,'Pop calcs'!F30,IF($D$5='Pop calcs'!#REF!,'Pop calcs'!#REF!,"'")) -> 0.003301056338 | E33: =IF($D$5='Pop calcs'!$D$3,'Pop calcs'!I30,IF($D$5='Pop calcs'!#REF!,'Pop calcs'!#REF!,"'")) -> 0.001247840276 | G33: 0.002 | H33: 0.009
B34: =Names!I27 -> 78 | C34: =Names!F27 -> Camden | D34: =IF($D$5='Pop calcs'!$D$3,'Pop calcs'!F31,IF($D$5='Pop calcs'!#REF!,'Pop calcs'!#REF!,"'")) -> 0.06296588444 | E34: =IF($D$5='Pop calcs'!$D$3,'Pop calcs'!I31,IF($D$5='Pop calcs'!#REF!,'Pop calcs'!#REF!,"'")) -> 0.02034654315 | G34: 0.043 | H34: 0.05
B35: =Names!I28 -> 79 | C35: =Names!F28 -> Campbelltown | D35: =IF($D$5='Pop calcs'!$D$3,'Pop calcs'!F32,IF($D$5='Pop calcs'!#REF!,'Pop calcs'!#REF!,"'")) -> 0.01852415278 | E35: =IF($D$5='Pop calcs'!$D$3,'Pop calcs'!I32,IF($D$5='Pop calcs'!#REF!,'Pop calcs'!#REF!,"'")) -> 0.01331440494 | G35: 0.005 | H35: 0.012
B36: =Names!I29 -> 1989 | C36: =Names!F29 -> Canada Bay | D36: =IF($D$5='Pop calcs'!$D$3,'Pop calcs'!F33,IF($D$5='Pop calcs'!#REF!,'Pop calcs'!#REF!,"'")) -> 0.005551100326 | E36: =IF($D$5='Pop calcs'!$D$3,'Pop calcs'!I33,IF($D$5='Pop calcs'!#REF!,'Pop calcs'!#REF!,"'")) -> 0.0008797285409 | G36: 0.005 | H36: 0.012
B37: =Names!I30 -> 2080 | C37: =Names!F30 -> Canterbury-Bankstown | D37: =IF($D$5='Pop calcs'!$D$3,'Pop calcs'!F34,IF($D$5='Pop calcs'!#REF!,'Pop calcs'!#REF!,"'")) -> 0.006801892885 | E37: =IF($D$5='Pop calcs'!$D$3,'Pop calcs'!I34,IF($D$5='Pop calcs'!#REF!,'Pop calcs'!#REF!,"'")) -> 0.005531038889 | G37: 0.001 | H37: 0.008
B38: =Names!I31 -> 81 | C38: =Names!F31 -> Carrathool | D38: =IF($D$5='Pop calcs'!$D$3,'Pop calcs'!F35,IF($D$5='Pop calcs'!#REF!,'Pop calcs'!#REF!,"'")) -> 0 | E38: =IF($D$5='Pop calcs'!$D$3,'Pop calcs'!I35,IF($D$5='Pop calcs'!#REF!,'Pop calcs'!#REF!,"'")) -> 0 | G38: 0 | H38: 0.007
B39: =Names!I32 -> 2088 | C39: =Names!F32 -> Central Coast | D39: =IF($D$5='Pop calcs'!$D$3,'Pop calcs'!F36,IF($D$5='Pop calcs'!#REF!,'Pop calcs'!#REF!,"'")) -> 0.005486709196 | E39: =IF($D$5='Pop calcs'!$D$3,'Pop calcs'!I36,IF($D$5='Pop calcs'!#REF!,'Pop calcs'!#REF!,"'")) -> 0.00256885469 | G39: 0.003 | H39: 0.01
B40: =Names!I33 -> 83 | C40: =Names!F33 -> Central Darling | D40: =IF($D$5='Pop calcs'!$D$3,'Pop calcs'!F37,IF($D$5='Pop calcs'!#REF!,'Pop calcs'!#REF!,"'")) -> 0 | E40: =IF($D$5='Pop calcs'!$D$3,'Pop calcs'!I37,IF($D$5='Pop calcs'!#REF!,'Pop calcs'!#REF!,"'")) -> 0 | G40: 0 | H40: 0.007
B41: =Names!I34 -> 84 | C41: =Names!F34 -> Cessnock | D41: =IF($D$5='Pop calcs'!$D$3,'Pop calcs'!F38,IF($D$5='Pop calcs'!#REF!,'Pop calcs'!#REF!,"'")) -> 0.02130781286 | E41: =IF($D$5='Pop calcs'!$D$3,'Pop calcs'!I38,IF($D$5='Pop calcs'!#REF!,'Pop calcs'!#REF!,"'")) -> 0.02112532491 | G41: 0 | H41: 0.007
B42: =Names!I35 -> 2037 | C42: =Names!F35 -> Clarence Valley | D42: =IF($D$5='Pop calcs'!$D$3,'Pop calcs'!F39,IF($D$5='Pop calcs'!#REF!,'Pop calcs'!#REF!,"'")) -> 0.001432553818 | E42: =IF($D$5='Pop calcs'!$D$3,'Pop calcs'!I39,IF($D$5='Pop calcs'!#REF!,'Pop calcs'!#REF!,"'")) -> 0.008188666885 | G42: 0 | H42: 0.007
B43: =Names!I36 -> 85 | C43: =Names!F36 -> Cobar | D43: =IF($D$5='Pop calcs'!$D$3,'Pop calcs'!F40,IF($D$5='Pop calcs'!#REF!,'Pop calcs'!#REF!,"'")) -> 0 | E43: =IF($D$5='Pop calcs'!$D$3,'Pop calcs'!I40,IF($D$5='Pop calcs'!#REF!,'Pop calcs'!#REF!,"'")) -> 0.003456790123 | G43: 0 | H43: 0.007
B44: =Names!I37 -> 86 | C44: =Names!F37 -> Coffs Harbour | D44: =IF($D$5='Pop calcs'!$D$3,'Pop calcs'!F41,IF($D$5='Pop calcs'!#REF!,'Pop calcs'!#REF!,"'")) -> 0.004956966285 | E44: =IF($D$5='Pop calcs'!$D$3,'Pop calcs'!I41,IF($D$5='Pop calcs'!#REF!,'Pop calcs'!#REF!,"'")) -> 0.004909297731 | G44: 0 | H44: 0.007
B45: =Names!I38 -> 90 | C45: =Names!F38 -> Coolamon | D45: =IF($D$5='Pop calcs'!$D$3,'Pop calcs'!F42,IF($D$5='Pop calcs'!#REF!,'Pop calcs'!#REF!,"'")) -> 0 | E45: =IF($D$5='Pop calcs'!$D$3,'Pop calcs'!I42,IF($D$5='Pop calcs'!#REF!,'Pop calcs'!#REF!,"'")) -> 0 | G45: 0 | H45: 0.007
B46: =Names!I39 -> 93 | C46: =Names!F39 -> Coonamble | D46: =IF($D$5='Pop calcs'!$D$3,'Pop calcs'!F43,IF($D$5='Pop calcs'!#REF!,'Pop calcs'!#REF!,"'")) -> 0 | E46: =IF($D$5='Pop calcs'!$D$3,'Pop calcs'!I43,IF($D$5='Pop calcs'!#REF!,'Pop calcs'!#REF!,"'")) -> 0 | G46: 0 | H46: =ROUND($D$4+G46,3) -> 0.007
B47: =Names!I40 -> 2094 | C47: =Names!F40 -> Cootamundra-Gundagai Regional | D47: =IF($D$5='Pop calcs'!$D$3,'Pop calcs'!F44,IF($D$5='Pop calcs'!#REF!,'Pop calcs'!#REF!,"'")) -> 0 | E47: =IF($D$5='Pop calcs'!$D$3,'Pop calcs'!I44,IF($D$5='Pop calcs'!#REF!,'Pop calcs'!#REF!,"'")) -> 0 | G47: 0 | H47: 0.007
B48: =Names!I41 -> 97 | C48: =Names!F41 -> Cowra | D48: =IF($D$5='Pop calcs'!$D$3,'Pop calcs'!F45,IF($D$5='Pop calcs'!#REF!,'Pop calcs'!#REF!,"'")) -> 0 | E48: =IF($D$5='Pop calcs'!$D$3,'Pop calcs'!I45,IF($D$5='Pop calcs'!#REF!,'Pop calcs'!#REF!,"'")) -> 0.002153007033 | G48: 0 | H48: 0.007
B49: =Names!I42 -> 2090 | C49: =Names!F42 -> Cumberland | D49: =IF($D$5='Pop calcs'!$D$3,'Pop calcs'!F46,IF($D$5='Pop calcs'!#REF!,'Pop calcs'!#REF!,"'")) -> 0.005056884777 | E49: =IF($D$5='Pop calcs'!$D$3,'Pop calcs'!I46,IF($D$5='Pop calcs'!#REF!,'Pop calcs'!#REF!,"'")) -> 0 | G49: 0.005 | H49: 0.012
B50: =Names!I43 -> 2098 | C50: =Names!F43 -> Dubbo Regional | D50: =IF($D$5='Pop calcs'!$D$3,'Pop calcs'!F47,IF($D$5='Pop calcs'!#REF!,'Pop calcs'!#REF!,"'")) -> 0.00621858127 | E50: =IF($D$5='Pop calcs'!$D$3,'Pop calcs'!I47,IF($D$5='Pop calcs'!#REF!,'Pop calcs'!#REF!,"'")) -> 0.006133819039 | G50: 0 | H50: 0.007
B51: =Names!I44 -> 104 | C51: =Names!F44 -> Dungog | D51: =IF($D$5='Pop calcs'!$D$3,'Pop calcs'!F48,IF($D$5='Pop calcs'!#REF!,'Pop calcs'!#REF!,"'")) -> 0.02568456803 | E51: =IF($D$5='Pop calcs'!$D$3,'Pop calcs'!I48,IF($D$5='Pop calcs'!#REF!,'Pop calcs'!#REF!,"'")) -> 0.009165902841 | G51: 0.017 | H51: 0.024
B52: =Names!I45 -> 2091 | C52: =Names!F45 -> Edward River | D52: =IF($D$5='Pop calcs'!$D$3,'Pop calcs'!F49,IF($D$5='Pop calcs'!#REF!,'Pop calcs'!#REF!,"'")) -> 0 | E52: =IF($D$5='Pop calcs'!$D$3,'Pop calcs'!I49,IF($D$5='Pop calcs'!#REF!,'Pop calcs'!#REF!,"'")) -> 0 | G52: 0 | H52: 0.007
B53: =Names!I46 -> 105 | C53: =Names!F46 -> Eurobodalla | D53: =IF($D$5='Pop calcs'!$D$3,'Pop calcs'!F50,IF($D$5='Pop calcs'!#REF!,'Pop calcs'!#REF!,"'")) -> 0.01255556422 | E53: =IF($D$5='Pop calcs'!$D$3,'Pop calcs'!I50,IF($D$5='Pop calcs'!#REF!,'Pop calcs'!#REF!,"'")) -> 0.002788043831 | G53: 0.01 | H53: 0.017
B54: =Names!I47 -> 107 | C54: =Names!F47 -> Fairfield | D54: =IF($D$5='Pop calcs'!$D$3,'Pop calcs'!F51,IF($D$5='Pop calcs'!#REF!,'Pop calcs'!#REF!,"'")) -> 0 | E54: =IF($D$5='Pop calcs'!$D$3,'Pop calcs'!I51,IF($D$5='Pop calcs'!#REF!,'Pop calcs'!#REF!,"'")) -> 0.003683002883 | G54: 0 | H54: 0.007
B55: =Names!I48 -> 2092 | C55: =Names!F48 -> Federation | D55: =IF($D$5='Pop calcs'!$D$3,'Pop calcs'!F52,IF($D$5='Pop calcs'!#REF!,'Pop calcs'!#REF!,"'")) -> 0.01310816244 | E55: =IF($D$5='Pop calcs'!$D$3,'Pop calcs'!I52,IF($D$5='Pop calcs'!#REF!,'Pop calcs'!#REF!,"'")) -> 0.004366812227 | G55: 0.009 | H55: 0.016
B56: =Names!I49 -> 108 | C56: =Names!F49 -> Forbes | D56: =IF($D$5='Pop calcs'!$D$3,'Pop calcs'!F53,IF($D$5='Pop calcs'!#REF!,'Pop calcs'!#REF!,"'")) -> 0.001615508885 | E56: =IF($D$5='Pop calcs'!$D$3,'Pop calcs'!I53,IF($D$5='Pop calcs'!#REF!,'Pop calcs'!#REF!,"'")) -> 0.002893214098 | G56: 0 | H56: 0.007
B57: =Names!I50 -> 2093 | C57: =Names!F50 -> Georges River | D57: =IF($D$5='Pop calcs'!$D$3,'Pop calcs'!F54,IF($D$5='Pop calcs'!#REF!,'Pop calcs'!#REF!,"'")) -> 0.005275009252 | E57: =IF($D$5='Pop calcs'!$D$3,'Pop calcs'!I54,IF($D$5='Pop calcs'!#REF!,'Pop calcs'!#REF!,"'")) -> 0.00626468285 | G57: 0 | H57: 0.007
B58: =Names!I51 -> 109 | C58: =Names!F51 -> Gilgandra | D58: =IF($D$5='Pop calcs'!$D$3,'Pop calcs'!F55,IF($D$5='Pop calcs'!#REF!,'Pop calcs'!#REF!,"'")) -> 0 | E58: =IF($D$5='Pop calcs'!$D$3,'Pop calcs'!I55,IF($D$5='Pop calcs'!#REF!,'Pop calcs'!#REF!,"'")) -> 0.0005909001379 | G58: 0 | H58: 0.007
B59: =Names!I52 -> 2053 | C59: =Names!F52 -> Glen Innes Severn | D59: =IF($D$5='Pop calcs'!$D$3,'Pop calcs'!F56,IF($D$5='Pop calcs'!#REF!,'Pop calcs'!#REF!,"'")) -> 0.0004510091329 | E59: =IF($D$5='Pop calcs'!$D$3,'Pop calcs'!I56,IF($D$5='Pop calcs'!#REF!,'Pop calcs'!#REF!,"'")) -> 0.003854389722 | G59: 0 | H59: 0.007
B60: =Names!I53 -> 2032 | C60: =Names!F53 -> Goulburn Mulwaree | D60: =IF($D$5='Pop calcs'!$D$3,'Pop calcs'!F57,IF($D$5='Pop calcs'!#REF!,'Pop calcs'!#REF!,"'")) -> 0.01371799402 | E60: =IF($D$5='Pop calcs'!$D$3,'Pop calcs'!I57,IF($D$5='Pop calcs'!#REF!,'Pop calcs'!#REF!,"'")) -> 0.01357378321 | G60: 0 | H60: 0.007
B61: =Names!I54 -> 2049 | C61: =Names!F54 -> Greater Hume | D61: =IF($D$5='Pop calcs'!$D$3,'Pop calcs'!F58,IF($D$5='Pop calcs'!#REF!,'Pop calcs'!#REF!,"'")) -> 0.007247050079 | E61: =IF($D$5='Pop calcs'!$D$3,'Pop calcs'!I58,IF($D$5='Pop calcs'!#REF!,'Pop calcs'!#REF!,"'")) -> 0.007894736842 | G61: 0 | H61: 0.007
B62: =Names!I55 -> 118 | C62: =Names!F55 -> Griffith | D62: =IF($D$5='Pop calcs'!$D$3,'Pop calcs'!F59,IF($D$5='Pop calcs'!#REF!,'Pop calcs'!#REF!,"'")) -> 0.004921915476 | E62: =IF($D$5='Pop calcs'!$D$3,'Pop calcs'!I59,IF($D$5='Pop calcs'!#REF!,'Pop calcs'!#REF!,"'")) -> 0.005228382649 | G62: 0 | H62: 0.007
B63: =Names!I56 -> 120 | C63: =Names!F56 -> Gunnedah | D63: =IF($D$5='Pop calcs'!$D$3,'Pop calcs'!F60,IF($D$5='Pop calcs'!#REF!,'Pop calcs'!#REF!,"'")) -> 0.0007886435331 | E63: =IF($D$5='Pop calcs'!$D$3,'Pop calcs'!I60,IF($D$5='Pop calcs'!#REF!,'Pop calcs'!#REF!,"'")) -> 0 | G63: 0.001 | H63: 0.008
B64: =Names!I57 -> 2039 | C64: =Names!F57 -> Gwydir | D64: =IF($D$5='Pop calcs'!$D$3,'Pop calcs'!F61,IF($D$5='Pop calcs'!#REF!,'Pop calcs'!#REF!,"'")) -> 0 | E64: =IF($D$5='Pop calcs'!$D$3,'Pop calcs'!I61,IF($D$5='Pop calcs'!#REF!,'Pop calcs'!#REF!,"'")) -> 0.002622705133 | G64: 0 | H64: 0.007
B65: =Names!I58 -> 125 | C65: =Names!F58 -> Hawkesbury | D65: =IF($D$5='Pop calcs'!$D$3,'Pop calcs'!F62,IF($D$5='Pop calcs'!#REF!,'Pop calcs'!#REF!,"'")) -> 0.006851147307 | E65: =IF($D$5='Pop calcs'!$D$3,'Pop calcs'!I62,IF($D$5='Pop calcs'!#REF!,'Pop calcs'!#REF!,"'")) -> 0.005704313399 | G65: 0.001 | H65: 0.008
B66: =Names!I59 -> 126 | C66: =Names!F59 -> Hay | D66: =IF($D$5='Pop calcs'!$D$3,'Pop calcs'!F63,IF($D$5='Pop calcs'!#REF!,'Pop calcs'!#REF!,"'")) -> 0 | E66: =IF($D$5='Pop calcs'!$D$3,'Pop calcs'!I63,IF($D$5='Pop calcs'!#REF!,'Pop calcs'!#REF!,"'")) -> 0.003300330033 | G66: 0 | H66: 0.007
B67: =Names!I60 -> 2081 | C67: =Names!F60 -> Hilltops | D67: =IF($D$5='Pop calcs'!$D$3,'Pop calcs'!F64,IF($D$5='Pop calcs'!#REF!,'Pop calcs'!#REF!,"'")) -> 0 | E67: =IF($D$5='Pop calcs'!$D$3,'Pop calcs'!I64,IF($D$5='Pop calcs'!#REF!,'Pop calcs'!#REF!,"'")) -> 0 | G67: 0 | H67: 0.007
B68: =Names!I61 -> 129 | C68: =Names!F61 -> Hornsby | D68: =IF($D$5='Pop calcs'!$D$3,'Pop calcs'!F65,IF($D$5='Pop calcs'!#REF!,'Pop calcs'!#REF!,"'")) -> 0.002730191311 | E68: =IF($D$5='Pop calcs'!$D$3,'Pop calcs'!I65,IF($D$5='Pop calcs'!#REF!,'Pop calcs'!#REF!,"'")) -> 0.004625281075 | G68: 0 | H68: 0.007
B69: =Names!I62 -> 131 | C69: =Names!F62 -> Hunters Hill | D69: =IF($D$5='Pop calcs'!$D$3,'Pop calcs'!F66,IF($D$5='Pop calcs'!#REF!,'Pop calcs'!#REF!,"'")) -> 0 | E69: =IF($D$5='Pop calcs'!$D$3,'Pop calcs'!I66,IF($D$5='Pop calcs'!#REF!,'Pop calcs'!#REF!,"'")) -> 0.001470742725 | G69: 0 | H69: 0.007
B70: =Names!I63 -> 2083 | C70: =Names!F63 -> Inner West | D70: =IF($D$5='Pop calcs'!$D$3,'Pop calcs'!F67,IF($D$5='Pop calcs'!#REF!,'Pop calcs'!#REF!,"'")) -> 0.005779194898 | E70: =IF($D$5='Pop calcs'!$D$3,'Pop calcs'!I67,IF($D$5='Pop calcs'!#REF!,'Pop calcs'!#REF!,"'")) -> 0.0002374927319 | G70: 0.006 | H70: 0.013
B71: =Names!I64 -> 133 | C71: =Names!F64 -> Inverell | D71: =IF($D$5='Pop calcs'!$D$3,'Pop calcs'!F68,IF($D$5='Pop calcs'!#REF!,'Pop calcs'!#REF!,"'")) -> 0 | E71: =IF($D$5='Pop calcs'!$D$3,'Pop calcs'!I68,IF($D$5='Pop calcs'!#REF!,'Pop calcs'!#REF!,"'")) -> 0.03314142309 | G71: 0 | H71: 0.007
B72: =Names!I65 -> 135 | C72: =Names!F65 -> Junee | D72: =IF($D$5='Pop calcs'!$D$3,'Pop calcs'!F69,IF($D$5='Pop calcs'!#REF!,'Pop calcs'!#REF!,"'")) -> 0 | E72: =IF($D$5='Pop calcs'!$D$3,'Pop calcs'!I69,IF($D$5='Pop calcs'!#REF!,'Pop calcs'!#REF!,"'")) -> 0.005173688101 | G72: 0 | H72: 0.007
B73: =Names!I66 -> 136 | C73: =Names!F66 -> Kempsey | D73: =IF($D$5='Pop calcs'!$D$3,'Pop calcs'!F70,IF($D$5='Pop calcs'!#REF!,'Pop calcs'!#REF!,"'")) -> 0.006018425123 | E73: =IF($D$5='Pop calcs'!$D$3,'Pop calcs'!I70,IF($D$5='Pop calcs'!#REF!,'Pop calcs'!#REF!,"'")) -> 0.005076142132 | G73: 0.001 | H73: 0.008
B74: =Names!I67 -> 137 | C74: =Names!F67 -> Kiama | D74: =IF($D$5='Pop calcs'!$D$3,'Pop calcs'!F71,IF($D$5='Pop calcs'!#REF!,'Pop calcs'!#REF!,"'")) -> 0.01291536586 | E74: =IF($D$5='Pop calcs'!$D$3,'Pop calcs'!I71,IF($D$5='Pop calcs'!#REF!,'Pop calcs'!#REF!,"'")) -> 0.004196038939 | G74: 0.009 | H74: 0.016
B75: =Names!I68 -> 139 | C75: =Names!F68 -> Ku-ring-gai | D75: =IF($D$5='Pop calcs'!$D$3,'Pop calcs'!F72,IF($D$5='Pop calcs'!#REF!,'Pop calcs'!#REF!,"'")) -> 0.00412341929 | E75: =IF($D$5='Pop calcs'!$D$3,'Pop calcs'!I72,IF($D$5='Pop calcs'!#REF!,'Pop calcs'!#REF!,"'")) -> 0.008728572931 | G75: 0 | H75: 0.007
B76: =Names!I69 -> 140 | C76: =Names!F69 -> Kyogle | D76: =IF($D$5='Pop calcs'!$D$3,'Pop calcs'!F73,IF($D$5='Pop calcs'!#REF!,'Pop calcs'!#REF!,"'")) -> 0 | E76: =IF($D$5='Pop calcs'!$D$3,'Pop calcs'!I73,IF($D$5='Pop calcs'!#REF!,'Pop calcs'!#REF!,"'")) -> 0.006828735318 | G76: 0 | H76: 0.007
B77: =Names!I70 -> 141 | C77: =Names!F70 -> Lachlan | D77: =IF($D$5='Pop calcs'!$D$3,'Pop calcs'!F74,IF($D$5='Pop calcs'!#REF!,'Pop calcs'!#REF!,"'")) -> 0 | E77: =IF($D$5='Pop calcs'!$D$3,'Pop calcs'!I74,IF($D$5='Pop calcs'!#REF!,'Pop calcs'!#REF!,"'")) -> 0.0005324104885 | G77: 0 | H77: 0.007
B78: =Names!I71 -> 142 | C78: =Names!F71 -> Lake Macquarie | D78: =IF($D$5='Pop calcs'!$D$3,'Pop calcs'!F75,IF($D$5='Pop calcs'!#REF!,'Pop calcs'!#REF!,"'")) -> 0.009228901032 | E78: =IF($D$5='Pop calcs'!$D$3,'Pop calcs'!I75,IF($D$5='Pop calcs'!#REF!,'Pop calcs'!#REF!,"'")) -> 0.008754470982 | G78: 0 | H78: =ROUND($D$4+G78,3) -> 0.007
B79: =Names!I72 -> 143 | C79: =Names!F72 -> Lane Cove | D79: =IF($D$5='Pop calcs'!$D$3,'Pop calcs'!F76,IF($D$5='Pop calcs'!#REF!,'Pop calcs'!#REF!,"'")) -> 0.0101176236 | E79: =IF($D$5='Pop calcs'!$D$3,'Pop calcs'!I76,IF($D$5='Pop calcs'!#REF!,'Pop calcs'!#REF!,"'")) -> 0.02400864311 | G79: =IFERROR(MAX(0,ROUND(D79-E79,3)),0) -> 0 | H79: 0.007
B80: =Names!I73 -> 144 | C80: =Names!F73 -> Leeton | D80: =IF($D$5='Pop calcs'!$D$3,'Pop calcs'!F77,IF($D$5='Pop calcs'!#REF!,'Pop calcs'!#REF!,"'")) -> 0 | E80: =IF($D$5='Pop calcs'!$D$3,'Pop calcs'!I77,IF($D$5='Pop calcs'!#REF!,'Pop calcs'!#REF!,"'")) -> 0.001205303335 | G80: 0 | H80: 0.007
B81: =Names!I74 -> 146 | C81: =Names!F74 -> Lismore | D81: =IF($D$5='Pop calcs'!$D$3,'Pop calcs'!F78,IF($D$5='Pop calcs'!#REF!,'Pop calcs'!#REF!,"'")) -> 0 | E81: =IF($D$5='Pop calcs'!$D$3,'Pop calcs'!I78,IF($D$5='Pop calcs'!#REF!,'Pop calcs'!#REF!,"'")) -> 0.002899764797 | G81: 0 | H81: 0.007
B82: =Names!I75 -> 2044 | C82: =Names!F75 -> Lithgow | D82: =IF($D$5='Pop calcs'!$D$3,'Pop calcs'!F79,IF($D$5='Pop calcs'!#REF!,'Pop calcs'!#REF!,"'")) -> 0 | E82: =IF($D$5='Pop calcs'!$D$3,'Pop calcs'!I79,IF($D$5='Pop calcs'!#REF!,'Pop calcs'!#REF!,"'")) -> 0.0002160604969 | G82: 0 | H82: 0.007
B83: =Names!I76 -> 147 | C83: =Names!F76 -> Liverpool | D83: =IF($D$5='Pop calcs'!$D$3,'Pop calcs'!F80,IF($D$5='Pop calcs'!#REF!,'Pop calcs'!#REF!,"'")) -> 0.01648465139 | E83: =IF($D$5='Pop calcs'!$D$3,'Pop calcs'!I80,IF($D$5='Pop calcs'!#REF!,'Pop calcs'!#REF!,"'")) -> 0.01364676795 | G83: 0.003 | H83: 0.01
B84: =Names!I77 -> 2040 | C84: =Names!F77 -> Liverpool Plains | D84: =IF($D$5='Pop calcs'!$D$3,'Pop calcs'!F81,IF($D$5='Pop calcs'!#REF!,'Pop calcs'!#REF!,"'")) -> 0 | E84: =IF($D$5='Pop calcs'!$D$3,'Pop calcs'!I81,IF($D$5='Pop calcs'!#REF!,'Pop calcs'!#REF!,"'")) -> 0.002401280683 | G84: 0 | H84: 0.007
B85: =Names!I78 -> 148 | C85: =Names!F78 -> Lockhart | D85: =IF($D$5='Pop calcs'!$D$3,'Pop calcs'!F82,IF($D$5='Pop calcs'!#REF!,'Pop calcs'!#REF!,"'")) -> 0 | E85: =IF($D$5='Pop calcs'!$D$3,'Pop calcs'!I82,IF($D$5='Pop calcs'!#REF!,'Pop calcs'!#REF!,"'")) -> 0.0004037141704 | G85: 0 | H85: 0.007
B86: =Names!I79 -> 150 | C86: =Names!F79 -> Maitland | D86: =IF($D$5='Pop calcs'!$D$3,'Pop calcs'!F83,IF($D$5='Pop calcs'!#REF!,'Pop calcs'!#REF!,"'")) -> 0.02630497328 | E86: =IF($D$5='Pop calcs'!$D$3,'Pop calcs'!I83,IF($D$5='Pop calcs'!#REF!,'Pop calcs'!#REF!,"'")) -> 0.03103233647 | G86: 0 | H86: 0.007
B87: =Names!I80 -> 2084 | C87: =Names!F80 -> Mid-Coast | D87: =IF($D$5='Pop calcs'!$D$3,'Pop calcs'!F84,IF($D$5='Pop calcs'!#REF!,'Pop calcs'!#REF!,"'")) -> 0.006064417113 | E87: =IF($D$5='Pop calcs'!$D$3,'Pop calcs'!I84,IF($D$5='Pop calcs'!#REF!,'Pop calcs'!#REF!,"'")) -> 0.003851396131 | G87: 0.002 | H87: 0.009
B88: =Names!I81 -> 2042 | C88: =Names!F81 -> Mid-Western Regional | D88: =IF($D$5='Pop calcs'!$D$3,'Pop calcs'!F85,IF($D$5='Pop calcs'!#REF!,'Pop calcs'!#REF!,"'")) -> 0.004713244613 | E88: =IF($D$5='Pop calcs'!$D$3,'Pop calcs'!I85,IF($D$5='Pop calcs'!#REF!,'Pop calcs'!#REF!,"'")) -> 0.004940319498 | G88: 0 | H88: 0.007
B89: =Names!I82 -> 155 | C89: =Names!F82 -> Moree Plains | D89: =IF($D$5='Pop calcs'!$D$3,'Pop calcs'!F86,IF($D$5='Pop calcs'!#REF!,'Pop calcs'!#REF!,"'")) -> 0 | E89: =IF($D$5='Pop calcs'!$D$3,'Pop calcs'!I86,IF($D$5='Pop calcs'!#REF!,'Pop calcs'!#REF!,"'")) -> 0 | G89: 0 | H89: 0.007
B90: =Names!I83 -> 156 | C90: =Names!F83 -> Mosman | D90: =IF($D$5='Pop calcs'!$D$3,'Pop calcs'!F87,IF($D$5='Pop calcs'!#REF!,'Pop calcs'!#REF!,"'")) -> 0 | E90: =IF($D$5='Pop calcs'!$D$3,'Pop calcs'!I87,IF($D$5='Pop calcs'!#REF!,'Pop calcs'!#REF!,"'")) -> 0.0002914460582 | G90: 0 | H90: 0.007
B91: =Names!I84 -> 2085 | C91: =Names!F84 -> Murray River | D91: =IF($D$5='Pop calcs'!$D$3,'Pop calcs'!F88,IF($D$5='Pop calcs'!#REF!,'Pop calcs'!#REF!,"'")) -> 0.01749463608 | E91: =IF($D$5='Pop calcs'!$D$3,'Pop calcs'!I88,IF($D$5='Pop calcs'!#REF!,'Pop calcs'!#REF!,"'")) -> 0.009198672357 | G91: 0.008 | H91: 0.015
B92: =Names!I85 -> 2086 | C92: =Names!F85 -> Murrumbidgee (new) | D92: =IF($D$5='Pop calcs'!$D$3,'Pop calcs'!F89,IF($D$5='Pop calcs'!#REF!,'Pop calcs'!#REF!,"'")) -> 0 | E92: =IF($D$5='Pop calcs'!$D$3,'Pop calcs'!I89,IF($D$5='Pop calcs'!#REF!,'Pop calcs'!#REF!,"'")) -> 0 | G92: 0 | H92: 0.007
B93: =Names!I86 -> 162 | C93: =Names!F86 -> Muswellbrook | D93: =IF($D$5='Pop calcs'!$D$3,'Pop calcs'!F90,IF($D$5='Pop calcs'!#REF!,'Pop calcs'!#REF!,"'")) -> 0 | E93: =IF($D$5='Pop calcs'!$D$3,'Pop calcs'!I90,IF($D$5='Pop calcs'!#REF!,'Pop calcs'!#REF!,"'")) -> 0.05298499041 | G93: 0 | H93: 0.007
B94: =Names!I87 -> 163 | C94: =Names!F87 -> Nambucca | D94: =IF($D$5='Pop calcs'!$D$3,'Pop calcs'!F91,IF($D$5='Pop calcs'!#REF!,'Pop calcs'!#REF!,"'")) -> 0.002979497021 | E94: =IF($D$5='Pop calcs'!$D$3,'Pop calcs'!I91,IF($D$5='Pop calcs'!#REF!,'Pop calcs'!#REF!,"'")) -> 0.006928406467 | G94: 0 | H94: 0.007
B95: =Names!I88 -> 164 | C95: =Names!F88 -> Narrabri | D95: =IF($D$5='Pop calcs'!$D$3,'Pop calcs'!F92,IF($D$5='Pop calcs'!#REF!,'Pop calcs'!#REF!,"'")) -> 0 | E95: =IF($D$5='Pop calcs'!$D$3,'Pop calcs'!I92,IF($D$5='Pop calcs'!#REF!,'Pop calcs'!#REF!,"'")) -> 0.0004431969272 | G95: 0 | H95: 0.007
B96: =Names!I89 -> 165 | C96: =Names!F89 -> Narrandera | D96: =IF($D$5='Pop calcs'!$D$3,'Pop calcs'!F93,IF($D$5='Pop calcs'!#REF!,'Pop calcs'!#REF!,"'")) -> 0 | E96: =IF($D$5='Pop calcs'!$D$3,'Pop calcs'!I93,IF($D$5='Pop calcs'!#REF!,'Pop calcs'!#REF!,"'")) -> 0.000202020202 | G96: 0 | H96: 0.007
B97: =Names!I90 -> 166 | C97: =Names!F90 -> Narromine | D97: =IF($D$5='Pop calcs'!$D$3,'Pop calcs'!F94,IF($D$5='Pop calcs'!#REF!,'Pop calcs'!#REF!,"'")) -> 0 | E97: =IF($D$5='Pop calcs'!$D$3,'Pop calcs'!I94,IF($D$5='Pop calcs'!#REF!,'Pop calcs'!#REF!,"'")) -> 0 | G97: 0 | H97: 0.007
B98: =Names!I91 -> 167 | C98: =Names!F91 -> Newcastle | D98: =IF($D$5='Pop calcs'!$D$3,'Pop calcs'!F95,IF($D$5='Pop calcs'!#REF!,'Pop calcs'!#REF!,"'")) -> 0.0110063368 | E98: =IF($D$5='Pop calcs'!$D$3,'Pop calcs'!I95,IF($D$5='Pop calcs'!#REF!,'Pop calcs'!#REF!,"'")) -> 0.006018437336 | G98: 0.005 | H98: 0.012
B99: =Names!I92 -> 168 | C99: =Names!F92 -> North Sydney | D99: =IF($D$5='Pop calcs'!$D$3,'Pop calcs'!F96,IF($D$5='Pop calcs'!#REF!,'Pop calcs'!#REF!,"'")) -> 0.001827714556 | E99: =IF($D$5='Pop calcs'!$D$3,'Pop calcs'!I96,IF($D$5='Pop calcs'!#REF!,'Pop calcs'!#REF!,"'")) -> 0 | G99: 0.002 | H99: 0.009
B100: =Names!I93 -> 2087 | C100: =Names!F93 -> Northern Beaches | D100: =IF($D$5='Pop calcs'!$D$3,'Pop calcs'!F97,IF($D$5='Pop calcs'!#REF!,'Pop calcs'!#REF!,"'")) -> 0.002311555216 | E100: =IF($D$5='Pop calcs'!$D$3,'Pop calcs'!I97,IF($D$5='Pop calcs'!#REF!,'Pop calcs'!#REF!,"'")) -> 0.005074449077 | G100: 0 | H100: 0.007
B101: =Names!I94 -> 2045 | C101: =Names!F94 -> Oberon | D101: =IF($D$5='Pop calcs'!$D$3,'Pop calcs'!F98,IF($D$5='Pop calcs'!#REF!,'Pop calcs'!#REF!,"'")) -> 0.001478469784 | E101: =IF($D$5='Pop calcs'!$D$3,'Pop calcs'!I98,IF($D$5='Pop calcs'!#REF!,'Pop calcs'!#REF!,"'")) -> 0.00350877193 | G101: 0 | H101: 0.007
B102: =Names!I95 -> 172 | C102: =Names!F95 -> Orange | D102: =IF($D$5='Pop calcs'!$D$3,'Pop calcs'!F99,IF($D$5='Pop calcs'!#REF!,'Pop calcs'!#REF!,"'")) -> 0.001366474261 | E102: =IF($D$5='Pop calcs'!$D$3,'Pop calcs'!I99,IF($D$5='Pop calcs'!#REF!,'Pop calcs'!#REF!,"'")) -> 0.007817285535 | G102: 0 | H102: 0.007
B103: =Names!I96 -> 173 | C103: =Names!F96 -> Parkes | D103: =IF($D$5='Pop calcs'!$D$3,'Pop calcs'!F100,IF($D$5='Pop calcs'!#REF!,'Pop calcs'!#REF!,"'")) -> 0 | E103: =IF($D$5='Pop calcs'!$D$3,'Pop calcs'!I100,IF($D$5='Pop calcs'!#REF!,'Pop calcs'!#REF!,"'")) -> 0 | G103: 0 | H103: 0.007
B104: =Names!I97 -> 2089 | C104: =Names!F97 -> Parramatta | D104: =IF($D$5='Pop calcs'!$D$3,'Pop calcs'!F101,IF($D$5='Pop calcs'!#REF!,'Pop calcs'!#REF!,"'")) -> 0.01245458859 | E104: =IF($D$5='Pop calcs'!$D$3,'Pop calcs'!I101,IF($D$5='Pop calcs'!#REF!,'Pop calcs'!#REF!,"'")) -> 0.01555331315 | G104: 0 | H104: 0.007
B105: =Names!I98 -> 176 | C105: =Names!F98 -> Penrith | D105: =IF($D$5='Pop calcs'!$D$3,'Pop calcs'!F102,IF($D$5='Pop calcs'!#REF!,'Pop calcs'!#REF!,"'")) -> 0.01567548276 | E105: =IF($D$5='Pop calcs'!$D$3,'Pop calcs'!I102,IF($D$5='Pop calcs'!#REF!,'Pop calcs'!#REF!,"'")) -> 0.008251017755 | G105: 0.007 | H105: 0.014
B106: =Names!I99 -> 124 | C106: =Names!F99 -> Port Macquarie-Hastings | D106: =IF($D$5='Pop calcs'!$D$3,'Pop calcs'!F103,IF($D$5='Pop calcs'!#REF!,'Pop calcs'!#REF!,"'")) -> 0.01700289889 | E106: =IF($D$5='Pop calcs'!$D$3,'Pop calcs'!I103,IF($D$5='Pop calcs'!#REF!,'Pop calcs'!#REF!,"'")) -> 0.007095453937 | G106: 0.01 | H106: 0.017
B107: =Names!I100 -> 178 | C107: =Names!F100 -> Port Stephens | D107: =IF($D$5='Pop calcs'!$D$3,'Pop calcs'!F104,IF($D$5='Pop calcs'!#REF!,'Pop calcs'!#REF!,"'")) -> 0.0140733885 | E107: =IF($D$5='Pop calcs'!$D$3,'Pop calcs'!I104,IF($D$5='Pop calcs'!#REF!,'Pop calcs'!#REF!,"'")) -> 0.00766547324 | G107: 0.006 | H107: 0.013
B108: =Names!I101 -> 2095 | C108: =Names!F101 -> Queanbeyan-Palerang Regional | D108: =IF($D$5='Pop calcs'!$D$3,'Pop calcs'!F105,IF($D$5='Pop calcs'!#REF!,'Pop calcs'!#REF!,"'")) -> 0.01882499304 | E108: =IF($D$5='Pop calcs'!$D$3,'Pop calcs'!I105,IF($D$5='Pop calcs'!#REF!,'Pop calcs'!#REF!,"'")) -> 0.0196371 | G108: 0 | H108: 0.007
B109: =Names!I102 -> 181 | C109: =Names!F102 -> Randwick | D109: =IF($D$5='Pop calcs'!$D$3,'Pop calcs'!F106,IF($D$5='Pop calcs'!#REF!,'Pop calcs'!#REF!,"'")) -> 0.007060139788 | E109: =IF($D$5='Pop calcs'!$D$3,'Pop calcs'!I106,IF($D$5='Pop calcs'!#REF!,'Pop calcs'!#REF!,"'")) -> 0.0007892027908 | G109: 0.006 | H109: 0.013
B110: =Names!I103 -> 1981 | C110: =Names!F103 -> Richmond Valley | D110: =IF($D$5='Pop calcs'!$D$3,'Pop calcs'!F107,IF($D$5='Pop calcs'!#REF!,'Pop calcs'!#REF!,"'")) -> 0.001193419146 | E110: =IF($D$5='Pop calcs'!$D$3,'Pop calcs'!I107,IF($D$5='Pop calcs'!#REF!,'Pop calcs'!#REF!,"'")) -> 0.003111954459 | G110: 0 | H110: =ROUND($D$4+G110,3) -> 0.007
B111: =Names!I104 -> 184 | C111: =Names!F104 -> Ryde | D111: =IF($D$5='Pop calcs'!$D$3,'Pop calcs'!F108,IF($D$5='Pop calcs'!#REF!,'Pop calcs'!#REF!,"'")) -> 0.0155351943 | E111: =IF($D$5='Pop calcs'!$D$3,'Pop calcs'!I108,IF($D$5='Pop calcs'!#REF!,'Pop calcs'!#REF!,"'")) -> 0.02884195398 | G111: 0 | H111: 0.007
B112: =Names!I105 -> 188 | C112: =Names!F105 -> Shellharbour | D112: =IF($D$5='Pop calcs'!$D$3,'Pop calcs'!F109,IF($D$5='Pop calcs'!#REF!,'Pop calcs'!#REF!,"'")) -> 0.01907818368 | E112: =IF($D$5='Pop calcs'!$D$3,'Pop calcs'!I109,IF($D$5='Pop calcs'!#REF!,'Pop calcs'!#REF!,"'")) -> 0.005355668754 | G112: 0.014 | H112: 0.021
B113: =Names!I106 -> 189 | C113: =Names!F106 -> Shoalhaven | D113: =IF($D$5='Pop calcs'!$D$3,'Pop calcs'!F110,IF($D$5='Pop calcs'!#REF!,'Pop calcs'!#REF!,"'")) -> 0.01471075475 | E113: =IF($D$5='Pop calcs'!$D$3,'Pop calcs'!I110,IF($D$5='Pop calcs'!#REF!,'Pop calcs'!#REF!,"'")) -> 0.004984544049 | G113: 0.01 | H113: 0.017
B114: =Names!I107 -> 190 | C114: =Names!F107 -> Singleton | D114: =IF($D$5='Pop calcs'!$D$3,'Pop calcs'!F111,IF($D$5='Pop calcs'!#REF!,'Pop calcs'!#REF!,"'")) -> 0 | E114: =IF($D$5='Pop calcs'!$D$3,'Pop calcs'!I111,IF($D$5='Pop calcs'!#REF!,'Pop calcs'!#REF!,"'")) -> 0.01338034536 | G114: 0 | H114: 0.007
B115: =Names!I108 -> 2096 | C115: =Names!F108 -> Snowy Monaro Regional | D115: =IF($D$5='Pop calcs'!$D$3,'Pop calcs'!F112,IF($D$5='Pop calcs'!#REF!,'Pop calcs'!#REF!,"'")) -> 0.009810994085 | E115: =IF($D$5='Pop calcs'!$D$3,'Pop calcs'!I112,IF($D$5='Pop calcs'!#REF!,'Pop calcs'!#REF!,"'")) -> 0.008583164735 | G115: 0.001 | H115: 0.008
B116: =Names!I109 -> 2097 | C116: =Names!F109 -> Snowy Valleys | D116: =IF($D$5='Pop calcs'!$D$3,'Pop calcs'!F113,IF($D$5='Pop calcs'!#REF!,'Pop calcs'!#REF!,"'")) -> 0 | E116: =IF($D$5='Pop calcs'!$D$3,'Pop calcs'!I113,IF($D$5='Pop calcs'!#REF!,'Pop calcs'!#REF!,"'")) -> 0.001062812201 | G116: 0 | H116: 0.007
B117: =Names!I110 -> 193 | C117: =Names!F110 -> Strathfield | D117: =IF($D$5='Pop calcs'!$D$3,'Pop calcs'!F114,IF($D$5='Pop calcs'!#REF!,'Pop calcs'!#REF!,"'")) -> 0.01857301262 | E117: =IF($D$5='Pop calcs'!$D$3,'Pop calcs'!I114,IF($D$5='Pop calcs'!#REF!,'Pop calcs'!#REF!,"'")) -> 0.01416861191 | G117: 0.004 | H117: 0.011
B118: =Names!I111 -> 194 | C118: =Names!F111 -> Sutherland | D118: =IF($D$5='Pop calcs'!$D$3,'Pop calcs'!F115,IF($D$5='Pop calcs'!#REF!,'Pop calcs'!#REF!,"'")) -> 0.007763066021 | E118: =IF($D$5='Pop calcs'!$D$3,'Pop calcs'!I115,IF($D$5='Pop calcs'!#REF!,'Pop calcs'!#REF!,"'")) -> 0.00879707121 | G118: 0 | H118: 0.007
B119: =Names!I112 -> 2029 | C119: =Names!F112 -> Sydney | D119: =IF($D$5='Pop calcs'!$D$3,'Pop calcs'!F116,IF($D$5='Pop calcs'!#REF!,'Pop calcs'!#REF!,"'")) -> 0.01136040205 | E119: =IF($D$5='Pop calcs'!$D$3,'Pop calcs'!I116,IF($D$5='Pop calcs'!#REF!,'Pop calcs'!#REF!,"'")) -> 0.004821923197 | G119: 0.007 | H119: 0.014
B120: =Names!I113 -> 2038 | C120: =Names!F113 -> Tamworth Regional | D120: =IF($D$5='Pop calcs'!$D$3,'Pop calcs'!F117,IF($D$5='Pop calcs'!#REF!,'Pop calcs'!#REF!,"'")) -> 0.0002238889511 | E120: =IF($D$5='Pop calcs'!$D$3,'Pop calcs'!I117,IF($D$5='Pop calcs'!#REF!,'Pop calcs'!#REF!,"'")) -> 0.006473714024 | G120: 0 | H120: 0.007
B121: =Names!I114 -> 198 | C121: =Names!F114 -> Temora | D121: =IF($D$5='Pop calcs'!$D$3,'Pop calcs'!F118,IF($D$5='Pop calcs'!#REF!,'Pop calcs'!#REF!,"'")) -> 0 | E121: =IF($D$5='Pop calcs'!$D$3,'Pop calcs'!I118,IF($D$5='Pop calcs'!#REF!,'Pop calcs'!#REF!,"'")) -> 0.0007422068283 | G121: 0 | H121: 0.007
B122: =Names!I115 -> 199 | C122: =Names!F115 -> Tenterfield | D122: =IF($D$5='Pop calcs'!$D$3,'Pop calcs'!F119,IF($D$5='Pop calcs'!#REF!,'Pop calcs'!#REF!,"'")) -> 0 | E122: =IF($D$5='Pop calcs'!$D$3,'Pop calcs'!I119,IF($D$5='Pop calcs'!#REF!,'Pop calcs'!#REF!,"'")) -> 0 | G122: 0 | H122: 0.007
B123: =Names!I116 -> 59 | C123: =Names!F116 -> Hills | D123: =IF($D$5='Pop calcs'!$D$3,'Pop calcs'!F120,IF($D$5='Pop calcs'!#REF!,'Pop calcs'!#REF!,"'")) -> 0.03295733644 | E123: =IF($D$5='Pop calcs'!$D$3,'Pop calcs'!I120,IF($D$5='Pop calcs'!#REF!,'Pop calcs'!#REF!,"'")) -> 0.02445033862 | G123: 0.009 | H123: 0.016
B124: =Names!I117 -> 202 | C124: =Names!F117 -> Tweed | D124: =IF($D$5='Pop calcs'!$D$3,'Pop calcs'!F121,IF($D$5='Pop calcs'!#REF!,'Pop calcs'!#REF!,"'")) -> 0.01440428932 | E124: =IF($D$5='Pop calcs'!$D$3,'Pop calcs'!I121,IF($D$5='Pop calcs'!#REF!,'Pop calcs'!#REF!,"'")) -> 0.003922122339 | G124: 0.01 | H124: 0.017
B125: =Names!I118 -> 2046 | C125: =Names!F118 -> Upper Hunter | D125: =IF($D$5='Pop calcs'!$D$3,'Pop calcs'!F122,IF($D$5='Pop calcs'!#REF!,'Pop calcs'!#REF!,"'")) -> 0 | E125: =IF($D$5='Pop calcs'!$D$3,'Pop calcs'!I122,IF($D$5='Pop calcs'!#REF!,'Pop calcs'!#REF!,"'")) -> 0.001621913858 | G125: 0 | H125: 0.007
B126: =Names!I119 -> 2035 | C126: =Names!F119 -> Upper Lachlan | D126: =IF($D$5='Pop calcs'!$D$3,'Pop calcs'!F123,IF($D$5='Pop calcs'!#REF!,'Pop calcs'!#REF!,"'")) -> 0.02667824792 | E126: =IF($D$5='Pop calcs'!$D$3,'Pop calcs'!I123,IF($D$5='Pop calcs'!#REF!,'Pop calcs'!#REF!,"'")) -> 0.009556313993 | G126: 0.017 | H126: 0.024
B127: =Names!I120 -> 204 | C127: =Names!F120 -> Uralla | D127: =IF($D$5='Pop calcs'!$D$3,'Pop calcs'!F124,IF($D$5='Pop calcs'!#REF!,'Pop calcs'!#REF!,"'")) -> 0 | E127: =IF($D$5='Pop calcs'!$D$3,'Pop calcs'!I124,IF($D$5='Pop calcs'!#REF!,'Pop calcs'!#REF!,"'")) -> 0 | G127: 0 | H127: 0.007
B128: =Names!I121 -> 206 | C128: =Names!F121 -> Wagga Wagga | D128: =IF($D$5='Pop calcs'!$D$3,'Pop calcs'!F125,IF($D$5='Pop calcs'!#REF!,'Pop calcs'!#REF!,"'")) -> 0.007984796702 | E128: =IF($D$5='Pop calcs'!$D$3,'Pop calcs'!I125,IF($D$5='Pop calcs'!#REF!,'Pop calcs'!#REF!,"'")) -> 0.01096108373 | G128: 0 | H128: 0.007
B129: =Names!I122 -> 208 | C129: =Names!F122 -> Walcha | D129: =IF($D$5='Pop calcs'!$D$3,'Pop calcs'!F126,IF($D$5='Pop calcs'!#REF!,'Pop calcs'!#REF!,"'")) -> 0 | E129: =IF($D$5='Pop calcs'!$D$3,'Pop calcs'!I126,IF($D$5='Pop calcs'!#REF!,'Pop calcs'!#REF!,"'")) -> 0 | G129: 0 | H129: 0.007
B130: =Names!I123 -> 209 | C130: =Names!F123 -> Walgett | D130: =IF($D$5='Pop calcs'!$D$3,'Pop calcs'!F127,IF($D$5='Pop calcs'!#REF!,'Pop calcs'!#REF!,"'")) -> 0 | E130: =IF($D$5='Pop calcs'!$D$3,'Pop calcs'!I127,IF($D$5='Pop calcs'!#REF!,'Pop calcs'!#REF!,"'")) -> 0.0001766160367 | G130: 0 | H130: 0.007
B131: =Names!I124 -> 210 | C131: =Names!F124 -> Warren | D131: =IF($D$5='Pop calcs'!$D$3,'Pop calcs'!F128,IF($D$5='Pop calcs'!#REF!,'Pop calcs'!#REF!,"'")) -> 0.007044864664 | E131: =IF($D$5='Pop calcs'!$D$3,'Pop calcs'!I128,IF($D$5='Pop calcs'!#REF!,'Pop calcs'!#REF!,"'")) -> 0.001020199959 | G131: 0.006 | H131: 0.013
B132: =Names!I125 -> 2050 | C132: =Names!F125 -> Warrumbungle | D132: =IF($D$5='Pop calcs'!$D$3,'Pop calcs'!F129,IF($D$5='Pop calcs'!#REF!,'Pop calcs'!#REF!,"'")) -> 0 | E132: =IF($D$5='Pop calcs'!$D$3,'Pop calcs'!I129,IF($D$5='Pop calcs'!#REF!,'Pop calcs'!#REF!,"'")) -> 0.0007359254262 | G132: 0 | H132: 0.007
B133: =Names!I126 -> 212 | C133: =Names!F126 -> Waverley | D133: =IF($D$5='Pop calcs'!$D$3,'Pop calcs'!F130,IF($D$5='Pop calcs'!#REF!,'Pop calcs'!#REF!,"'")) -> 0.0007275470885 | E133: =IF($D$5='Pop calcs'!$D$3,'Pop calcs'!I130,IF($D$5='Pop calcs'!#REF!,'Pop calcs'!#REF!,"'")) -> 0 | G133: 0.001 | H133: 0.008
B134: =Names!I127 -> 213 | C134: =Names!F127 -> Weddin | D134: =IF($D$5='Pop calcs'!$D$3,'Pop calcs'!F131,IF($D$5='Pop calcs'!#REF!,'Pop calcs'!#REF!,"'")) -> 0 | E134: =IF($D$5='Pop calcs'!$D$3,'Pop calcs'!I131,IF($D$5='Pop calcs'!#REF!,'Pop calcs'!#REF!,"'")) -> 0 | G134: 0 | H134: 0.007
B135: =Names!I128 -> 215 | C135: =Names!F128 -> Wentworth | D135: =IF($D$5='Pop calcs'!$D$3,'Pop calcs'!F132,IF($D$5='Pop calcs'!#REF!,'Pop calcs'!#REF!,"'")) -> 0.005245994612 | E135: =IF($D$5='Pop calcs'!$D$3,'Pop calcs'!I132,IF($D$5='Pop calcs'!#REF!,'Pop calcs'!#REF!,"'")) -> 0.01024473534 | G135: 0 | H135: 0.007
B136: =Names!I129 -> 216 | C136: =Names!F129 -> Willoughby | D136: =IF($D$5='Pop calcs'!$D$3,'Pop calcs'!F133,IF($D$5='Pop calcs'!#REF!,'Pop calcs'!#REF!,"'")) -> 0.001072630658 | E136: =IF($D$5='Pop calcs'!$D$3,'Pop calcs'!I133,IF($D$5='Pop calcs'!#REF!,'Pop calcs'!#REF!,"'")) -> 0.0005420998625 | G136: 0.001 | H136: 0.008
B137: =Names!I130 -> 218 | C137: =Names!F130 -> Wingecarribee | D137: =IF($D$5='Pop calcs'!$D$3,'Pop calcs'!F134,IF($D$5='Pop calcs'!#REF!,'Pop calcs'!#REF!,"'")) -> 0.01238093375 | E137: =IF($D$5='Pop calcs'!$D$3,'Pop calcs'!I134,IF($D$5='Pop calcs'!#REF!,'Pop calcs'!#REF!,"'")) -> 0.007688223843 | G137: 0.005 | H137: 0.012
B138: =Names!I131 -> 219 | C138: =Names!F131 -> Wollondilly | D138: =IF($D$5='Pop calcs'!$D$3,'Pop calcs'!F135,IF($D$5='Pop calcs'!#REF!,'Pop calcs'!#REF!,"'")) -> 0.0162203865 | E138: =IF($D$5='Pop calcs'!$D$3,'Pop calcs'!I135,IF($D$5='Pop calcs'!#REF!,'Pop calcs'!#REF!,"'")) -> 0.01060089079 | G138: 0.006 | H138: 0.013
B139: =Names!I132 -> 220 | C139: =Names!F132 -> Wollongong | D139: =IF($D$5='Pop calcs'!$D$3,'Pop calcs'!F136,IF($D$5='Pop calcs'!#REF!,'Pop calcs'!#REF!,"'")) -> 0.00789632972 | E139: =IF($D$5='Pop calcs'!$D$3,'Pop calcs'!I136,IF($D$5='Pop calcs'!#REF!,'Pop calcs'!#REF!,"'")) -> 0.004848676728 | G139: 0.003 | H139: 0.01
B140: =Names!I133 -> 221 | C140: =Names!F133 -> Woollahra | D140: =IF($D$5='Pop calcs'!$D$3,'Pop calcs'!F137,IF($D$5='Pop calcs'!#REF!,'Pop calcs'!#REF!,"'")) -> 0.001449153256 | E140: =IF($D$5='Pop calcs'!$D$3,'Pop calcs'!I137,IF($D$5='Pop calcs'!#REF!,'Pop calcs'!#REF!,"'")) -> 0.001760170563 | G140: 0 | H140: 0.007
B141: =Names!I134 -> 2036 | C141: =Names!F134 -> Yass Valley | D141: =IF($D$5='Pop calcs'!$D$3,'Pop calcs'!F138,IF($D$5='Pop calcs'!#REF!,'Pop calcs'!#REF!,"'")) -> 0.0137539506 | E141: =IF($D$5='Pop calcs'!$D$3,'Pop calcs'!I138,IF($D$5='Pop calcs'!#REF!,'Pop calcs'!#REF!,"'")) -> 0.007866093478 | G141: =IFERROR(MAX(0,D141-E141),0) -> 0.005887857124 | H141: 0.013

Sheet Names
B3: LGA and Council names
B5: LGA code | C5: Local Government Area | E5: Council name | F5: Council Name | G5: Rate peg order name | H5: OLG Group | I5: OrgID
B7: 10050 | C7: Albury (C) | E7: Albury City Council | F7: Albury | G7: Albury City | H7: 4 | I7: 2047
B8: 10180 | C8: Armidale Regional (A) | E8: Armidale Regional Council | F8: Armidale Regional | G8: Armidale Regional | H8: 4 | I8: 2079
B9: 10250 | C9: Ballina (A) | E9: Ballina Shire Council | F9: Ballina | G9: Ballina Shire | H9: 4 | I9: 54
B10: 10300 | C10: Balranald (A) | E10: Balranald Shire Council | F10: Balranald | G10: Balranald Shire | H10: 9 | I10: 55
B11: 10470 | C11: Bathurst Regional (A) | E11: Bathurst Regional Council | F11: Bathurst Regional | G11: Bathurst Regional | H11: 4 | I11: 2043
B12: 10500 | C12: Bayside (A) | E12: Bayside Council | F12: Bayside | G12: Bayside | H12: 3 | I12: 2099
B13: 10550 | C13: Bega Valley (A) | E13: Bega Valley Shire Council | F13: Bega Valley | G13: Bega Valley Shire | H13: 4 | I13: 60
B14: 10600 | C14: Bellingen (A) | E14: Bellingen Shire Council | F14: Bellingen | G14: Bellingen Shire | H14: 11 | I14: 61
B15: 10650 | C15: Berrigan (A) | E15: Berrigan Shire Council | F15: Berrigan | G15: Berrigan Shire | H15: 10 | I15: 62
B16: 10750 | C16: Blacktown (C) | E16: Blacktown City Council | F16: Blacktown | G16: Blacktown City | H16: 3 | I16: 64
B17: 10800 | C17: Bland (A) | E17: Bland Shire Council | F17: Bland | G17: Bland Shire | H17: 10 | I17: 65
B18: 10850 | C18: Blayney (A) | E18: Blayney Shire Council | F18: Blayney | G18: Blayney Shire | H18: 10 | I18: 66
B19: 10900 | C19: Blue Mountains (C) | E19: Blue Mountains City Council | F19: Blue Mountains | G19: Blue Mountains City | H19: 7 | I19: 67
B20: 10950 | C20: Bogan (A) | E20: Bogan Shire Council | F20: Bogan | G20: Bogan Shire | H20: 9 | I20: 68
B21: 11150 | C21: Bourke (A) | E21: Bourke Shire Council | F21: Bourke | G21: Bourke Shire | H21: 9 | I21: 72
B22: 11200 | C22: Brewarrina (A) | E22: Brewarrina Shire Council | F22: Brewarrina | G22: Brewarrina Shire | H22: 8 | I22: 73
B23: 11250 | C23: Broken Hill (C) | E23: Broken Hill City Council | F23: Broken Hill | G23: Broken Hill City | H23: 4 | I23: 74
B24: 11300 | C24: Burwood (A) | E24: Burwood Council | F24: Burwood | G24: Burwood | H24: 2 | I24: 75
B25: 11350 | C25: Byron (A) | E25: Byron Shire Council | F25: Byron | G25: Byron Shire | H25: 4 | I25: 76
B26: 11400 | C26: Cabonne (A) | E26: Cabonne Council | F26: Cabonne | G26: Cabonne | H26: 11 | I26: 77
B27: 11450 | C27: Camden (A) | E27: Camden Council | F27: Camden | G27: Camden | H27: 7 | I27: 78
B28: 11500 | C28: Campbelltown (C) (NSW) | E28: Campbelltown City Council | F28: Campbelltown | G28: Campbelltown City | H28: 7 | I28: 79
B29: 11520 | C29: Canada Bay (A) | E29: City of Canada Bay Council | F29: Canada Bay | G29: City of Canada Bay | H29: 3 | I29: 1989
B30: 11570 | C30: Canterbury-Bankstown (A) | E30: Canterbury-Bankstown Council | F30: Canterbury-Bankstown | G30: Canterbury-Bankstown | H30: 3 | I30: 2080
B31: 11600 | C31: Carrathool (A) | E31: Carrathool Shire Council | F31: Carrathool | G31: Carrathool Shire | H31: 9 | I31: 81
B32: 11650 | C32: Central Coast (C) (NSW) | E32: Central Coast Council | F32: Central Coast | G32: Central Coast | H32: 7 | I32: 2088
B33: 11700 | C33: Central Darling (A) | E33: Central Darling Shire Council | F33: Central Darling | G33: Central Darling Shire | H33: 9 | I33: 83
B34: 11720 | C34: Cessnock (C) | E34: Cessnock City Council | F34: Cessnock | G34: Cessnock City | H34: 4 | I34: 84
B35: 11730 | C35: Clarence Valley (A) | E35: Clarence Valley Council | F35: Clarence Valley | G35: Clarence Valley | H35: 4 | I35: 2037
B36: 11750 | C36: Cobar (A) | E36: Cobar Shire Council | F36: Cobar | G36: Cobar Shire | H36: 10 | I36: 85
B37: 11800 | C37: Coffs Harbour (C) | E37: Coffs Harbour City Council | F37: Coffs Harbour | G37: Coffs Harbour City | H37: 5 | I37: 86
B38: 12000 | C38: Coolamon (A) | E38: Coolamon Shire Council | F38: Coolamon | G38: Coolamon Shire | H38: 9 | I38: 90
B39: 12150 | C39: Coonamble (A) | E39: Coonamble Shire Council | F39: Coonamble | G39: Coonamble Shire | H39: 9 | I39: 93
B40: 12160 | C40: Cootamundra-Gundagai Regional (A) | E40: Cootamundra-Gundagai Council | F40: Cootamundra-Gundagai Regional | G40: Cootamundra-Gundagai Regional | H40: 11 | I40: 2094
B41: 12350 | C41: Cowra (A) | E41: Corowa Shire Council | F41: Cowra | G41: Cowra Shire | H41: 11 | I41: 97
B42: 12380 | C42: Cumberland (A) | E42: Cumberland Council | F42: Cumberland | G42: Cumberland City | H42: 3 | I42: 2090
B43: 12390 | C43: Dubbo Regional (A) | E43: Dubbo Regional Council | F43: Dubbo Regional | G43: Dubbo Regional | H43: 4 | I43: 2098
B44: 12700 | C44: Dungog (A) | E44: Dungog Shire Council | F44: Dungog | G44: Dungog Shire | H44: 10 | I44: 104
B45: 12730 | C45: Edward River (A) | E45: Edward River Council | F45: Edward River | G45: Edward River | H45: 10 | I45: 2091
B46: 12750 | C46: Eurobodalla (A) | E46: Eurobodalla Shire Council | F46: Eurobodalla | G46: Eurobodalla Shire | H46: 4 | I46: 105
B47: 12850 | C47: Fairfield (C) | E47: Fairfield City Council | F47: Fairfield | G47: Fairfield City | H47: 3 | I47: 107
B48: 12870 | C48: Federation (A) | E48: Federation Council | F48: Federation | G48: Federation | H48: 11 | I48: 2092
B49: 12900 | C49: Forbes (A) | E49: Forbes Shire Council | F49: Forbes | G49: Forbes Shire | H49: 10 | I49: 108
B50: 12930 | C50: Georges River (A) | E50: Georges River Council | F50: Georges River | G50: Georges River | H50: 3 | I50: 2093
B51: 12950 | C51: Gilgandra (A) | E51: Gilgandra Shire Council | F51: Gilgandra | G51: Gilgandra Shire | H51: 9 | I51: 109
B52: 13010 | C52: Glen Innes Severn (A) | E52: Glen Innes Severn Shire Council | F52: Glen Innes Severn | G52: Glen Innes Severn | H52: 10 | I52: 2053
B53: 13310 | C53: Goulburn Mulwaree (A) | E53: Goulburn Mulwaree Council | F53: Goulburn Mulwaree | G53: Goulburn Mulwaree | H53: 4 | I53: 2032
B54: 13340 | C54: Greater Hume Shire (A) | E54: Greater Hume Shire Council | F54: Greater Hume | G54: Greater Hume Shire | H54: 11 | I54: 2049
B55: 13450 | C55: Griffith (C) | E55: Griffith City Council | F55: Griffith | G55: Griffith City | H55: 4 | I55: 118
B56: 13550 | C56: Gunnedah (A) | E56: Gunnedah Shire Council | F56: Gunnedah | G56: Gunnedah Shire | H56: 11 | I56: 120
B57: 13660 | C57: Gwydir (A) | E57: Gwydir Shire Council | F57: Gwydir | G57: Gwydir Shire | H57: 10 | I57: 2039
B58: 13800 | C58: Hawkesbury (C) | E58: Hawkesbury City Council | F58: Hawkesbury | G58: Hawkesbury City | H58: 6 | I58: 125
B59: 13850 | C59: Hay (A) | E59: Hay Shire Council | F59: Hay | G59: Hay Shire | H59: 9 | I59: 126
B60: 13910 | C60: Hilltops (A) | E60: Hilltops Council | F60: Hilltops | G60: Hilltops | H60: 11 | I60: 2081
B61: 14000 | C61: Hornsby (A) | E61: Hornsby, The Council of the Shire of | F61: Hornsby | G61: Hornsby Shire | H61: 7 | I61: 129
B62: 14100 | C62: Hunters Hill (A) | E62: Hunters Hill, The Council of the Municipality of | F62: Hunters Hill | G62: Hunters Hill | H62: 2 | I62: 131
B63: 14170 | C63: Inner West (A) | E63: Inner West Council | F63: Inner West | G63: Inner West | H63: 3 | I63: 2083
B64: 14220 | C64: Inverell (A) | E64: Inverell Shire Council | F64: Inverell | G64: Inverell Shire | H64: 11 | I64: 133
B65: 14300 | C65: Junee (A) | E65: Junee Shire Council | F65: Junee | G65: Junee Shire | H65: 10 | I65: 135
B66: 14350 | C66: Kempsey (A) | E66: Kempsey Shire Council | F66: Kempsey | G66: Kempsey Shire | H66: 4 | I66: 136
B67: 14400 | C67: Kiama (A) | E67: Kiama, The Council of the Municipality of | F67: Kiama | G67: Kiama Municipal | H67: 4 | I67: 137
B68: 14500 | C68: Ku-ring-gai (A) | E68: Ku-ring-gai Municipal Council | F68: Ku-ring-gai | G68: Ku-ring-gai | H68: 3 | I68: 139
B69: 14550 | C69: Kyogle (A) | E69: Kyogle Council | F69: Kyogle | G69: Kyogle | H69: 10 | I69: 140
B70: 14600 | C70: Lachlan (A) | E70: Lachlan Shire Council | F70: Lachlan | G70: Lachlan Shire | H70: 10 | I70: 141
B71: 14650 | C71: Lake Macquarie (C) | E71: Lake Macquarie City Council | F71: Lake Macquarie | G71: Lake Macquarie City | H71: 5 | I71: 142
B72: 14700 | C72: Lane Cove (A) | E72: Lane Cove Council | F72: Lane Cove | G72: Lane Cove | H72: 2 | I72: 143
B73: 14750 | C73: Leeton (A) | E73: Leeton Shire Council | F73: Leeton | G73: Leeton Shire | H73: 11 | I73: 144
B74: 14850 | C74: Lismore (C) | E74: Lismore City Council | F74: Lismore | G74: Lismore City | H74: 4 | I74: 146
B75: 14870 | C75: Lithgow (C) | E75: Lithgow Council, City of | F75: Lithgow | G75: Lithgow City | H75: 4 | I75: 2044
B76: 14900 | C76: Liverpool (C) | E76: Liverpool City Council | F76: Liverpool | G76: Liverpool City | H76: 3 | I76: 147
B77: 14920 | C77: Liverpool Plains (A) | E77: Liverpool Plains Shire Council | F77: Liverpool Plains | G77: Liverpool Plains Shire | H77: 10 | I77: 2040
B78: 14950 | C78: Lockhart (A) | E78: Lockhart Shire Council | F78: Lockhart | G78: Lockhart Shire | H78: 9 | I78: 148
B79: 15050 | C79: Maitland (C) | E79: Maitland City Council | F79: Maitland | G79: Maitland City | H79: 5 | I79: 150
B80: 15240 | C80: Mid-Coast (A) | E80: MidCoast Council | F80: Mid-Coast | G80: Mid-Coast | H80: 5 | I80: 2084
B81: 15270 | C81: Mid-Western Regional (A) | E81: Mid-Western Regional Council | F81: Mid-Western Regional | G81: Mid-Western Regional | H81: 4 | I81: 2042
B82: 15300 | C82: Moree Plains (A) | E82: Moree Plains Shire Council | F82: Moree Plains | G82: Moree Plains Shire | H82: 11 | I82: 155
B83: 15350 | C83: Mosman (A) | E83: Mosman Municipal Council | F83: Mosman | G83: Mosman | H83: 2 | I83: 156
B84: 15520 | C84: Murray River (A) | E84: Murray River Council | F84: Murray River | G84: Murray River | H84: 11 | I84: 2085
B85: 15560 | C85: Murrumbidgee (A) | E85: Murrumbidgee Shire Council | F85: Murrumbidgee (new) | G85: Murrumbidgee | H85: 9 | I85: 2086
B86: 15650 | C86: Muswellbrook (A) | E86: Muswellbrook Shire Council | F86: Muswellbrook | G86: Muswellbrook Shire | H86: 11 | I86: 162
B87: 15700 | C87: Nambucca Valley (A) | E87: Nambucca Shire Council | F87: Nambucca | G87: Nambucca Valley | H87: 11 | I87: 163
B88: 15750 | C88: Narrabri (A) | E88: Narrabri Shire Council | F88: Narrabri | G88: Narrabri Shire | H88: 11 | I88: 164
B89: 15800 | C89: Narrandera (A) | E89: Narrandera Shire Council | F89: Narrandera | G89: Narrandera Shire | H89: 10 | I89: 165
B90: 15850 | C90: Narromine (A) | E90: Narromine Shire Council | F90: Narromine | G90: Narromine Shire | H90: 10 | I90: 166
B91: 15900 | C91: Newcastle (C) | E91: Newcastle City Council | F91: Newcastle | G91: Newcastle City | H91: 5 | I91: 167
B92: 15950 | C92: North Sydney (A) | E92: North Sydney Council | F92: North Sydney | G92: North Sydney | H92: 3 | I92: 168
B93: 15990 | C93: Northern Beaches (A) | E93: Northern Beaches Council | F93: Northern Beaches | G93: Northern Beaches | H93: 3 | I93: 2087
B94: 16100 | C94: Oberon (A) | E94: Oberon Council | F94: Oberon | G94: Oberon | H94: 10 | I94: 2045
B95: 16150 | C95: Orange (C) | E95: Orange City Council | F95: Orange | G95: Orange City | H95: 4 | I95: 172
B96: 16200 | C96: Parkes (A) | E96: Parkes Shire Council | F96: Parkes | G96: Parkes Shire | H96: 11 | I96: 173
B97: 16260 | C97: Parramatta (C) | E97: City of Parramatta Council | F97: Parramatta | G97: City of Parramatta | H97: 3 | I97: 2089
B98: 16350 | C98: Penrith (C) | E98: Penrith City Council | F98: Penrith | G98: Penrith City | H98: 7 | I98: 176
B99: 16380 | C99: Port Macquarie-Hastings (A) | E99: Port Macquarie-Hastings Council | F99: Port Macquarie-Hastings | G99: Port Macquarie-Hastings | H99: 5 | I99: 124
B100: 16400 | C100: Port Stephens (A) | E100: Port Stephens Council | F100: Port Stephens | G100: Port Stephens | H100: 5 | I100: 178
B101: 16490 | C101: Queanbeyan-Palerang Regional (A) | E101: Queanbeyan-Palerang Regional Council | F101: Queanbeyan-Palerang Regional | G101: Queanbeyan-Palerang Regional | H101: 4 | I101: 2095
B102: 16550 | C102: Randwick (C) | E102: Randwick City Council | F102: Randwick | G102: Randwick City | H102: 3 | I102: 181
B103: 16610 | C103: Richmond Valley (A) | E103: Richmond Valley Council | F103: Richmond Valley | G103: Richmond Valley | H103: 4 | I103: 1981
B104: 16700 | C104: Ryde (C) | E104: City of Ryde Council | F104: Ryde | G104: City of Ryde | H104: 3 | I104: 184
B105: 16900 | C105: Shellharbour (C) | E105: Shellharbour City Council | F105: Shellharbour | G105: Shellharbour City | H105: 5 | I105: 188
B106: 16950 | C106: Shoalhaven (C) | E106: Shoalhaven City Council | F106: Shoalhaven | G106: Shoalhaven City | H106: 5 | I106: 189
B107: 17000 | C107: Singleton (A) | E107: Singleton Shire Council | F107: Singleton | G107: Singleton | H107: 4 | I107: 190
B108: 17040 | C108: Snowy Monaro Regional (A) | E108: Snowy Monaro Regional Council | F108: Snowy Monaro Regional | G108: Snowy Monaro Regional | H108: 4 | I108: 2096
B109: 17080 | C109: Snowy Valleys (A) | E109: Snowy Valleys Council | F109: Snowy Valleys | G109: Snowy Valleys | H109: 11 | I109: 2097
B110: 17100 | C110: Strathfield (A) | E110: Strathfield Municipal Council | F110: Strathfield | G110: Strathfield | H110: 2 | I110: 193
B111: 17150 | C111: Sutherland Shire (A) | E111: Sutherland Shire Council | F111: Sutherland | G111: Sutherland Shire | H111: 3 | I111: 194
B112: 17200 | C112: Sydney (C) | E112: City of Sydney Council | F112: Sydney | G112: City of Sydney | H112: 1 | I112: 2029
B113: 17310 | C113: Tamworth Regional (A) | E113: Tamworth Regional Council | F113: Tamworth Regional | G113: Tamworth Regional | H113: 4 | I113: 2038
B114: 17350 | C114: Temora (A) | E114: Temora Shire Council | F114: Temora | G114: Temora Shire | H114: 10 | I114: 198
B115: 17400 | C115: Tenterfield (A) | E115: Tenterfield Shire Council | F115: Tenterfield | G115: Tenterfield Shire | H115: 10 | I115: 199
B116: 17420 | C116: The Hills Shire (A) | E116: Hills Shire Council, The | F116: Hills | G116: The Hills Shire | H116: 7 | I116: 59
B117: 17550 | C117: Tweed (A) | E117: Tweed Shire Council | F117: Tweed | G117: Tweed Shire | H117: 5 | I117: 202
B118: 17620 | C118: Upper Hunter Shire (A) | E118: Upper Hunter Shire Council | F118: Upper Hunter | G118: Upper Hunter Shire | H118: 11 | I118: 2046
B119: 17640 | C119: Upper Lachlan Shire (A) | E119: Upper Lachlan Shire Council | F119: Upper Lachlan | G119: Upper Lachlan Shire | H119: 10 | I119: 2035
B120: 17650 | C120: Uralla (A) | E120: Uralla Shire Council | F120: Uralla | G120: Uralla Shire | H120: 10 | I120: 204
B121: 17750 | C121: Wagga Wagga (C) | E121: Wagga Wagga City Council | F121: Wagga Wagga | G121: Wagga Wagga City | H121: 4 | I121: 206
B122: 17850 | C122: Walcha (A) | E122: Walcha Council | F122: Walcha | G122: Walcha | H122: 9 | I122: 208
B123: 17900 | C123: Walgett (A) | E123: Walgett Shire Council | F123: Walgett | G123: Walgett Shire | H123: 10 | I123: 209
B124: 17950 | C124: Warren (A) | E124: Warren Shire Council | F124: Warren | G124: Warren Shire | H124: 9 | I124: 210
B125: 18020 | C125: Warrumbungle Shire (A) | E125: Warrumbungle Shire Council | F125: Warrumbungle | G125: Warrumbungle Shire | H125: 10 | I125: 2050
B126: 18050 | C126: Waverley (A) | E126: Waverley Council | F126: Waverley | G126: Waverley | H126: 3 | I126: 212
B127: 18100 | C127: Weddin (A) | E127: Weddin Shire Council | F127: Weddin | G127: Weddin Shire | H127: 9 | I127: 213
B128: 18200 | C128: Wentworth (A) | E128: Wentworth Shire Council | F128: Wentworth | G128: Wentworth Shire | H128: 10 | I128: 215
B129: 18250 | C129: Willoughby (C) | E129: Willoughby City Council | F129: Willoughby | G129: Willoughby City | H129: 3 | I129: 216
B130: 18350 | C130: Wingecarribee (A) | E130: Wingecarribee Shire Council | F130: Wingecarribee | G130: Wingecarribee Shire | H130: 4 | I130: 218
B131: 18400 | C131: Wollondilly (A) | E131: Wollondilly Shire Council | F131: Wollondilly | G131: Wollondilly Shire | H131: 6 | I131: 219
B132: 18450 | C132: Wollongong (C) | E132: Wollongong City Council | F132: Wollongong | G132: Wollongong City | H132: 5 | I132: 220
B133: 18500 | C133: Woollahra (A) | E133: Woollahra Municipal Council | F133: Woollahra | G133: Woollahra Municipal | H133: 2 | I133: 221
B134: 18710 | C134: Yass Valley (A) | E134: Yass Valley Council | F134: Yass Valley | G134: Yass Valley | H134: 11 | I134: 2036

Sheet ABS pop T1
B2: Source: | D2: https://www.abs.gov.au/statistics/people/population/regional-population/latest-release#data-download
C4: Regional population, 2019-20
C5: Released at 11.30am (Canberra time) 30 March 2021
C6: Table 1. Estimated resident population, Local Government Areas, New South Wales
E8: ERP at 30 June
E9: 2019 | F9: 2020 | H9: ='Supp val'!$C$7 -> Org. Name
C10: LGA code | D10: Local Government Area | E10: no. | F10: no.
C12: 10050 | D12: Albury (C) | E12: 54344 | F12: 55055 | H12: =INDEX(Names!$F$7:$F$134,MATCH(D12,Names!$C$7:$C$134,0)) -> Albury
C13: 10180 | D13: Armidale Regional (A) | E13: 29812 | F13: 29704 | H13: =INDEX(Names!$F$7:$F$134,MATCH(D13,Names!$C$7:$C$134,0)) -> Armidale Regional
C14: 10250 | D14: Ballina (A) | E14: 44622 | F14: 45217 | H14: =INDEX(Names!$F$7:$F$134,MATCH(D14,Names!$C$7:$C$134,0)) -> Ballina
C15: 10300 | D15: Balranald (A) | E15: 2338 | F15: 2306 | H15: =INDEX(Names!$F$7:$F$134,MATCH(D15,Names!$C$7:$C$134,0)) -> Balranald
C16: 10470 | D16: Bathurst Regional (A) | E16: 43612 | F16: 43996 | H16: =INDEX(Names!$F$7:$F$134,MATCH(D16,Names!$C$7:$C$134,0)) -> Bathurst Regional
C17: 10500 | D17: Bayside (A) | E17: 178351 | F17: 181472 | H17: =INDEX(Names!$F$7:$F$134,MATCH(D17,Names!$C$7:$C$134,0)) -> Bayside
C18: 10550 | D18: Bega Valley (A) | E18: 34473 | F18: 34727 | H18: =INDEX(Names!$F$7:$F$134,MATCH(D18,Names!$C$7:$C$134,0)) -> Bega Valley
C19: 10600 | D19: Bellingen (A) | E19: 12993 | F19: 13141 | H19: =INDEX(Names!$F$7:$F$134,MATCH(D19,Names!$C$7:$C$134,0)) -> Bellingen
C20: 10650 | D20: Berrigan (A) | E20: 8750 | F20: 8784 | H20: =INDEX(Names!$F$7:$F$134,MATCH(D20,Names!$C$7:$C$134,0)) -> Berrigan
C21: 10750 | D21: Blacktown (C) | E21: 374372 | F21: 382831 | H21: =INDEX(Names!$F$7:$F$134,MATCH(D21,Names!$C$7:$C$134,0)) -> Blacktown
C22: 10800 | D22: Bland (A) | E22: 5971 | F22: 5937 | H22: =INDEX(Names!$F$7:$F$134,MATCH(D22,Names!$C$7:$C$134,0)) -> Bland
C23: 10850 | D23: Blayney (A) | E23: 7378 | F23: 7382 | H23: =INDEX(Names!$F$7:$F$134,MATCH(D23,Names!$C$7:$C$134,0)) -> Blayney
C24: 10900 | D24: Blue Mountains (C) | E24: 79108 | F24: 79195 | H24: =INDEX(Names!$F$7:$F$134,MATCH(D24,Names!$C$7:$C$134,0)) -> Blue Mountains
C25: 10950 | D25: Bogan (A) | E25: 2580 | F25: 2529 | H25: =INDEX(Names!$F$7:$F$134,MATCH(D25,Names!$C$7:$C$134,0)) -> Bogan
C26: 11150 | D26: Bourke (A) | E26: 2590 | F26: 2625 | H26: =INDEX(Names!$F$7:$F$134,MATCH(D26,Names!$C$7:$C$134,0)) -> Bourke
C27: 11200 | D27: Brewarrina (A) | E27: 1611 | F27: 1553 | H27: =INDEX(Names!$F$7:$F$134,MATCH(D27,Names!$C$7:$C$134,0)) -> Brewarrina
C28: 11250 | D28: Broken Hill (C) | E28: 17477 | F28: 17269 | H28: =INDEX(Names!$F$7:$F$134,MATCH(D28,Names!$C$7:$C$134,0)) -> Broken Hill
C29: 11300 | D29: Burwood (A) | E29: 40596 | F29: 40866 | H29: =INDEX(Names!$F$7:$F$134,MATCH(D29,Names!$C$7:$C$134,0)) -> Burwood
C30: 11350 | D30: Byron (A) | E30: 35075 | F30: 35773 | H30: =INDEX(Names!$F$7:$F$134,MATCH(D30,Names!$C$7:$C$134,0)) -> Byron
C31: 11400 | D31: Cabonne (A) | E31: 13632 | F31: 13677 | H31: =INDEX(Names!$F$7:$F$134,MATCH(D31,Names!$C$7:$C$134,0)) -> Cabonne
C32: 11450 | D32: Camden (A) | E32: 101420 | F32: 107806 | H32: =INDEX(Names!$F$7:$F$134,MATCH(D32,Names!$C$7:$C$134,0)) -> Camden
C33: 11500 | D33: Campbelltown (C) (NSW) | E33: 170912 | F33: 174078 | H33: =INDEX(Names!$F$7:$F$134,MATCH(D33,Names!$C$7:$C$134,0)) -> Campbelltown
C34: 11520 | D34: Canada Bay (A) | E34: 96017 | F34: 96550 | H34: =INDEX(Names!$F$7:$F$134,MATCH(D34,Names!$C$7:$C$134,0)) -> Canada Bay
C35: 11570 | D35: Canterbury-Bankstown (A) | E35: 377836 | F35: 380406 | H35: =INDEX(Names!$F$7:$F$134,MATCH(D35,Names!$C$7:$C$134,0)) -> Canterbury-Bankstown
C36: 11600 | D36: Carrathool (A) | E36: 2798 | F36: 2796 | H36: =INDEX(Names!$F$7:$F$134,MATCH(D36,Names!$C$7:$C$134,0)) -> Carrathool
C37: 11650 | D37: Central Coast (C) (NSW) | E37: 343922 | F37: 345809 | H37: =INDEX(Names!$F$7:$F$134,MATCH(D37,Names!$C$7:$C$134,0)) -> Central Coast
C38: 11700 | D38: Central Darling (A) | E38: 1839 | F38: 1829 | H38: =INDEX(Names!$F$7:$F$134,MATCH(D38,Names!$C$7:$C$134,0)) -> Central Darling
C39: 11720 | D39: Cessnock (C) | E39: 59978 | F39: 61256 | H39: =INDEX(Names!$F$7:$F$134,MATCH(D39,Names!$C$7:$C$134,0)) -> Cessnock
C40: 11730 | D40: Clarence Valley (A) | E40: 51656 | F40: 51730 | H40: =INDEX(Names!$F$7:$F$134,MATCH(D40,Names!$C$7:$C$134,0)) -> Clarence Valley
C41: 11750 | D41: Cobar (A) | E41: 4572 | F41: 4417 | H41: =INDEX(Names!$F$7:$F$134,MATCH(D41,Names!$C$7:$C$134,0)) -> Cobar
C42: 11800 | D42: Coffs Harbour (C) | E42: 77265 | F42: 77648 | H42: =INDEX(Names!$F$7:$F$134,MATCH(D42,Names!$C$7:$C$134,0)) -> Coffs Harbour
C43: 12000 | D43: Coolamon (A) | E43: 4341 | F43: 4291 | H43: =INDEX(Names!$F$7:$F$134,MATCH(D43,Names!$C$7:$C$134,0)) -> Coolamon
C44: 12150 | D44: Coonamble (A) | E44: 3957 | F44: 3907 | H44: =INDEX(Names!$F$7:$F$134,MATCH(D44,Names!$C$7:$C$134,0)) -> Coonamble
C45: 12160 | D45: Cootamundra-Gundagai Regional (A) | E45: 11233 | F45: 11225 | H45: =INDEX(Names!$F$7:$F$134,MATCH(D45,Names!$C$7:$C$134,0)) -> Cootamundra-Gundagai Regional
C46: 12350 | D46: Cowra (A) | E46: 12741 | F46: 12730 | H46: =INDEX(Names!$F$7:$F$134,MATCH(D46,Names!$C$7:$C$134,0)) -> Cowra
C47: 12380 | D47: Cumberland (A) | E47: 241453 | F47: 242674 | H47: =INDEX(Names!$F$7:$F$134,MATCH(D47,Names!$C$7:$C$134,0)) -> Cumberland
C48: 12390 | D48: Dubbo Regional (A) | E48: 53710 | F48: 54044 | H48: =INDEX(Names!$F$7:$F$134,MATCH(D48,Names!$C$7:$C$134,0)) -> Dubbo Regional
C49: 12700 | D49: Dungog (A) | E49: 9422 | F49: 9664 | H49: =INDEX(Names!$F$7:$F$134,MATCH(D49,Names!$C$7:$C$134,0)) -> Dungog
C50: 12730 | D50: Edward River (A) | E50: 9083 | F50: 9083 | H50: =INDEX(Names!$F$7:$F$134,MATCH(D50,Names!$C$7:$C$134,0)) -> Edward River
C51: 12750 | D51: Eurobodalla (A) | E51: 38469 | F51: 38952 | H51: =INDEX(Names!$F$7:$F$134,MATCH(D51,Names!$C$7:$C$134,0)) -> Eurobodalla
C52: 12850 | D52: Fairfield (C) | E52: 211654 | F52: 210825 | H52: =INDEX(Names!$F$7:$F$134,MATCH(D52,Names!$C$7:$C$134,0)) -> Fairfield
C53: 12870 | D53: Federation (A) | E53: 12435 | F53: 12598 | H53: =INDEX(Names!$F$7:$F$134,MATCH(D53,Names!$C$7:$C$134,0)) -> Federation
C54: 12900 | D54: Forbes (A) | E54: 9904 | F54: 9920 | H54: =INDEX(Names!$F$7:$F$134,MATCH(D54,Names!$C$7:$C$134,0)) -> Forbes
C55: 12930 | D55: Georges River (A) | E55: 159431 | F55: 160272 | H55: =INDEX(Names!$F$7:$F$134,MATCH(D55,Names!$C$7:$C$134,0)) -> Georges River
C56: 12950 | D56: Gilgandra (A) | E56: 4239 | F56: 4229 | H56: =INDEX(Names!$F$7:$F$134,MATCH(D56,Names!$C$7:$C$134,0)) -> Gilgandra
C57: 13010 | D57: Glen Innes Severn (A) | E57: 8869 | F57: 8873 | H57: =INDEX(Names!$F$7:$F$134,MATCH(D57,Names!$C$7:$C$134,0)) -> Glen Innes Severn
C58: 13310 | D58: Goulburn Mulwaree (A) | E58: 31127 | F58: 31554 | H58: =INDEX(Names!$F$7:$F$134,MATCH(D58,Names!$C$7:$C$134,0)) -> Goulburn Mulwaree
C59: 13340 | D59: Greater Hume Shire (A) | E59: 10763 | F59: 10841 | H59: =INDEX(Names!$F$7:$F$134,MATCH(D59,Names!$C$7:$C$134,0)) -> Greater Hume
C60: 13450 | D60: Griffith (C) | E60: 27022 | F60: 27155 | H60: =INDEX(Names!$F$7:$F$134,MATCH(D60,Names!$C$7:$C$134,0)) -> Griffith
C61: 13550 | D61: Gunnedah (A) | E61: 12680 | F61: 12690 | H61: =INDEX(Names!$F$7:$F$134,MATCH(D61,Names!$C$7:$C$134,0)) -> Gunnedah
C62: 13660 | D62: Gwydir (A) | E62: 5352 | F62: 5299 | H62: =INDEX(Names!$F$7:$F$134,MATCH(D62,Names!$C$7:$C$134,0)) -> Gwydir
C63: 13800 | D63: Hawkesbury (C) | E63: 67288 | F63: 67749 | H63: =INDEX(Names!$F$7:$F$134,MATCH(D63,Names!$C$7:$C$134,0)) -> Hawkesbury
C64: 13850 | D64: Hay (A) | E64: 2948 | F64: 2943 | H64: =INDEX(Names!$F$7:$F$134,MATCH(D64,Names!$C$7:$C$134,0)) -> Hay
C65: 13910 | D65: Hilltops (A) | E65: 18701 | F65: 18617 | H65: =INDEX(Names!$F$7:$F$134,MATCH(D65,Names!$C$7:$C$134,0)) -> Hilltops
C66: 14000 | D66: Hornsby (A) | E66: 152004 | F66: 152419 | H66: =INDEX(Names!$F$7:$F$134,MATCH(D66,Names!$C$7:$C$134,0)) -> Hornsby
C67: 14100 | D67: Hunters Hill (A) | E67: 14975 | F67: 14962 | H67: =INDEX(Names!$F$7:$F$134,MATCH(D67,Names!$C$7:$C$134,0)) -> Hunters Hill
C68: 14170 | D68: Inner West (A) | E68: 200720 | F68: 201880 | H68: =INDEX(Names!$F$7:$F$134,MATCH(D68,Names!$C$7:$C$134,0)) -> Inner West
C69: 14220 | D69: Inverell (A) | E69: 17849 | F69: 17780 | H69: =INDEX(Names!$F$7:$F$134,MATCH(D69,Names!$C$7:$C$134,0)) -> Inverell
C70: 14300 | D70: Junee (A) | E70: 6683 | F70: 6676 | H70: =INDEX(Names!$F$7:$F$134,MATCH(D70,Names!$C$7:$C$134,0)) -> Junee
C71: 14350 | D71: Kempsey (A) | E71: 29742 | F71: 29921 | H71: =INDEX(Names!$F$7:$F$134,MATCH(D71,Names!$C$7:$C$134,0)) -> Kempsey
C72: 14400 | D72: Kiama (A) | E72: 23383 | F72: 23685 | H72: =INDEX(Names!$F$7:$F$134,MATCH(D72,Names!$C$7:$C$134,0)) -> Kiama
C73: 14500 | D73: Ku-ring-gai (A) | E73: 127079 | F73: 127603 | H73: =INDEX(Names!$F$7:$F$134,MATCH(D73,Names!$C$7:$C$134,0)) -> Ku-ring-gai
C74: 14550 | D74: Kyogle (A) | E74: 8796 | F74: 8788 | H74: =INDEX(Names!$F$7:$F$134,MATCH(D74,Names!$C$7:$C$134,0)) -> Kyogle
C75: 14600 | D75: Lachlan (A) | E75: 6160 | F75: 6089 | H75: =INDEX(Names!$F$7:$F$134,MATCH(D75,Names!$C$7:$C$134,0)) -> Lachlan
C76: 14650 | D76: Lake Macquarie (C) | E76: 205875 | F76: 207775 | H76: =INDEX(Names!$F$7:$F$134,MATCH(D76,Names!$C$7:$C$134,0)) -> Lake Macquarie
C77: 14700 | D77: Lane Cove (A) | E77: 40128 | F77: 40534 | H77: =INDEX(Names!$F$7:$F$134,MATCH(D77,Names!$C$7:$C$134,0)) -> Lane Cove
C78: 14750 | D78: Leeton (A) | E78: 11444 | F78: 11343 | H78: =INDEX(Names!$F$7:$F$134,MATCH(D78,Names!$C$7:$C$134,0)) -> Leeton
C79: 14850 | D79: Lismore (C) | E79: 43687 | F79: 43667 | H79: =INDEX(Names!$F$7:$F$134,MATCH(D79,Names!$C$7:$C$134,0)) -> Lismore
C80: 14870 | D80: Lithgow (C) | E80: 21603 | F80: 21516 | H80: =INDEX(Names!$F$7:$F$134,MATCH(D80,Names!$C$7:$C$134,0)) -> Lithgow
C81: 14900 | D81: Liverpool (C) | E81: 227545 | F81: 231296 | H81: =INDEX(Names!$F$7:$F$134,MATCH(D81,Names!$C$7:$C$134,0)) -> Liverpool
C82: 14920 | D82: Liverpool Plains (A) | E82: 7903 | F82: 7853 | H82: =INDEX(Names!$F$7:$F$134,MATCH(D82,Names!$C$7:$C$134,0)) -> Liverpool Plains
C83: 14950 | D83: Lockhart (A) | E83: 3285 | F83: 3259 | H83: =INDEX(Names!$F$7:$F$134,MATCH(D83,Names!$C$7:$C$134,0)) -> Lockhart
C84: 15050 | D84: Maitland (C) | E84: 85155 | F84: 87395 | H84: =INDEX(Names!$F$7:$F$134,MATCH(D84,Names!$C$7:$C$134,0)) -> Maitland
C85: 15240 | D85: Mid-Coast (A) | E85: 93826 | F85: 94395 | H85: =INDEX(Names!$F$7:$F$134,MATCH(D85,Names!$C$7:$C$134,0)) -> Mid-Coast
C86: 15270 | D86: Mid-Western Regional (A) | E86: 25248 | F86: 25367 | H86: =INDEX(Names!$F$7:$F$134,MATCH(D86,Names!$C$7:$C$134,0)) -> Mid-Western Regional
C87: 15300 | D87: Moree Plains (A) | E87: 13260 | F87: 13077 | H87: =INDEX(Names!$F$7:$F$134,MATCH(D87,Names!$C$7:$C$134,0)) -> Moree Plains
C88: 15350 | D88: Mosman (A) | E88: 30960 | F88: 30785 | H88: =INDEX(Names!$F$7:$F$134,MATCH(D88,Names!$C$7:$C$134,0)) -> Mosman
C89: 15520 | D89: Murray River (A) | E89: 12118 | F89: 12330 | H89: =INDEX(Names!$F$7:$F$134,MATCH(D89,Names!$C$7:$C$134,0)) -> Murray River
C90: 15560 | D90: Murrumbidgee (A) | E90: 3917 | F90: 3916 | H90: =INDEX(Names!$F$7:$F$134,MATCH(D90,Names!$C$7:$C$134,0)) -> Murrumbidgee (new)
C91: 15650 | D91: Muswellbrook (A) | E91: 16375 | F91: 16355 | H91: =INDEX(Names!$F$7:$F$134,MATCH(D91,Names!$C$7:$C$134,0)) -> Muswellbrook
C92: 15700 | D92: Nambucca Valley (A) | E92: 19802 | F92: 19861 | H92: =INDEX(Names!$F$7:$F$134,MATCH(D92,Names!$C$7:$C$134,0)) -> Nambucca
C93: 15750 | D93: Narrabri (A) | E93: 13134 | F93: 13049 | H93: =INDEX(Names!$F$7:$F$134,MATCH(D93,Names!$C$7:$C$134,0)) -> Narrabri
C94: 15800 | D94: Narrandera (A) | E94: 5898 | F94: 5858 | H94: =INDEX(Names!$F$7:$F$134,MATCH(D94,Names!$C$7:$C$134,0)) -> Narrandera
C95: 15850 | D95: Narromine (A) | E95: 6516 | F95: 6460 | H95: =INDEX(Names!$F$7:$F$134,MATCH(D95,Names!$C$7:$C$134,0)) -> Narromine
C96: 15900 | D96: Newcastle (C) | E96: 165541 | F96: 167363 | H96: =INDEX(Names!$F$7:$F$134,MATCH(D96,Names!$C$7:$C$134,0)) -> Newcastle
C97: 15950 | D97: North Sydney (A) | E97: 74957 | F97: 75094 | H97: =INDEX(Names!$F$7:$F$134,MATCH(D97,Names!$C$7:$C$134,0)) -> North Sydney
C98: 15990 | D98: Northern Beaches (A) | E98: 273409 | F98: 274041 | H98: =INDEX(Names!$F$7:$F$134,MATCH(D98,Names!$C$7:$C$134,0)) -> Northern Beaches
C99: 16100 | D99: Oberon (A) | E99: 5411 | F99: 5419 | H99: =INDEX(Names!$F$7:$F$134,MATCH(D99,Names!$C$7:$C$134,0)) -> Oberon
C100: 16150 | D100: Orange (C) | E100: 42445 | F100: 42503 | H100: =INDEX(Names!$F$7:$F$134,MATCH(D100,Names!$C$7:$C$134,0)) -> Orange
C101: 16200 | D101: Parkes (A) | E101: 14835 | F101: 14728 | H101: =INDEX(Names!$F$7:$F$134,MATCH(D101,Names!$C$7:$C$134,0)) -> Parkes
C102: 16260 | D102: Parramatta (C) | E102: 257094 | F102: 260296 | H102: =INDEX(Names!$F$7:$F$134,MATCH(D102,Names!$C$7:$C$134,0)) -> Parramatta
C103: 16350 | D103: Penrith (C) | E103: 212944 | F103: 216282 | H103: =INDEX(Names!$F$7:$F$134,MATCH(D103,Names!$C$7:$C$134,0)) -> Penrith
C104: 16380 | D104: Port Macquarie-Hastings (A) | E104: 84515 | F104: 85952 | H104: =INDEX(Names!$F$7:$F$134,MATCH(D104,Names!$C$7:$C$134,0)) -> Port Macquarie-Hastings
C105: 16400 | D105: Port Stephens (A) | E105: 73472 | F105: 74506 | H105: =INDEX(Names!$F$7:$F$134,MATCH(D105,Names!$C$7:$C$134,0)) -> Port Stephens
C106: 16490 | D106: Queanbeyan-Palerang Regional (A) | E106: 61089 | F106: 62239 | H106: =INDEX(Names!$F$7:$F$134,MATCH(D106,Names!$C$7:$C$134,0)) -> Queanbeyan-Palerang Regional
C107: 16550 | D107: Randwick (C) | E107: 155521 | F107: 156619 | H107: =INDEX(Names!$F$7:$F$134,MATCH(D107,Names!$C$7:$C$134,0)) -> Randwick
C108: 16610 | D108: Richmond Valley (A) | E108: 23462 | F108: 23490 | H108: =INDEX(Names!$F$7:$F$134,MATCH(D108,Names!$C$7:$C$134,0)) -> Richmond Valley
C109: 16700 | D109: Ryde (C) | E109: 131186 | F109: 133224 | H109: =INDEX(Names!$F$7:$F$134,MATCH(D109,Names!$C$7:$C$134,0)) -> Ryde
C110: 16900 | D110: Shellharbour (C) | E110: 73225 | F110: 74622 | H110: =INDEX(Names!$F$7:$F$134,MATCH(D110,Names!$C$7:$C$134,0)) -> Shellharbour
C111: 16950 | D111: Shoalhaven (C) | E111: 105637 | F111: 107191 | H111: =INDEX(Names!$F$7:$F$134,MATCH(D111,Names!$C$7:$C$134,0)) -> Shoalhaven
C112: 17000 | D112: Singleton (A) | E112: 23457 | F112: 23380 | H112: =INDEX(Names!$F$7:$F$134,MATCH(D112,Names!$C$7:$C$134,0)) -> Singleton
C113: 17040 | D113: Snowy Monaro Regional (A) | E113: 20793 | F113: 20997 | H113: =INDEX(Names!$F$7:$F$134,MATCH(D113,Names!$C$7:$C$134,0)) -> Snowy Monaro Regional
C114: 17080 | D114: Snowy Valleys (A) | E114: 14476 | F114: 14412 | H114: =INDEX(Names!$F$7:$F$134,MATCH(D114,Names!$C$7:$C$134,0)) -> Snowy Valleys
C115: 17100 | D115: Strathfield (A) | E115: 46896 | F115: 47767 | H115: =INDEX(Names!$F$7:$F$134,MATCH(D115,Names!$C$7:$C$134,0)) -> Strathfield
C116: 17150 | D116: Sutherland Shire (A) | E116: 230579 | F116: 232369 | H116: =INDEX(Names!$F$7:$F$134,MATCH(D116,Names!$C$7:$C$134,0)) -> Sutherland
C117: 17200 | D117: Sydney (C) | E117: 245942 | F117: 248736 | H117: =INDEX(Names!$F$7:$F$134,MATCH(D117,Names!$C$7:$C$134,0)) -> Sydney
C118: 17310 | D118: Tamworth Regional (A) | E118: 62531 | F118: 62545 | H118: =INDEX(Names!$F$7:$F$134,MATCH(D118,Names!$C$7:$C$134,0)) -> Tamworth Regional
C119: 17350 | D119: Temora (A) | E119: 6307 | F119: 6274 | H119: =INDEX(Names!$F$7:$F$134,MATCH(D119,Names!$C$7:$C$134,0)) -> Temora
C120: 17400 | D120: Tenterfield (A) | E120: 6594 | F120: 6470 | H120: =INDEX(Names!$F$7:$F$134,MATCH(D120,Names!$C$7:$C$134,0)) -> Tenterfield
C121: 17420 | D121: The Hills Shire (A) | E121: 177927 | F121: 183791 | H121: =INDEX(Names!$F$7:$F$134,MATCH(D121,Names!$C$7:$C$134,0)) -> Hills
C122: 17550 | D122: Tweed (A) | E122: 96985 | F122: 98382 | H122: =INDEX(Names!$F$7:$F$134,MATCH(D122,Names!$C$7:$C$134,0)) -> Tweed
C123: 17620 | D123: Upper Hunter Shire (A) | E123: 14178 | F123: 14167 | H123: =INDEX(Names!$F$7:$F$134,MATCH(D123,Names!$C$7:$C$134,0)) -> Upper Hunter
C124: 17640 | D124: Upper Lachlan Shire (A) | E124: 8059 | F124: 8274 | H124: =INDEX(Names!$F$7:$F$134,MATCH(D124,Names!$C$7:$C$134,0)) -> Upper Lachlan
C125: 17650 | D125: Uralla (A) | E125: 6011 | F125: 5944 | H125: =INDEX(Names!$F$7:$F$134,MATCH(D125,Names!$C$7:$C$134,0)) -> Uralla
C126: 17750 | D126: Wagga Wagga (C) | E126: 65249 | F126: 65770 | H126: =INDEX(Names!$F$7:$F$134,MATCH(D126,Names!$C$7:$C$134,0)) -> Wagga Wagga
C127: 17850 | D127: Walcha (A) | E127: 3134 | F127: 3105 | H127: =INDEX(Names!$F$7:$F$134,MATCH(D127,Names!$C$7:$C$134,0)) -> Walcha
C128: 17900 | D128: Walgett (A) | E128: 5952 | F128: 5828 | H128: =INDEX(Names!$F$7:$F$134,MATCH(D128,Names!$C$7:$C$134,0)) -> Walgett
C129: 17950 | D129: Warren (A) | E129: 2697 | F129: 2716 | H129: =INDEX(Names!$F$7:$F$134,MATCH(D129,Names!$C$7:$C$134,0)) -> Warren
C130: 18020 | D130: Warrumbungle Shire (A) | E130: 9277 | F130: 9209 | H130: =INDEX(Names!$F$7:$F$134,MATCH(D130,Names!$C$7:$C$134,0)) -> Warrumbungle
C131: 18050 | D131: Waverley (A) | E131: 74222 | F131: 74276 | H131: =INDEX(Names!$F$7:$F$134,MATCH(D131,Names!$C$7:$C$134,0)) -> Waverley
C132: 18100 | D132: Weddin (A) | E132: 3613 | F132: 3596 | H132: =INDEX(Names!$F$7:$F$134,MATCH(D132,Names!$C$7:$C$134,0)) -> Weddin
C133: 18200 | D133: Wentworth (A) | E133: 7053 | F133: 7090 | H133: =INDEX(Names!$F$7:$F$134,MATCH(D133,Names!$C$7:$C$134,0)) -> Wentworth
C134: 18250 | D134: Willoughby (C) | E134: 81109 | F134: 81196 | H134: =INDEX(Names!$F$7:$F$134,MATCH(D134,Names!$C$7:$C$134,0)) -> Willoughby
C135: 18350 | D135: Wingecarribee (A) | E135: 51127 | F135: 51760 | H135: =INDEX(Names!$F$7:$F$134,MATCH(D135,Names!$C$7:$C$134,0)) -> Wingecarribee
C136: 18400 | D136: Wollondilly (A) | E136: 53143 | F136: 54005 | H136: =INDEX(Names!$F$7:$F$134,MATCH(D136,Names!$C$7:$C$134,0)) -> Wollondilly
C137: 18450 | D137: Wollongong (C) | E137: 218076 | F137: 219798 | H137: =INDEX(Names!$F$7:$F$134,MATCH(D137,Names!$C$7:$C$134,0)) -> Wollongong
C138: 18500 | D138: Woollahra (A) | E138: 59345 | F138: 59431 | H138: =INDEX(Names!$F$7:$F$134,MATCH(D138,Names!$C$7:$C$134,0)) -> Woollahra
C139: 18710 | D139: Yass Valley (A) | E139: 17086 | F139: 17321 | H139: =INDEX(Names!$F$7:$F$134,MATCH(D139,Names!$C$7:$C$134,0)) -> Yass Valley
C141: 19399 | D141: Unincorporated NSW | E141: 1026 | F141: 961
D143: TOTAL NEW SOUTH WALES | E143: 8087379 | F143: 8167532
C146: Source: Regional population, 2019-20
C148: © Commonwealth of Australia 2021

Sheet Supp val
B2: Sources | C2: Annual LGA accounts (collated by OLG)
C3: For Central Coast | E3: Financial Reports Central Coast Council 1 July 2019 to 30 June 2020, Special Schedules, p3
D5: Income before supplementary valuations in 2019-20 | E5: Supplemetary valuations in 2019-20
D6: Schedule 9 - Last Year Notional General Income Yield - 2020-21 | E6: Schedule 9 - Plus or minus Adjustments - 2020-21
B7: Org. Id | C7: Org. Name | D7: C454_Item11797 | E7: C454_Item11799
B8: 2047 | C8: Albury | D8: 43365000 | E8: 391000
B9: 2079 | C9: Armidale Regional | D9: 18786000 | E9: 21000
B10: 54 | C10: Ballina | D10: 24469000 | E10: 500000
B11: 55 | C11: Balranald | D11: 2510000 | E11: 21000
B12: 2043 | C12: Bathurst Regional | D12: 27518000 | E12: 194000
B13: 2099 | C13: Bayside | D13: 91069000 | E13: 811000
B14: 60 | C14: Bega Valley | D14: 24305000 | E14: 225000
B15: 61 | C15: Bellingen | D15: 8276000 | E15: 45000
B16: 62 | C16: Berrigan | D16: 5302000 | E16: 12000
B17: 64 | C17: Blacktown | D17: 175512000 | E17: 4002000
B18: 65 | C18: Bland | D18: 6701000 | E18: 4000
B19: 66 | C19: Blayney | D19: 8858000 | E19: 3000
B20: 67 | C20: Blue Mountains | D20: 69666000 | E20: 16000
B21: 68 | C21: Bogan | D21: 2913000 | E21: 83000
B22: 72 | C22: Bourke | D22: 1909000 | E22: -1000
B23: 73 | C23: Brewarrina | D23: 1086000 | E23: 0
B24: 74 | C24: Broken Hill | D24: 15799000 | E24: 89000
B25: 75 | C25: Burwood | D25: 24061000 | E25: 859000
B26: 76 | C26: Byron | D26: 24828000 | E26: 95000
B27: 77 | C27: Cabonne | D27: 10418000 | E27: 13000
B28: 78 | C28: Camden | D28: 58290000 | E28: 1186000
B29: 79 | C29: Campbelltown | D29: 92982000 | E29: 1238000
B30: 1989 | C30: Canada Bay | D30: 39785000 | E30: 35000
B31: 2080 | C31: Canterbury Bankstown | D31: 169046000 | E31: 935000
B32: 81 | C32: Carrathool | D32: 3457000 | E32: 0
B33: 2088 | C33: Central Coast | D33: 170504000 | E33: 438000
B34: 83 | C34: Central Darling | D34: 835000 | E34: -3000
B35: 84 | C35: Cessnock | D35: 39242000 | E35: 829000
B36: 2037 | C36: Clarence Valley | D36: 33583000 | E36: 275000
B37: 85 | C37: Cobar | D37: 4050000 | E37: 14000
B38: 86 | C38: Coffs Harbour | D38: 50109000 | E38: 246000
B39: 90 | C39: Coolamon | D39: 2451000 | E39: 0
B40: 93 | C40: Coonamble | D40: 4836000 | E40: -1000
B41: 2094 | C41: Cootamundra-Gundagai Regional | D41: 7461000 | E41: -1000
B42: 97 | C42: Cowra | D42: 6967000 | E42: 15000
B43: 2090 | C43: Cumberland | D43: 97919000 | E43: -515000
B44: 2098 | C44: Dubbo Regional | D44: 37334000 | E44: 229000
B45: 104 | C45: Dungog | D45: 6546000 | E45: 60000
B46: 2091 | C46: Edward River | D46: 7461000 | E46: -40000
B47: 105 | C47: Eurobodalla | D47: 30846000 | E47: 86000
B48: 107 | C48: Fairfield | D48: 84985000 | E48: 313000
B49: 2092 | C49: Federation | D49: 8015000 | E49: 35000
B50: 108 | C50: Forbes | D50: 7604000 | E50: 22000
B51: 2093 | C51: Georges River | D51: 70235000 | E51: 440000
B52: 109 | C52: Gilgandra | D52: 5077000 | E52: 3000
B53: 2053 | C53: Glen Innes Severn | D53: 7005000 | E53: 27000
B54: 2032 | C54: Goulburn Mulwaree | D54: 20628000 | E54: 280000
B55: 2049 | C55: Greater Hume | D55: 8740000 | E55: 69000
B56: 118 | C56: Griffith | D56: 17405000 | E56: 91000
B57: 120 | C57: Gunnedah | D57: 13279000 | E57: -9000
B58: 2039 | C58: Gwydir | D58: 8007000 | E58: 21000
B59: 125 | C59: Hawkesbury | D59: 38392000 | E59: 219000
B60: 126 | C60: Hay | D60: 2424000 | E60: 8000
B61: 59 | C61: Hills | D61: 74273000 | E61: 1816000
B62: 2081 | C62: Hilltops | D62: 13489000 | E62: 0
B63: 129 | C63: Hornsby | D63: 70266000 | E63: 325000
B64: 131 | C64: Hunters Hill | D64: 9519000 | E64: 14000
B65: 2083 | C65: Inner West | D65: 122109000 | E65: 29000
B66: 133 | C66: Inverell | D66: 13548000 | E66: 449000
B67: 135 | C67: Junee | D67: 4059000 | E67: 21000
B68: 136 | C68: Kempsey | D68: 20685000 | E68: 105000
B69: 137 | C69: Kiama | D69: 17874000 | E69: 75000
B70: 139 | C70: Ku-ring-gai | D70: 66563000 | E70: 581000
B71: 140 | C71: Kyogle | D71: 7322000 | E71: 50000
B72: 141 | C72: Lachlan | D72: 7513000 | E72: 4000
B73: 142 | C73: Lake Macquarie | D73: 138672000 | E73: 1214000
B74: 143 | C74: Lane Cove | D74: 24991000 | E74: 600000
B75: 144 | C75: Leeton | D75: 7467000 | E75: 9000
B76: 146 | C76: Lismore | D76: 31037000 | E76: 90000
B77: 2044 | C77: Lithgow | D77: 13885000 | E77: 3000
B78: 147 | C78: Liverpool | D78: 103541000 | E78: 1413000
B79: 2040 | C79: Liverpool Plains | D79: 7496000 | E79: 18000
B80: 148 | C80: Lockhart | D80: 2477000 | E80: 1000
B81: 150 | C81: Maitland | D81: 67478000 | E81: 2094000
B82: 2084 | C82: Mid-Coast | D82: 79971000 | E82: 308000
B83: 2042 | C83: Mid-Western Regional | D83: 27731000 | E83: 137000
B84: 155 | C84: Moree Plains | D84: 23507000 | E84: -8000
B85: 156 | C85: Mosman | D85: 20587000 | E85: 6000
B86: 2085 | C86: Murray River | D86: 10545000 | E86: 97000
B87: 2086 | C87: Murrumbidgee | D87: 4330000 | E87: -4000
B88: 162 | C88: Muswellbrook | D88: 17722000 | E88: 939000
B89: 163 | C89: Nambucca Valley | D89: 11258000 | E89: 78000
B90: 164 | C90: Narrabri | D90: 13538000 | E90: 6000
B91: 165 | C91: Narrandera | D91: 4950000 | E91: 1000
B92: 166 | C92: Narromine | D92: 5872000 | E92: -8000
B93: 167 | C93: Newcastle | D93: 159676000 | E93: 961000
B94: 168 | C94: North Sydney | D94: 48530000 | E94: -131000
B95: 2087 | C95: Northern Beaches | D95: 167900000 | E95: 852000
B96: 2045 | C96: Oberon | D96: 4560000 | E96: 16000
B97: 172 | C97: Orange | D97: 34283000 | E97: 268000
B98: 173 | C98: Parkes | D98: 14104000 | E98: -13000
B99: 2089 | C99: Parramatta | D99: 148650000 | E99: 2312000
B100: 176 | C100: Penrith | D100: 128469000 | E100: 1060000
B101: 124 | C101: Port Macquarie-Hastings | D101: 52287000 | E101: 371000
B102: 178 | C102: Port Stephens | D102: 43572000 | E102: 334000
B103: 2095 | C103: Queanbeyan-Palerang Regional | D103: 37531000 | E103: 737000
B104: 181 | C104: Randwick | D104: 87430000 | E104: 69000
B105: 1981 | C105: Richmond Valley | D105: 13175000 | E105: 41000
B106: 184 | C106: Ryde | D106: 70973000 | E106: 2047000
B107: 188 | C107: Shellharbour | D107: 49667000 | E107: 266000
B108: 189 | C108: Shoalhaven | D108: 77640000 | E108: 387000
B109: 190 | C109: Singleton | D109: 22122000 | E109: 296000
B110: 2096 | C110: Snowy Monaro Regional | D110: 16311000 | E110: 140000
B111: 2097 | C111: Snowy Valleys | D111: 9409000 | E111: 10000
B112: 193 | C112: Strathfield | D112: 18421000 | E112: 261000
B113: 194 | C113: Sutherland | D113: 130839000 | E113: 1151000
B114: 2029 | C114: Sydney | D114: 305065000 | E114: 1471000
B115: 2038 | C115: Tamworth Regional | D115: 37073000 | E115: 240000
B116: 198 | C116: Temora | D116: 4042000 | E116: 3000
B117: 199 | C117: Tenterfield | D117: 4598000 | E117: 0
B118: 202 | C118: Tweed | D118: 63741000 | E118: 250000
B119: 2046 | C119: Upper Hunter | D119: 11098000 | E119: 18000
B120: 2035 | C120: Upper Lachlan | D120: 7325000 | E120: 70000
B121: 204 | C121: Uralla | D121: 3909000 | E121: 0
B122: 206 | C122: Wagga Wagga | D122: 45251000 | E122: 496000
B123: 208 | C123: Walcha | D123: 3485000 | E123: 0
B124: 209 | C124: Walgett | D124: 5662000 | E124: 1000
B125: 210 | C125: Warren | D125: 4901000 | E125: 5000
B126: 2050 | C126: Warrumbungle | D126: 8153000 | E126: 6000
B127: 212 | C127: Waverley | D127: 46068000 | E127: -75000
B128: 213 | C128: Weddin | D128: 2835000 | E128: -7000
B129: 215 | C129: Wentworth | D129: 5271000 | E129: 54000
B130: 216 | C130: Willoughby | D130: 51651000 | E130: 28000
B131: 218 | C131: Wingecarribee | D131: 50857000 | E131: 391000
B132: 219 | C132: Wollondilly | D132: 38393000 | E132: 407000
B133: 220 | C133: Wollongong | D133: 170562000 | E133: 827000
B134: 221 | C134: Woollahra | D134: 40337000 | E134: 71000
B135: 2036 | C135: Yass Valley | D135: 10933000 | E135: 86000

Sheet Pop calcs
B2: Population factor calculations
D3: ='Rate Peg'!D5 -> 2022
D4: ="Population factor for Rate Peg from 1 July "&D3 -> Population factor for Rate Peg from 1 July 2022
B10: ='Supp val'!B7 -> Org. Id | C10: ='Supp val'!C7 -> Org. Name | D10: ="ERP as at 30 June "&'ABS pop T1'!E9 -> ERP as at 30 June 2019 | E10: ="ERP as at 30 June "&'ABS pop T1'!F9 -> ERP as at 30 June 2020 | F10: Change in population (unrounded) | G10: ='Supp val'!D6 -> Schedule 9 - Last Year Notional General Income Yield - 2020-21 | H10: ='Supp val'!E6 -> Schedule 9 - Plus or minus Adjustments - 2020-21 | I10: Supplementary valuations percentage (unrounded) | J10: Population factor (unrounded)
B11: =Names!I7 -> 2047 | C11: =Names!F7 -> Albury | D11: =INDEX('ABS pop T1'!E$12:E$139,MATCH($C11,'ABS pop T1'!$H$12:$H$139,0)) -> 54344 | E11: =INDEX('ABS pop T1'!F$12:F$139,MATCH($C11,'ABS pop T1'!$H$12:$H$139,0)) -> 55055 | F11: =MAX(0,E11/D11-1) -> 0.01308332107 | G11: =INDEX('Supp val'!D$8:D$135,MATCH($B11,'Supp val'!$B$8:$B$135,0)) -> 43365000 | H11: =INDEX('Supp val'!E$8:E$135,MATCH($B11,'Supp val'!$B$8:$B$135,0)) -> 391000 | I11: =MAX(0,H11/G11) -> 0.009016487951 | J11: =MAX(0,F11-I11) -> 0.004066833115
B12: =Names!I8 -> 2079 | C12: =Names!F8 -> Armidale Regional | D12: =INDEX('ABS pop T1'!E$12:E$139,MATCH($C12,'ABS pop T1'!$H$12:$H$139,0)) -> 29812 | E12: =INDEX('ABS pop T1'!F$12:F$139,MATCH($C12,'ABS pop T1'!$H$12:$H$139,0)) -> 29704 | F12: =MAX(0,E12/D12-1) -> 0 | G12: =INDEX('Supp val'!D$8:D$135,MATCH($B12,'Supp val'!$B$8:$B$135,0)) -> 18786000 | H12: =INDEX('Supp val'!E$8:E$135,MATCH($B12,'Supp val'!$B$8:$B$135,0)) -> 21000 | I12: =MAX(0,H12/G12) -> 0.001117853721 | J12: =MAX(0,F12-I12) -> 0
B13: =Names!I9 -> 54 | C13: =Names!F9 -> Ballina | D13: =INDEX('ABS pop T1'!E$12:E$139,MATCH($C13,'ABS pop T1'!$H$12:$H$139,0)) -> 44622 | E13: =INDEX('ABS pop T1'!F$12:F$139,MATCH($C13,'ABS pop T1'!$H$12:$H$139,0)) -> 45217 | F13: 0.01333422975 | G13: =INDEX('Supp val'!D$8:D$135,MATCH($B13,'Supp val'!$B$8:$B$135,0)) -> 24469000 | H13: =INDEX('Supp val'!E$8:E$135,MATCH($B13,'Supp val'!$B$8:$B$135,0)) -> 500000 | I13: 0.02043401855 | J13: 0
B14: =Names!I10 -> 55 | C14: =Names!F10 -> Balranald | D14: =INDEX('ABS pop T1'!E$12:E$139,MATCH($C14,'ABS pop T1'!$H$12:$H$139,0)) -> 2338 | E14: =INDEX('ABS pop T1'!F$12:F$139,MATCH($C14,'ABS pop T1'!$H$12:$H$139,0)) -> 2306 | F14: 0 | G14: =INDEX('Supp val'!D$8:D$135,MATCH($B14,'Supp val'!$B$8:$B$135,0)) -> 2510000 | H14: =INDEX('Supp val'!E$8:E$135,MATCH($B14,'Supp val'!$B$8:$B$135,0)) -> 21000 | I14: =MAX(0,H14/G14) -> 0.008366533865 | J14: 0
B15: =Names!I11 -> 2043 | C15: =Names!F11 -> Bathurst Regional | D15: =INDEX('ABS pop T1'!E$12:E$139,MATCH($C15,'ABS pop T1'!$H$12:$H$139,0)) -> 43612 | E15: =INDEX('ABS pop T1'!F$12:F$139,MATCH($C15,'ABS pop T1'!$H$12:$H$139,0)) -> 43996 | F15: 0.008804916078 | G15: =INDEX('Supp val'!D$8:D$135,MATCH($B15,'Supp val'!$B$8:$B$135,0)) -> 27518000 | H15: =INDEX('Supp val'!E$8:E$135,MATCH($B15,'Supp val'!$B$8:$B$135,0)) -> 194000 | I15: 0.007049930954 | J15: 0.001754985124
B16: =Names!I12 -> 2099 | C16: =Names!F12 -> Bayside | D16: =INDEX('ABS pop T1'!E$12:E$139,MATCH($C16,'ABS pop T1'!$H$12:$H$139,0)) -> 178351 | E16: =INDEX('ABS pop T1'!F$12:F$139,MATCH($C16,'ABS pop T1'!$H$12:$H$139,0)) -> 181472 | F16: 0.01749920101 | G16: =INDEX('Supp val'!D$8:D$135,MATCH($B16,'Supp val'!$B$8:$B$135,0)) -> 91069000 | H16: =INDEX('Supp val'!E$8:E$135,MATCH($B16,'Supp val'!$B$8:$B$135,0)) -> 811000 | I16: 0.008905335515 | J16: 0.008593865499
B17: =Names!I13 -> 60 | C17: =Names!F13 -> Bega Valley | D17: =INDEX('ABS pop T1'!E$12:E$139,MATCH($C17,'ABS pop T1'!$H$12:$H$139,0)) -> 34473 | E17: =INDEX('ABS pop T1'!F$12:F$139,MATCH($C17,'ABS pop T1'!$H$12:$H$139,0)) -> 34727 | F17: 0.007368085168 | G17: =INDEX('Supp val'!D$8:D$135,MATCH($B17,'Supp val'!$B$8:$B$135,0)) -> 24305000 | H17: =INDEX('Supp val'!E$8:E$135,MATCH($B17,'Supp val'!$B$8:$B$135,0)) -> 225000 | I17: 0.009257354454 | J17: 0
B18: =Names!I14 -> 61 | C18: =Names!F14 -> Bellingen | D18: =INDEX('ABS pop T1'!E$12:E$139,MATCH($C18,'ABS pop T1'!$H$12:$H$139,0)) -> 12993 | E18: =INDEX('ABS pop T1'!F$12:F$139,MATCH($C18,'ABS pop T1'!$H$12:$H$139,0)) -> 13141 | F18: 0.01139074886 | G18: =INDEX('Supp val'!D$8:D$135,MATCH($B18,'Supp val'!$B$8:$B$135,0)) -> 8276000 | H18: =INDEX('Supp val'!E$8:E$135,MATCH($B18,'Supp val'!$B$8:$B$135,0)) -> 45000 | I18: 0.005437409377 | J18: 0.005953339488
B19: =Names!I15 -> 62 | C19: =Names!F15 -> Berrigan | D19: =INDEX('ABS pop T1'!E$12:E$139,MATCH($C19,'ABS pop T1'!$H$12:$H$139,0)) -> 8750 | E19: =INDEX('ABS pop T1'!F$12:F$139,MATCH($C19,'ABS pop T1'!$H$12:$H$139,0)) -> 8784 | F19: 0.003885714286 | G19: =INDEX('Supp val'!D$8:D$135,MATCH($B19,'Supp val'!$B$8:$B$135,0)) -> 5302000 | H19: =INDEX('Supp val'!E$8:E$135,MATCH($B19,'Supp val'!$B$8:$B$135,0)) -> 12000 | I19: =MAX(0,H19/G19) -> 0.002263296869 | J19: 0.001622417417
B20: =Names!I16 -> 64 | C20: =Names!F16 -> Blacktown | D20: =INDEX('ABS pop T1'!E$12:E$139,MATCH($C20,'ABS pop T1'!$H$12:$H$139,0)) -> 374372 | E20: =INDEX('ABS pop T1'!F$12:F$139,MATCH($C20,'ABS pop T1'!$H$12:$H$139,0)) -> 382831 | F20: 0.02259517272 | G20: =INDEX('Supp val'!D$8:D$135,MATCH($B20,'Supp val'!$B$8:$B$135,0)) -> 175512000 | H20: =INDEX('Supp val'!E$8:E$135,MATCH($B20,'Supp val'!$B$8:$B$135,0)) -> 4002000 | I20: 0.0228018597 | J20: 0
B21: =Names!I17 -> 65 | C21: =Names!F17 -> Bland | D21: =INDEX('ABS pop T1'!E$12:E$139,MATCH($C21,'ABS pop T1'!$H$12:$H$139,0)) -> 5971 | E21: =INDEX('ABS pop T1'!F$12:F$139,MATCH($C21,'ABS pop T1'!$H$12:$H$139,0)) -> 5937 | F21: 0 | G21: =INDEX('Supp val'!D$8:D$135,MATCH($B21,'Supp val'!$B$8:$B$135,0)) -> 6701000 | H21: =INDEX('Supp val'!E$8:E$135,MATCH($B21,'Supp val'!$B$8:$B$135,0)) -> 4000 | I21: 0.000596925832 | J21: 0
B22: =Names!I18 -> 66 | C22: =Names!F18 -> Blayney | D22: =INDEX('ABS pop T1'!E$12:E$139,MATCH($C22,'ABS pop T1'!$H$12:$H$139,0)) -> 7378 | E22: =INDEX('ABS pop T1'!F$12:F$139,MATCH($C22,'ABS pop T1'!$H$12:$H$139,0)) -> 7382 | F22: 0.0005421523448 | G22: =INDEX('Supp val'!D$8:D$135,MATCH($B22,'Supp val'!$B$8:$B$135,0)) -> 8858000 | H22: =INDEX('Supp val'!E$8:E$135,MATCH($B22,'Supp val'!$B$8:$B$135,0)) -> 3000 | I22: 0.0003386769022 | J22: 0.0002034754426
B23: =Names!I19 -> 67 | C23: =Names!F19 -> Blue Mountains | D23: =INDEX('ABS pop T1'!E$12:E$139,MATCH($C23,'ABS pop T1'!$H$12:$H$139,0)) -> 79108 | E23: =INDEX('ABS pop T1'!F$12:F$139,MATCH($C23,'ABS pop T1'!$H$12:$H$139,0)) -> 79195 | F23: 0.00109976235 | G23: =INDEX('Supp val'!D$8:D$135,MATCH($B23,'Supp val'!$B$8:$B$135,0)) -> 69666000 | H23: =INDEX('Supp val'!E$8:E$135,MATCH($B23,'Supp val'!$B$8:$B$135,0)) -> 16000 | I23: 0.0002296672695 | J23: 0.0008700950807
B24: =Names!I20 -> 68 | C24: =Names!F20 -> Bogan | D24: =INDEX('ABS pop T1'!E$12:E$139,MATCH($C24,'ABS pop T1'!$H$12:$H$139,0)) -> 2580 | E24: =INDEX('ABS pop T1'!F$12:F$139,MATCH($C24,'ABS pop T1'!$H$12:$H$139,0)) -> 2529 | F24: 0 | G24: =INDEX('Supp val'!D$8:D$135,MATCH($B24,'Supp val'!$B$8:$B$135,0)) -> 2913000 | H24: =INDEX('Supp val'!E$8:E$135,MATCH($B24,'Supp val'!$B$8:$B$135,0)) -> 83000 | I24: 0.02849296258 | J24: 0
B25: =Names!I21 -> 72 | C25: =Names!F21 -> Bourke | D25: =INDEX('ABS pop T1'!E$12:E$139,MATCH($C25,'ABS pop T1'!$H$12:$H$139,0)) -> 2590 | E25: =INDEX('ABS pop T1'!F$12:F$139,MATCH($C25,'ABS pop T1'!$H$12:$H$139,0)) -> 2625 | F25: 0.01351351351 | G25: =INDEX('Supp val'!D$8:D$135,MATCH($B25,'Supp val'!$B$8:$B$135,0)) -> 1909000 | H25: =INDEX('Supp val'!E$8:E$135,MATCH($B25,'Supp val'!$B$8:$B$135,0)) -> -1000 | I25: 0 | J25: 0.01351351351
B26: =Names!I22 -> 73 | C26: =Names!F22 -> Brewarrina | D26: =INDEX('ABS pop T1'!E$12:E$139,MATCH($C26,'ABS pop T1'!$H$12:$H$139,0)) -> 1611 | E26: =INDEX('ABS pop T1'!F$12:F$139,MATCH($C26,'ABS pop T1'!$H$12:$H$139,0)) -> 1553 | F26: 0 | G26: =INDEX('Supp val'!D$8:D$135,MATCH($B26,'Supp val'!$B$8:$B$135,0)) -> 1086000 | H26: =INDEX('Supp val'!E$8:E$135,MATCH($B26,'Supp val'!$B$8:$B$135,0)) -> 0 | I26: 0 | J26: 0
B27: =Names!I23 -> 74 | C27: =Names!F23 -> Broken Hill | D27: =INDEX('ABS pop T1'!E$12:E$139,MATCH($C27,'ABS pop T1'!$H$12:$H$139,0)) -> 17477 | E27: =INDEX('ABS pop T1'!F$12:F$139,MATCH($C27,'ABS pop T1'!$H$12:$H$139,0)) -> 17269 | F27: 0 | G27: =INDEX('Supp val'!D$8:D$135,MATCH($B27,'Supp val'!$B$8:$B$135,0)) -> 15799000 | H27: =INDEX('Supp val'!E$8:E$135,MATCH($B27,'Supp val'!$B$8:$B$135,0)) -> 89000 | I27: 0.005633267928 | J27: 0
B28: =Names!I24 -> 75 | C28: =Names!F24 -> Burwood | D28: =INDEX('ABS pop T1'!E$12:E$139,MATCH($C28,'ABS pop T1'!$H$12:$H$139,0)) -> 40596 | E28: =INDEX('ABS pop T1'!F$12:F$139,MATCH($C28,'ABS pop T1'!$H$12:$H$139,0)) -> 40866 | F28: 0.006650901567 | G28: =INDEX('Supp val'!D$8:D$135,MATCH($B28,'Supp val'!$B$8:$B$135,0)) -> 24061000 | H28: =INDEX('Supp val'!E$8:E$135,MATCH($B28,'Supp val'!$B$8:$B$135,0)) -> 859000 | I28: 0.03570092681 | J28: 0
B29: =Names!I25 -> 76 | C29: =Names!F25 -> Byron | D29: =INDEX('ABS pop T1'!E$12:E$139,MATCH($C29,'ABS pop T1'!$H$12:$H$139,0)) -> 35075 | E29: =INDEX('ABS pop T1'!F$12:F$139,MATCH($C29,'ABS pop T1'!$H$12:$H$139,0)) -> 35773 | F29: 0.01990021383 | G29: =INDEX('Supp val'!D$8:D$135,MATCH($B29,'Supp val'!$B$8:$B$135,0)) -> 24828000 | H29: =INDEX('Supp val'!E$8:E$135,MATCH($B29,'Supp val'!$B$8:$B$135,0)) -> 95000 | I29: 0.003826325117 | J29: 0.01607388871
B30: =Names!I26 -> 77 | C30: =Names!F26 -> Cabonne | D30: =INDEX('ABS pop T1'!E$12:E$139,MATCH($C30,'ABS pop T1'!$H$12:$H$139,0)) -> 13632 | E30: =INDEX('ABS pop T1'!F$12:F$139,MATCH($C30,'ABS pop T1'!$H$12:$H$139,0)) -> 13677 | F30: 0.003301056338 | G30: =INDEX('Supp val'!D$8:D$135,MATCH($B30,'Supp val'!$B$8:$B$135,0)) -> 10418000 | H30: =INDEX('Supp val'!E$8:E$135,MATCH($B30,'Supp val'!$B$8:$B$135,0)) -> 13000 | I30: 0.001247840276 | J30: 0.002053216062
B31: =Names!I27 -> 78 | C31: =Names!F27 -> Camden | D31: =INDEX('ABS pop T1'!E$12:E$139,MATCH($C31,'ABS pop T1'!$H$12:$H$139,0)) -> 101420 | E31: =INDEX('ABS pop T1'!F$12:F$139,MATCH($C31,'ABS pop T1'!$H$12:$H$139,0)) -> 107806 | F31: 0.06296588444 | G31: =INDEX('Supp val'!D$8:D$135,MATCH($B31,'Supp val'!$B$8:$B$135,0)) -> 58290000 | H31: =INDEX('Supp val'!E$8:E$135,MATCH($B31,'Supp val'!$B$8:$B$135,0)) -> 1186000 | I31: 0.02034654315 | J31: 0.04261934129
B32: =Names!I28 -> 79 | C32: =Names!F28 -> Campbelltown | D32: =INDEX('ABS pop T1'!E$12:E$139,MATCH($C32,'ABS pop T1'!$H$12:$H$139,0)) -> 170912 | E32: =INDEX('ABS pop T1'!F$12:F$139,MATCH($C32,'ABS pop T1'!$H$12:$H$139,0)) -> 174078 | F32: 0.01852415278 | G32: =INDEX('Supp val'!D$8:D$135,MATCH($B32,'Supp val'!$B$8:$B$135,0)) -> 92982000 | H32: =INDEX('Supp val'!E$8:E$135,MATCH($B32,'Supp val'!$B$8:$B$135,0)) -> 1238000 | I32: 0.01331440494 | J32: 0.005209747842
B33: =Names!I29 -> 1989 | C33: =Names!F29 -> Canada Bay | D33: =INDEX('ABS pop T1'!E$12:E$139,MATCH($C33,'ABS pop T1'!$H$12:$H$139,0)) -> 96017 | E33: =INDEX('ABS pop T1'!F$12:F$139,MATCH($C33,'ABS pop T1'!$H$12:$H$139,0)) -> 96550 | F33: 0.005551100326 | G33: =INDEX('Supp val'!D$8:D$135,MATCH($B33,'Supp val'!$B$8:$B$135,0)) -> 39785000 | H33: =INDEX('Supp val'!E$8:E$135,MATCH($B33,'Supp val'!$B$8:$B$135,0)) -> 35000 | I33: 0.0008797285409 | J33: 0.004671371785
B34: =Names!I30 -> 2080 | C34: =Names!F30 -> Canterbury-Bankstown | D34: =INDEX('ABS pop T1'!E$12:E$139,MATCH($C34,'ABS pop T1'!$H$12:$H$139,0)) -> 377836 | E34: =INDEX('ABS pop T1'!F$12:F$139,MATCH($C34,'ABS pop T1'!$H$12:$H$139,0)) -> 380406 | F34: 0.006801892885 | G34: =INDEX('Supp val'!D$8:D$135,MATCH($B34,'Supp val'!$B$8:$B$135,0)) -> 169046000 | H34: =INDEX('Supp val'!E$8:E$135,MATCH($B34,'Supp val'!$B$8:$B$135,0)) -> 935000 | I34: 0.005531038889 | J34: 0.001270853996
B35: =Names!I31 -> 81 | C35: =Names!F31 -> Carrathool | D35: =INDEX('ABS pop T1'!E$12:E$139,MATCH($C35,'ABS pop T1'!$H$12:$H$139,0)) -> 2798 | E35: =INDEX('ABS pop T1'!F$12:F$139,MATCH($C35,'ABS pop T1'!$H$12:$H$139,0)) -> 2796 | F35: 0 | G35: =INDEX('Supp val'!D$8:D$135,MATCH($B35,'Supp val'!$B$8:$B$135,0)) -> 3457000 | H35: =INDEX('Supp val'!E$8:E$135,MATCH($B35,'Supp val'!$B$8:$B$135,0)) -> 0 | I35: 0 | J35: 0
B36: =Names!I32 -> 2088 | C36: =Names!F32 -> Central Coast | D36: =INDEX('ABS pop T1'!E$12:E$139,MATCH($C36,'ABS pop T1'!$H$12:$H$139,0)) -> 343922 | E36: =INDEX('ABS pop T1'!F$12:F$139,MATCH($C36,'ABS pop T1'!$H$12:$H$139,0)) -> 345809 | F36: 0.005486709196 | G36: =INDEX('Supp val'!D$8:D$135,MATCH($B36,'Supp val'!$B$8:$B$135,0)) -> 170504000 | H36: =INDEX('Supp val'!E$8:E$135,MATCH($B36,'Supp val'!$B$8:$B$135,0)) -> 438000 | I36: 0.00256885469 | J36: 0.002917854506
B37: =Names!I33 -> 83 | C37: =Names!F33 -> Central Darling | D37: =INDEX('ABS pop T1'!E$12:E$139,MATCH($C37,'ABS pop T1'!$H$12:$H$139,0)) -> 1839 | E37: =INDEX('ABS pop T1'!F$12:F$139,MATCH($C37,'ABS pop T1'!$H$12:$H$139,0)) -> 1829 | F37: 0 | G37: =INDEX('Supp val'!D$8:D$135,MATCH($B37,'Supp val'!$B$8:$B$135,0)) -> 835000 | H37: =INDEX('Supp val'!E$8:E$135,MATCH($B37,'Supp val'!$B$8:$B$135,0)) -> -3000 | I37: 0 | J37: 0
B38: =Names!I34 -> 84 | C38: =Names!F34 -> Cessnock | D38: =INDEX('ABS pop T1'!E$12:E$139,MATCH($C38,'ABS pop T1'!$H$12:$H$139,0)) -> 59978 | E38: =INDEX('ABS pop T1'!F$12:F$139,MATCH($C38,'ABS pop T1'!$H$12:$H$139,0)) -> 61256 | F38: 0.02130781286 | G38: =INDEX('Supp val'!D$8:D$135,MATCH($B38,'Supp val'!$B$8:$B$135,0)) -> 39242000 | H38: =INDEX('Supp val'!E$8:E$135,MATCH($B38,'Supp val'!$B$8:$B$135,0)) -> 829000 | I38: 0.02112532491 | J38: 0.0001824879577
B39: =Names!I35 -> 2037 | C39: =Names!F35 -> Clarence Valley | D39: =INDEX('ABS pop T1'!E$12:E$139,MATCH($C39,'ABS pop T1'!$H$12:$H$139,0)) -> 51656 | E39: =INDEX('ABS pop T1'!F$12:F$139,MATCH($C39,'ABS pop T1'!$H$12:$H$139,0)) -> 51730 | F39: 0.001432553818 | G39: =INDEX('Supp val'!D$8:D$135,MATCH($B39,'Supp val'!$B$8:$B$135,0)) -> 33583000 | H39: =INDEX('Supp val'!E$8:E$135,MATCH($B39,'Supp val'!$B$8:$B$135,0)) -> 275000 | I39: 0.008188666885 | J39: 0
B40: =Names!I36 -> 85 | C40: =Names!F36 -> Cobar | D40: =INDEX('ABS pop T1'!E$12:E$139,MATCH($C40,'ABS pop T1'!$H$12:$H$139,0)) -> 4572 | E40: =INDEX('ABS pop T1'!F$12:F$139,MATCH($C40,'ABS pop T1'!$H$12:$H$139,0)) -> 4417 | F40: 0 | G40: =INDEX('Supp val'!D$8:D$135,MATCH($B40,'Supp val'!$B$8:$B$135,0)) -> 4050000 | H40: =INDEX('Supp val'!E$8:E$135,MATCH($B40,'Supp val'!$B$8:$B$135,0)) -> 14000 | I40: 0.003456790123 | J40: 0
B41: =Names!I37 -> 86 | C41: =Names!F37 -> Coffs Harbour | D41: =INDEX('ABS pop T1'!E$12:E$139,MATCH($C41,'ABS pop T1'!$H$12:$H$139,0)) -> 77265 | E41: =INDEX('ABS pop T1'!F$12:F$139,MATCH($C41,'ABS pop T1'!$H$12:$H$139,0)) -> 77648 | F41: 0.004956966285 | G41: =INDEX('Supp val'!D$8:D$135,MATCH($B41,'Supp val'!$B$8:$B$135,0)) -> 50109000 | H41: =INDEX('Supp val'!E$8:E$135,MATCH($B41,'Supp val'!$B$8:$B$135,0)) -> 246000 | I41: 0.004909297731 | J41: 4.766855392e-05
B42: =Names!I38 -> 90 | C42: =Names!F38 -> Coolamon | D42: =INDEX('ABS pop T1'!E$12:E$139,MATCH($C42,'ABS pop T1'!$H$12:$H$139,0)) -> 4341 | E42: =INDEX('ABS pop T1'!F$12:F$139,MATCH($C42,'ABS pop T1'!$H$12:$H$139,0)) -> 4291 | F42: 0 | G42: =INDEX('Supp val'!D$8:D$135,MATCH($B42,'Supp val'!$B$8:$B$135,0)) -> 2451000 | H42: =INDEX('Supp val'!E$8:E$135,MATCH($B42,'Supp val'!$B$8:$B$135,0)) -> 0 | I42: 0 | J42: 0
B43: =Names!I39 -> 93 | C43: =Names!F39 -> Coonamble | D43: =INDEX('ABS pop T1'!E$12:E$139,MATCH($C43,'ABS pop T1'!$H$12:$H$139,0)) -> 3957 | E43: =INDEX('ABS pop T1'!F$12:F$139,MATCH($C43,'ABS pop T1'!$H$12:$H$139,0)) -> 3907 | F43: 0 | G43: =INDEX('Supp val'!D$8:D$135,MATCH($B43,'Supp val'!$B$8:$B$135,0)) -> 4836000 | H43: =INDEX('Supp val'!E$8:E$135,MATCH($B43,'Supp val'!$B$8:$B$135,0)) -> -1000 | I43: 0 | J43: 0
B44: =Names!I40 -> 2094 | C44: =Names!F40 -> Cootamundra-Gundagai Regional | D44: =INDEX('ABS pop T1'!E$12:E$139,MATCH($C44,'ABS pop T1'!$H$12:$H$139,0)) -> 11233 | E44: =INDEX('ABS pop T1'!F$12:F$139,MATCH($C44,'ABS pop T1'!$H$12:$H$139,0)) -> 11225 | F44: 0 | G44: =INDEX('Supp val'!D$8:D$135,MATCH($B44,'Supp val'!$B$8:$B$135,0)) -> 7461000 | H44: =INDEX('Supp val'!E$8:E$135,MATCH($B44,'Supp val'!$B$8:$B$135,0)) -> -1000 | I44: 0 | J44: 0
B45: =Names!I41 -> 97 | C45: =Names!F41 -> Cowra | D45: =INDEX('ABS pop T1'!E$12:E$139,MATCH($C45,'ABS pop T1'!$H$12:$H$139,0)) -> 12741 | E45: =INDEX('ABS pop T1'!F$12:F$139,MATCH($C45,'ABS pop T1'!$H$12:$H$139,0)) -> 12730 | F45: 0 | G45: =INDEX('Supp val'!D$8:D$135,MATCH($B45,'Supp val'!$B$8:$B$135,0)) -> 6967000 | H45: =INDEX('Supp val'!E$8:E$135,MATCH($B45,'Supp val'!$B$8:$B$135,0)) -> 15000 | I45: 0.002153007033 | J45: 0
B46: =Names!I42 -> 2090 | C46: =Names!F42 -> Cumberland | D46: =INDEX('ABS pop T1'!E$12:E$139,MATCH($C46,'ABS pop T1'!$H$12:$H$139,0)) -> 241453 | E46: =INDEX('ABS pop T1'!F$12:F$139,MATCH($C46,'ABS pop T1'!$H$12:$H$139,0)) -> 242674 | F46: 0.005056884777 | G46: =INDEX('Supp val'!D$8:D$135,MATCH($B46,'Supp val'!$B$8:$B$135,0)) -> 97919000 | H46: =INDEX('Supp val'!E$8:E$135,MATCH($B46,'Supp val'!$B$8:$B$135,0)) -> -515000 | I46: 0 | J46: 0.005056884777
B47: =Names!I43 -> 2098 | C47: =Names!F43 -> Dubbo Regional | D47: =INDEX('ABS pop T1'!E$12:E$139,MATCH($C47,'ABS pop T1'!$H$12:$H$139,0)) -> 53710 | E47: =INDEX('ABS pop T1'!F$12:F$139,MATCH($C47,'ABS pop T1'!$H$12:$H$139,0)) -> 54044 | F47: 0.00621858127 | G47: =INDEX('Supp val'!D$8:D$135,MATCH($B47,'Supp val'!$B$8:$B$135,0)) -> 37334000 | H47: =INDEX('Supp val'!E$8:E$135,MATCH($B47,'Supp val'!$B$8:$B$135,0)) -> 229000 | I47: 0.006133819039 | J47: 8.476223084e-05
B48: =Names!I44 -> 104 | C48: =Names!F44 -> Dungog | D48: =INDEX('ABS pop T1'!E$12:E$139,MATCH($C48,'ABS pop T1'!$H$12:$H$139,0)) -> 9422 | E48: =INDEX('ABS pop T1'!F$12:F$139,MATCH($C48,'ABS pop T1'!$H$12:$H$139,0)) -> 9664 | F48: 0.02568456803 | G48: =INDEX('Supp val'!D$8:D$135,MATCH($B48,'Supp val'!$B$8:$B$135,0)) -> 6546000 | H48: =INDEX('Supp val'!E$8:E$135,MATCH($B48,'Supp val'!$B$8:$B$135,0)) -> 60000 | I48: 0.009165902841 | J48: 0.01651866519
B49: =Names!I45 -> 2091 | C49: =Names!F45 -> Edward River | D49: =INDEX('ABS pop T1'!E$12:E$139,MATCH($C49,'ABS pop T1'!$H$12:$H$139,0)) -> 9083 | E49: =INDEX('ABS pop T1'!F$12:F$139,MATCH($C49,'ABS pop T1'!$H$12:$H$139,0)) -> 9083 | F49: 0 | G49: =INDEX('Supp val'!D$8:D$135,MATCH($B49,'Supp val'!$B$8:$B$135,0)) -> 7461000 | H49: =INDEX('Supp val'!E$8:E$135,MATCH($B49,'Supp val'!$B$8:$B$135,0)) -> -40000 | I49: 0 | J49: 0
B50: =Names!I46 -> 105 | C50: =Names!F46 -> Eurobodalla | D50: =INDEX('ABS pop T1'!E$12:E$139,MATCH($C50,'ABS pop T1'!$H$12:$H$139,0)) -> 38469 | E50: =INDEX('ABS pop T1'!F$12:F$139,MATCH($C50,'ABS pop T1'!$H$12:$H$139,0)) -> 38952 | F50: 0.01255556422 | G50: =INDEX('Supp val'!D$8:D$135,MATCH($B50,'Supp val'!$B$8:$B$135,0)) -> 30846000 | H50: =INDEX('Supp val'!E$8:E$135,MATCH($B50,'Supp val'!$B$8:$B$135,0)) -> 86000 | I50: 0.002788043831 | J50: 0.00976752039
B51: =Names!I47 -> 107 | C51: =Names!F47 -> Fairfield | D51: =INDEX('ABS pop T1'!E$12:E$139,MATCH($C51,'ABS pop T1'!$H$12:$H$139,0)) -> 211654 | E51: =INDEX('ABS pop T1'!F$12:F$139,MATCH($C51,'ABS pop T1'!$H$12:$H$139,0)) -> 210825 | F51: 0 | G51: =INDEX('Supp val'!D$8:D$135,MATCH($B51,'Supp val'!$B$8:$B$135,0)) -> 84985000 | H51: =INDEX('Supp val'!E$8:E$135,MATCH($B51,'Supp val'!$B$8:$B$135,0)) -> 313000 | I51: 0.003683002883 | J51: 0
B52: =Names!I48 -> 2092 | C52: =Names!F48 -> Federation | D52: =INDEX('ABS pop T1'!E$12:E$139,MATCH($C52,'ABS pop T1'!$H$12:$H$139,0)) -> 12435 | E52: =INDEX('ABS pop T1'!F$12:F$139,MATCH($C52,'ABS pop T1'!$H$12:$H$139,0)) -> 12598 | F52: 0.01310816244 | G52: =INDEX('Supp val'!D$8:D$135,MATCH($B52,'Supp val'!$B$8:$B$135,0)) -> 8015000 | H52: =INDEX('Supp val'!E$8:E$135,MATCH($B52,'Supp val'!$B$8:$B$135,0)) -> 35000 | I52: 0.004366812227 | J52: 0.008741350218
B53: =Names!I49 -> 108 | C53: =Names!F49 -> Forbes | D53: =INDEX('ABS pop T1'!E$12:E$139,MATCH($C53,'ABS pop T1'!$H$12:$H$139,0)) -> 9904 | E53: =INDEX('ABS pop T1'!F$12:F$139,MATCH($C53,'ABS pop T1'!$H$12:$H$139,0)) -> 9920 | F53: 0.001615508885 | G53: =INDEX('Supp val'!D$8:D$135,MATCH($B53,'Supp val'!$B$8:$B$135,0)) -> 7604000 | H53: =INDEX('Supp val'!E$8:E$135,MATCH($B53,'Supp val'!$B$8:$B$135,0)) -> 22000 | I53: 0.002893214098 | J53: 0
B54: =Names!I50 -> 2093 | C54: =Names!F50 -> Georges River | D54: =INDEX('ABS pop T1'!E$12:E$139,MATCH($C54,'ABS pop T1'!$H$12:$H$139,0)) -> 159431 | E54: =INDEX('ABS pop T1'!F$12:F$139,MATCH($C54,'ABS pop T1'!$H$12:$H$139,0)) -> 160272 | F54: 0.005275009252 | G54: =INDEX('Supp val'!D$8:D$135,MATCH($B54,'Supp val'!$B$8:$B$135,0)) -> 70235000 | H54: =INDEX('Supp val'!E$8:E$135,MATCH($B54,'Supp val'!$B$8:$B$135,0)) -> 440000 | I54: 0.00626468285 | J54: 0
B55: =Names!I51 -> 109 | C55: =Names!F51 -> Gilgandra | D55: =INDEX('ABS pop T1'!E$12:E$139,MATCH($C55,'ABS pop T1'!$H$12:$H$139,0)) -> 4239 | E55: =INDEX('ABS pop T1'!F$12:F$139,MATCH($C55,'ABS pop T1'!$H$12:$H$139,0)) -> 4229 | F55: 0 | G55: =INDEX('Supp val'!D$8:D$135,MATCH($B55,'Supp val'!$B$8:$B$135,0)) -> 5077000 | H55: =INDEX('Supp val'!E$8:E$135,MATCH($B55,'Supp val'!$B$8:$B$135,0)) -> 3000 | I55: 0.0005909001379 | J55: 0
B56: =Names!I52 -> 2053 | C56: =Names!F52 -> Glen Innes Severn | D56: =INDEX('ABS pop T1'!E$12:E$139,MATCH($C56,'ABS pop T1'!$H$12:$H$139,0)) -> 8869 | E56: =INDEX('ABS pop T1'!F$12:F$139,MATCH($C56,'ABS pop T1'!$H$12:$H$139,0)) -> 8873 | F56: 0.0004510091329 | G56: =INDEX('Supp val'!D$8:D$135,MATCH($B56,'Supp val'!$B$8:$B$135,0)) -> 7005000 | H56: =INDEX('Supp val'!E$8:E$135,MATCH($B56,'Supp val'!$B$8:$B$135,0)) -> 27000 | I56: 0.003854389722 | J56: 0
B57: =Names!I53 -> 2032 | C57: =Names!F53 -> Goulburn Mulwaree | D57: =INDEX('ABS pop T1'!E$12:E$139,MATCH($C57,'ABS pop T1'!$H$12:$H$139,0)) -> 31127 | E57: =INDEX('ABS pop T1'!F$12:F$139,MATCH($C57,'ABS pop T1'!$H$12:$H$139,0)) -> 31554 | F57: 0.01371799402 | G57: =INDEX('Supp val'!D$8:D$135,MATCH($B57,'Supp val'!$B$8:$B$135,0)) -> 20628000 | H57: =INDEX('Supp val'!E$8:E$135,MATCH($B57,'Supp val'!$B$8:$B$135,0)) -> 280000 | I57: 0.01357378321 | J57: 0.0001442108172
B58: =Names!I54 -> 2049 | C58: =Names!F54 -> Greater Hume | D58: =INDEX('ABS pop T1'!E$12:E$139,MATCH($C58,'ABS pop T1'!$H$12:$H$139,0)) -> 10763 | E58: =INDEX('ABS pop T1'!F$12:F$139,MATCH($C58,'ABS pop T1'!$H$12:$H$139,0)) -> 10841 | F58: 0.007247050079 | G58: =INDEX('Supp val'!D$8:D$135,MATCH($B58,'Supp val'!$B$8:$B$135,0)) -> 8740000 | H58: =INDEX('Supp val'!E$8:E$135,MATCH($B58,'Supp val'!$B$8:$B$135,0)) -> 69000 | I58: 0.007894736842 | J58: 0
B59: =Names!I55 -> 118 | C59: =Names!F55 -> Griffith | D59: =INDEX('ABS pop T1'!E$12:E$139,MATCH($C59,'ABS pop T1'!$H$12:$H$139,0)) -> 27022 | E59: =INDEX('ABS pop T1'!F$12:F$139,MATCH($C59,'ABS pop T1'!$H$12:$H$139,0)) -> 27155 | F59: 0.004921915476 | G59: =INDEX('Supp val'!D$8:D$135,MATCH($B59,'Supp val'!$B$8:$B$135,0)) -> 17405000 | H59: =INDEX('Supp val'!E$8:E$135,MATCH($B59,'Supp val'!$B$8:$B$135,0)) -> 91000 | I59: 0.005228382649 | J59: 0
B60: =Names!I56 -> 120 | C60: =Names!F56 -> Gunnedah | D60: =INDEX('ABS pop T1'!E$12:E$139,MATCH($C60,'ABS pop T1'!$H$12:$H$139,0)) -> 12680 | E60: =INDEX('ABS pop T1'!F$12:F$139,MATCH($C60,'ABS pop T1'!$H$12:$H$139,0)) -> 12690 | F60: 0.0007886435331 | G60: =INDEX('Supp val'!D$8:D$135,MATCH($B60,'Supp val'!$B$8:$B$135,0)) -> 13279000 | H60: =INDEX('Supp val'!E$8:E$135,MATCH($B60,'Supp val'!$B$8:$B$135,0)) -> -9000 | I60: 0 | J60: 0.0007886435331
B61: =Names!I57 -> 2039 | C61: =Names!F57 -> Gwydir | D61: =INDEX('ABS pop T1'!E$12:E$139,MATCH($C61,'ABS pop T1'!$H$12:$H$139,0)) -> 5352 | E61: =INDEX('ABS pop T1'!F$12:F$139,MATCH($C61,'ABS pop T1'!$H$12:$H$139,0)) -> 5299 | F61: 0 | G61: =INDEX('Supp val'!D$8:D$135,MATCH($B61,'Supp val'!$B$8:$B$135,0)) -> 8007000 | H61: =INDEX('Supp val'!E$8:E$135,MATCH($B61,'Supp val'!$B$8:$B$135,0)) -> 21000 | I61: 0.002622705133 | J61: 0
B62: =Names!I58 -> 125 | C62: =Names!F58 -> Hawkesbury | D62: =INDEX('ABS pop T1'!E$12:E$139,MATCH($C62,'ABS pop T1'!$H$12:$H$139,0)) -> 67288 | E62: =INDEX('ABS pop T1'!F$12:F$139,MATCH($C62,'ABS pop T1'!$H$12:$H$139,0)) -> 67749 | F62: 0.006851147307 | G62: =INDEX('Supp val'!D$8:D$135,MATCH($B62,'Supp val'!$B$8:$B$135,0)) -> 38392000 | H62: =INDEX('Supp val'!E$8:E$135,MATCH($B62,'Supp val'!$B$8:$B$135,0)) -> 219000 | I62: 0.005704313399 | J62: 0.001146833908
B63: =Names!I59 -> 126 | C63: =Names!F59 -> Hay | D63: =INDEX('ABS pop T1'!E$12:E$139,MATCH($C63,'ABS pop T1'!$H$12:$H$139,0)) -> 2948 | E63: =INDEX('ABS pop T1'!F$12:F$139,MATCH($C63,'ABS pop T1'!$H$12:$H$139,0)) -> 2943 | F63: 0 | G63: =INDEX('Supp val'!D$8:D$135,MATCH($B63,'Supp val'!$B$8:$B$135,0)) -> 2424000 | H63: =INDEX('Supp val'!E$8:E$135,MATCH($B63,'Supp val'!$B$8:$B$135,0)) -> 8000 | I63: 0.003300330033 | J63: 0
B64: =Names!I60 -> 2081 | C64: =Names!F60 -> Hilltops | D64: =INDEX('ABS pop T1'!E$12:E$139,MATCH($C64,'ABS pop T1'!$H$12:$H$139,0)) -> 18701 | E64: =INDEX('ABS pop T1'!F$12:F$139,MATCH($C64,'ABS pop T1'!$H$12:$H$139,0)) -> 18617 | F64: 0 | G64: =INDEX('Supp val'!D$8:D$135,MATCH($B64,'Supp val'!$B$8:$B$135,0)) -> 13489000 | H64: =INDEX('Supp val'!E$8:E$135,MATCH($B64,'Supp val'!$B$8:$B$135,0)) -> 0 | I64: 0 | J64: 0
B65: =Names!I61 -> 129 | C65: =Names!F61 -> Hornsby | D65: =INDEX('ABS pop T1'!E$12:E$139,MATCH($C65,'ABS pop T1'!$H$12:$H$139,0)) -> 152004 | E65: =INDEX('ABS pop T1'!F$12:F$139,MATCH($C65,'ABS pop T1'!$H$12:$H$139,0)) -> 152419 | F65: 0.002730191311 | G65: =INDEX('Supp val'!D$8:D$135,MATCH($B65,'Supp val'!$B$8:$B$135,0)) -> 70266000 | H65: =INDEX('Supp val'!E$8:E$135,MATCH($B65,'Supp val'!$B$8:$B$135,0)) -> 325000 | I65: 0.004625281075 | J65: 0
B66: =Names!I62 -> 131 | C66: =Names!F62 -> Hunters Hill | D66: =INDEX('ABS pop T1'!E$12:E$139,MATCH($C66,'ABS pop T1'!$H$12:$H$139,0)) -> 14975 | E66: =INDEX('ABS pop T1'!F$12:F$139,MATCH($C66,'ABS pop T1'!$H$12:$H$139,0)) -> 14962 | F66: 0 | G66: =INDEX('Supp val'!D$8:D$135,MATCH($B66,'Supp val'!$B$8:$B$135,0)) -> 9519000 | H66: =INDEX('Supp val'!E$8:E$135,MATCH($B66,'Supp val'!$B$8:$B$135,0)) -> 14000 | I66: 0.001470742725 | J66: 0
B67: =Names!I63 -> 2083 | C67: =Names!F63 -> Inner West | D67: =INDEX('ABS pop T1'!E$12:E$139,MATCH($C67,'ABS pop T1'!$H$12:$H$139,0)) -> 200720 | E67: =INDEX('ABS pop T1'!F$12:F$139,MATCH($C67,'ABS pop T1'!$H$12:$H$139,0)) -> 201880 | F67: 0.005779194898 | G67: =INDEX('Supp val'!D$8:D$135,MATCH($B67,'Supp val'!$B$8:$B$135,0)) -> 122109000 | H67: =INDEX('Supp val'!E$8:E$135,MATCH($B67,'Supp val'!$B$8:$B$135,0)) -> 29000 | I67: 0.0002374927319 | J67: 0.005541702166
B68: =Names!I64 -> 133 | C68: =Names!F64 -> Inverell | D68: =INDEX('ABS pop T1'!E$12:E$139,MATCH($C68,'ABS pop T1'!$H$12:$H$139,0)) -> 17849 | E68: =INDEX('ABS pop T1'!F$12:F$139,MATCH($C68,'ABS pop T1'!$H$12:$H$139,0)) -> 17780 | F68: 0 | G68: =INDEX('Supp val'!D$8:D$135,MATCH($B68,'Supp val'!$B$8:$B$135,0)) -> 13548000 | H68: =INDEX('Supp val'!E$8:E$135,MATCH($B68,'Supp val'!$B$8:$B$135,0)) -> 449000 | I68: 0.03314142309 | J68: 0
B69: =Names!I65 -> 135 | C69: =Names!F65 -> Junee | D69: =INDEX('ABS pop T1'!E$12:E$139,MATCH($C69,'ABS pop T1'!$H$12:$H$139,0)) -> 6683 | E69: =INDEX('ABS pop T1'!F$12:F$139,MATCH($C69,'ABS pop T1'!$H$12:$H$139,0)) -> 6676 | F69: 0 | G69: =INDEX('Supp val'!D$8:D$135,MATCH($B69,'Supp val'!$B$8:$B$135,0)) -> 4059000 | H69: =INDEX('Supp val'!E$8:E$135,MATCH($B69,'Supp val'!$B$8:$B$135,0)) -> 21000 | I69: 0.005173688101 | J69: 0
B70: =Names!I66 -> 136 | C70: =Names!F66 -> Kempsey | D70: =INDEX('ABS pop T1'!E$12:E$139,MATCH($C70,'ABS pop T1'!$H$12:$H$139,0)) -> 29742 | E70: =INDEX('ABS pop T1'!F$12:F$139,MATCH($C70,'ABS pop T1'!$H$12:$H$139,0)) -> 29921 | F70: 0.006018425123 | G70: =INDEX('Supp val'!D$8:D$135,MATCH($B70,'Supp val'!$B$8:$B$135,0)) -> 20685000 | H70: =INDEX('Supp val'!E$8:E$135,MATCH($B70,'Supp val'!$B$8:$B$135,0)) -> 105000 | I70: 0.005076142132 | J70: 0.0009422829907
B71: =Names!I67 -> 137 | C71: =Names!F67 -> Kiama | D71: =INDEX('ABS pop T1'!E$12:E$139,MATCH($C71,'ABS pop T1'!$H$12:$H$139,0)) -> 23383 | E71: =INDEX('ABS pop T1'!F$12:F$139,MATCH($C71,'ABS pop T1'!$H$12:$H$139,0)) -> 23685 | F71: 0.01291536586 | G71: =INDEX('Supp val'!D$8:D$135,MATCH($B71,'Supp val'!$B$8:$B$135,0)) -> 17874000 | H71: =INDEX('Supp val'!E$8:E$135,MATCH($B71,'Supp val'!$B$8:$B$135,0)) -> 75000 | I71: 0.004196038939 | J71: 0.008719326925
B72: =Names!I68 -> 139 | C72: =Names!F68 -> Ku-ring-gai | D72: =INDEX('ABS pop T1'!E$12:E$139,MATCH($C72,'ABS pop T1'!$H$12:$H$139,0)) -> 127079 | E72: =INDEX('ABS pop T1'!F$12:F$139,MATCH($C72,'ABS pop T1'!$H$12:$H$139,0)) -> 127603 | F72: 0.00412341929 | G72: =INDEX('Supp val'!D$8:D$135,MATCH($B72,'Supp val'!$B$8:$B$135,0)) -> 66563000 | H72: =INDEX('Supp val'!E$8:E$135,MATCH($B72,'Supp val'!$B$8:$B$135,0)) -> 581000 | I72: 0.008728572931 | J72: 0
B73: =Names!I69 -> 140 | C73: =Names!F69 -> Kyogle | D73: =INDEX('ABS pop T1'!E$12:E$139,MATCH($C73,'ABS pop T1'!$H$12:$H$139,0)) -> 8796 | E73: =INDEX('ABS pop T1'!F$12:F$139,MATCH($C73,'ABS pop T1'!$H$12:$H$139,0)) -> 8788 | F73: 0 | G73: =INDEX('Supp val'!D$8:D$135,MATCH($B73,'Supp val'!$B$8:$B$135,0)) -> 7322000 | H73: =INDEX('Supp val'!E$8:E$135,MATCH($B73,'Supp val'!$B$8:$B$135,0)) -> 50000 | I73: 0.006828735318 | J73: 0
B74: =Names!I70 -> 141 | C74: =Names!F70 -> Lachlan | D74: =INDEX('ABS pop T1'!E$12:E$139,MATCH($C74,'ABS pop T1'!$H$12:$H$139,0)) -> 6160 | E74: =INDEX('ABS pop T1'!F$12:F$139,MATCH($C74,'ABS pop T1'!$H$12:$H$139,0)) -> 6089 | F74: 0 | G74: =INDEX('Supp val'!D$8:D$135,MATCH($B74,'Supp val'!$B$8:$B$135,0)) -> 7513000 | H74: =INDEX('Supp val'!E$8:E$135,MATCH($B74,'Supp val'!$B$8:$B$135,0)) -> 4000 | I74: 0.0005324104885 | J74: 0
B75: =Names!I71 -> 142 | C75: =Names!F71 -> Lake Macquarie | D75: =INDEX('ABS pop T1'!E$12:E$139,MATCH($C75,'ABS pop T1'!$H$12:$H$139,0)) -> 205875 | E75: =INDEX('ABS pop T1'!F$12:F$139,MATCH($C75,'ABS pop T1'!$H$12:$H$139,0)) -> 207775 | F75: 0.009228901032 | G75: =INDEX('Supp val'!D$8:D$135,MATCH($B75,'Supp val'!$B$8:$B$135,0)) -> 138672000 | H75: =INDEX('Supp val'!E$8:E$135,MATCH($B75,'Supp val'!$B$8:$B$135,0)) -> 1214000 | I75: 0.008754470982 | J75: 0.0004744300503
B76: =Names!I72 -> 143 | C76: =Names!F72 -> Lane Cove | D76: =INDEX('ABS pop T1'!E$12:E$139,MATCH($C76,'ABS pop T1'!$H$12:$H$139,0)) -> 40128 | E76: =INDEX('ABS pop T1'!F$12:F$139,MATCH($C76,'ABS pop T1'!$H$12:$H$139,0)) -> 40534 | F76: =MAX(0,E76/D76-1) -> 0.0101176236 | G76: =INDEX('Supp val'!D$8:D$135,MATCH($B76,'Supp val'!$B$8:$B$135,0)) -> 24991000 | H76: =INDEX('Supp val'!E$8:E$135,MATCH($B76,'Supp val'!$B$8:$B$135,0)) -> 600000 | I76: =MAX(0,H76/G76) -> 0.02400864311 | J76: =MAX(0,F76-I76) -> 0
B77: =Names!I73 -> 144 | C77: =Names!F73 -> Leeton | D77: =INDEX('ABS pop T1'!E$12:E$139,MATCH($C77,'ABS pop T1'!$H$12:$H$139,0)) -> 11444 | E77: =INDEX('ABS pop T1'!F$12:F$139,MATCH($C77,'ABS pop T1'!$H$12:$H$139,0)) -> 11343 | F77: 0 | G77: =INDEX('Supp val'!D$8:D$135,MATCH($B77,'Supp val'!$B$8:$B$135,0)) -> 7467000 | H77: =INDEX('Supp val'!E$8:E$135,MATCH($B77,'Supp val'!$B$8:$B$135,0)) -> 9000 | I77: 0.001205303335 | J77: 0
B78: =Names!I74 -> 146 | C78: =Names!F74 -> Lismore | D78: =INDEX('ABS pop T1'!E$12:E$139,MATCH($C78,'ABS pop T1'!$H$12:$H$139,0)) -> 43687 | E78: =INDEX('ABS pop T1'!F$12:F$139,MATCH($C78,'ABS pop T1'!$H$12:$H$139,0)) -> 43667 | F78: 0 | G78: =INDEX('Supp val'!D$8:D$135,MATCH($B78,'Supp val'!$B$8:$B$135,0)) -> 31037000 | H78: =INDEX('Supp val'!E$8:E$135,MATCH($B78,'Supp val'!$B$8:$B$135,0)) -> 90000 | I78: 0.002899764797 | J78: 0
B79: =Names!I75 -> 2044 | C79: =Names!F75 -> Lithgow | D79: =INDEX('ABS pop T1'!E$12:E$139,MATCH($C79,'ABS pop T1'!$H$12:$H$139,0)) -> 21603 | E79: =INDEX('ABS pop T1'!F$12:F$139,MATCH($C79,'ABS pop T1'!$H$12:$H$139,0)) -> 21516 | F79: 0 | G79: =INDEX('Supp val'!D$8:D$135,MATCH($B79,'Supp val'!$B$8:$B$135,0)) -> 13885000 | H79: =INDEX('Supp val'!E$8:E$135,MATCH($B79,'Supp val'!$B$8:$B$135,0)) -> 3000 | I79: 0.0002160604969 | J79: 0
B80: =Names!I76 -> 147 | C80: =Names!F76 -> Liverpool | D80: =INDEX('ABS pop T1'!E$12:E$139,MATCH($C80,'ABS pop T1'!$H$12:$H$139,0)) -> 227545 | E80: =INDEX('ABS pop T1'!F$12:F$139,MATCH($C80,'ABS pop T1'!$H$12:$H$139,0)) -> 231296 | F80: 0.01648465139 | G80: =INDEX('Supp val'!D$8:D$135,MATCH($B80,'Supp val'!$B$8:$B$135,0)) -> 103541000 | H80: =INDEX('Supp val'!E$8:E$135,MATCH($B80,'Supp val'!$B$8:$B$135,0)) -> 1413000 | I80: 0.01364676795 | J80: 0.002837883441
B81: =Names!I77 -> 2040 | C81: =Names!F77 -> Liverpool Plains | D81: =INDEX('ABS pop T1'!E$12:E$139,MATCH($C81,'ABS pop T1'!$H$12:$H$139,0)) -> 7903 | E81: =INDEX('ABS pop T1'!F$12:F$139,MATCH($C81,'ABS pop T1'!$H$12:$H$139,0)) -> 7853 | F81: 0 | G81: =INDEX('Supp val'!D$8:D$135,MATCH($B81,'Supp val'!$B$8:$B$135,0)) -> 7496000 | H81: =INDEX('Supp val'!E$8:E$135,MATCH($B81,'Supp val'!$B$8:$B$135,0)) -> 18000 | I81: 0.002401280683 | J81: 0
B82: =Names!I78 -> 148 | C82: =Names!F78 -> Lockhart | D82: =INDEX('ABS pop T1'!E$12:E$139,MATCH($C82,'ABS pop T1'!$H$12:$H$139,0)) -> 3285 | E82: =INDEX('ABS pop T1'!F$12:F$139,MATCH($C82,'ABS pop T1'!$H$12:$H$139,0)) -> 3259 | F82: 0 | G82: =INDEX('Supp val'!D$8:D$135,MATCH($B82,'Supp val'!$B$8:$B$135,0)) -> 2477000 | H82: =INDEX('Supp val'!E$8:E$135,MATCH($B82,'Supp val'!$B$8:$B$135,0)) -> 1000 | I82: 0.0004037141704 | J82: 0
B83: =Names!I79 -> 150 | C83: =Names!F79 -> Maitland | D83: =INDEX('ABS pop T1'!E$12:E$139,MATCH($C83,'ABS pop T1'!$H$12:$H$139,0)) -> 85155 | E83: =INDEX('ABS pop T1'!F$12:F$139,MATCH($C83,'ABS pop T1'!$H$12:$H$139,0)) -> 87395 | F83: 0.02630497328 | G83: =INDEX('Supp val'!D$8:D$135,MATCH($B83,'Supp val'!$B$8:$B$135,0)) -> 67478000 | H83: =INDEX('Supp val'!E$8:E$135,MATCH($B83,'Supp val'!$B$8:$B$135,0)) -> 2094000 | I83: 0.03103233647 | J83: 0
B84: =Names!I80 -> 2084 | C84: =Names!F80 -> Mid-Coast | D84: =INDEX('ABS pop T1'!E$12:E$139,MATCH($C84,'ABS pop T1'!$H$12:$H$139,0)) -> 93826 | E84: =INDEX('ABS pop T1'!F$12:F$139,MATCH($C84,'ABS pop T1'!$H$12:$H$139,0)) -> 94395 | F84: 0.006064417113 | G84: =INDEX('Supp val'!D$8:D$135,MATCH($B84,'Supp val'!$B$8:$B$135,0)) -> 79971000 | H84: =INDEX('Supp val'!E$8:E$135,MATCH($B84,'Supp val'!$B$8:$B$135,0)) -> 308000 | I84: 0.003851396131 | J84: 0.002213020981
B85: =Names!I81 -> 2042 | C85: =Names!F81 -> Mid-Western Regional | D85: =INDEX('ABS pop T1'!E$12:E$139,MATCH($C85,'ABS pop T1'!$H$12:$H$139,0)) -> 25248 | E85: =INDEX('ABS pop T1'!F$12:F$139,MATCH($C85,'ABS pop T1'!$H$12:$H$139,0)) -> 25367 | F85: 0.004713244613 | G85: =INDEX('Supp val'!D$8:D$135,MATCH($B85,'Supp val'!$B$8:$B$135,0)) -> 27731000 | H85: =INDEX('Supp val'!E$8:E$135,MATCH($B85,'Supp val'!$B$8:$B$135,0)) -> 137000 | I85: 0.004940319498 | J85: 0
B86: =Names!I82 -> 155 | C86: =Names!F82 -> Moree Plains | D86: =INDEX('ABS pop T1'!E$12:E$139,MATCH($C86,'ABS pop T1'!$H$12:$H$139,0)) -> 13260 | E86: =INDEX('ABS pop T1'!F$12:F$139,MATCH($C86,'ABS pop T1'!$H$12:$H$139,0)) -> 13077 | F86: 0 | G86: =INDEX('Supp val'!D$8:D$135,MATCH($B86,'Supp val'!$B$8:$B$135,0)) -> 23507000 | H86: =INDEX('Supp val'!E$8:E$135,MATCH($B86,'Supp val'!$B$8:$B$135,0)) -> -8000 | I86: 0 | J86: 0
B87: =Names!I83 -> 156 | C87: =Names!F83 -> Mosman | D87: =INDEX('ABS pop T1'!E$12:E$139,MATCH($C87,'ABS pop T1'!$H$12:$H$139,0)) -> 30960 | E87: =INDEX('ABS pop T1'!F$12:F$139,MATCH($C87,'ABS pop T1'!$H$12:$H$139,0)) -> 30785 | F87: 0 | G87: =INDEX('Supp val'!D$8:D$135,MATCH($B87,'Supp val'!$B$8:$B$135,0)) -> 20587000 | H87: =INDEX('Supp val'!E$8:E$135,MATCH($B87,'Supp val'!$B$8:$B$135,0)) -> 6000 | I87: 0.0002914460582 | J87: 0
B88: =Names!I84 -> 2085 | C88: =Names!F84 -> Murray River | D88: =INDEX('ABS pop T1'!E$12:E$139,MATCH($C88,'ABS pop T1'!$H$12:$H$139,0)) -> 12118 | E88: =INDEX('ABS pop T1'!F$12:F$139,MATCH($C88,'ABS pop T1'!$H$12:$H$139,0)) -> 12330 | F88: 0.01749463608 | G88: =INDEX('Supp val'!D$8:D$135,MATCH($B88,'Supp val'!$B$8:$B$135,0)) -> 10545000 | H88: =INDEX('Supp val'!E$8:E$135,MATCH($B88,'Supp val'!$B$8:$B$135,0)) -> 97000 | I88: 0.009198672357 | J88: 0.008295963722
B89: =Names!I85 -> 2086 | C89: =Names!F85 -> Murrumbidgee (new) | D89: =INDEX('ABS pop T1'!E$12:E$139,MATCH($C89,'ABS pop T1'!$H$12:$H$139,0)) -> 3917 | E89: =INDEX('ABS pop T1'!F$12:F$139,MATCH($C89,'ABS pop T1'!$H$12:$H$139,0)) -> 3916 | F89: 0 | G89: =INDEX('Supp val'!D$8:D$135,MATCH($B89,'Supp val'!$B$8:$B$135,0)) -> 4330000 | H89: =INDEX('Supp val'!E$8:E$135,MATCH($B89,'Supp val'!$B$8:$B$135,0)) -> -4000 | I89: 0 | J89: 0
B90: =Names!I86 -> 162 | C90: =Names!F86 -> Muswellbrook | D90: =INDEX('ABS pop T1'!E$12:E$139,MATCH($C90,'ABS pop T1'!$H$12:$H$139,0)) -> 16375 | E90: =INDEX('ABS pop T1'!F$12:F$139,MATCH($C90,'ABS pop T1'!$H$12:$H$139,0)) -> 16355 | F90: 0 | G90: =INDEX('Supp val'!D$8:D$135,MATCH($B90,'Supp val'!$B$8:$B$135,0)) -> 17722000 | H90: =INDEX('Supp val'!E$8:E$135,MATCH($B90,'Supp val'!$B$8:$B$135,0)) -> 939000 | I90: 0.05298499041 | J90: 0
B91: =Names!I87 -> 163 | C91: =Names!F87 -> Nambucca | D91: =INDEX('ABS pop T1'!E$12:E$139,MATCH($C91,'ABS pop T1'!$H$12:$H$139,0)) -> 19802 | E91: =INDEX('ABS pop T1'!F$12:F$139,MATCH($C91,'ABS pop T1'!$H$12:$H$139,0)) -> 19861 | F91: 0.002979497021 | G91: =INDEX('Supp val'!D$8:D$135,MATCH($B91,'Supp val'!$B$8:$B$135,0)) -> 11258000 | H91: =INDEX('Supp val'!E$8:E$135,MATCH($B91,'Supp val'!$B$8:$B$135,0)) -> 78000 | I91: 0.006928406467 | J91: 0
B92: =Names!I88 -> 164 | C92: =Names!F88 -> Narrabri | D92: =INDEX('ABS pop T1'!E$12:E$139,MATCH($C92,'ABS pop T1'!$H$12:$H$139,0)) -> 13134 | E92: =INDEX('ABS pop T1'!F$12:F$139,MATCH($C92,'ABS pop T1'!$H$12:$H$139,0)) -> 13049 | F92: 0 | G92: =INDEX('Supp val'!D$8:D$135,MATCH($B92,'Supp val'!$B$8:$B$135,0)) -> 13538000 | H92: =INDEX('Supp val'!E$8:E$135,MATCH($B92,'Supp val'!$B$8:$B$135,0)) -> 6000 | I92: 0.0004431969272 | J92: 0
B93: =Names!I89 -> 165 | C93: =Names!F89 -> Narrandera | D93: =INDEX('ABS pop T1'!E$12:E$139,MATCH($C93,'ABS pop T1'!$H$12:$H$139,0)) -> 5898 | E93: =INDEX('ABS pop T1'!F$12:F$139,MATCH($C93,'ABS pop T1'!$H$12:$H$139,0)) -> 5858 | F93: 0 | G93: =INDEX('Supp val'!D$8:D$135,MATCH($B93,'Supp val'!$B$8:$B$135,0)) -> 4950000 | H93: =INDEX('Supp val'!E$8:E$135,MATCH($B93,'Supp val'!$B$8:$B$135,0)) -> 1000 | I93: 0.000202020202 | J93: 0
B94: =Names!I90 -> 166 | C94: =Names!F90 -> Narromine | D94: =INDEX('ABS pop T1'!E$12:E$139,MATCH($C94,'ABS pop T1'!$H$12:$H$139,0)) -> 6516 | E94: =INDEX('ABS pop T1'!F$12:F$139,MATCH($C94,'ABS pop T1'!$H$12:$H$139,0)) -> 6460 | F94: 0 | G94: =INDEX('Supp val'!D$8:D$135,MATCH($B94,'Supp val'!$B$8:$B$135,0)) -> 5872000 | H94: =INDEX('Supp val'!E$8:E$135,MATCH($B94,'Supp val'!$B$8:$B$135,0)) -> -8000 | I94: 0 | J94: 0
B95: =Names!I91 -> 167 | C95: =Names!F91 -> Newcastle | D95: =INDEX('ABS pop T1'!E$12:E$139,MATCH($C95,'ABS pop T1'!$H$12:$H$139,0)) -> 165541 | E95: =INDEX('ABS pop T1'!F$12:F$139,MATCH($C95,'ABS pop T1'!$H$12:$H$139,0)) -> 167363 | F95: 0.0110063368 | G95: =INDEX('Supp val'!D$8:D$135,MATCH($B95,'Supp val'!$B$8:$B$135,0)) -> 159676000 | H95: =INDEX('Supp val'!E$8:E$135,MATCH($B95,'Supp val'!$B$8:$B$135,0)) -> 961000 | I95: 0.006018437336 | J95: 0.004987899463
B96: =Names!I92 -> 168 | C96: =Names!F92 -> North Sydney | D96: =INDEX('ABS pop T1'!E$12:E$139,MATCH($C96,'ABS pop T1'!$H$12:$H$139,0)) -> 74957 | E96: =INDEX('ABS pop T1'!F$12:F$139,MATCH($C96,'ABS pop T1'!$H$12:$H$139,0)) -> 75094 | F96: 0.001827714556 | G96: =INDEX('Supp val'!D$8:D$135,MATCH($B96,'Supp val'!$B$8:$B$135,0)) -> 48530000 | H96: =INDEX('Supp val'!E$8:E$135,MATCH($B96,'Supp val'!$B$8:$B$135,0)) -> -131000 | I96: 0 | J96: 0.001827714556
B97: =Names!I93 -> 2087 | C97: =Names!F93 -> Northern Beaches | D97: =INDEX('ABS pop T1'!E$12:E$139,MATCH($C97,'ABS pop T1'!$H$12:$H$139,0)) -> 273409 | E97: =INDEX('ABS pop T1'!F$12:F$139,MATCH($C97,'ABS pop T1'!$H$12:$H$139,0)) -> 274041 | F97: 0.002311555216 | G97: =INDEX('Supp val'!D$8:D$135,MATCH($B97,'Supp val'!$B$8:$B$135,0)) -> 167900000 | H97: =INDEX('Supp val'!E$8:E$135,MATCH($B97,'Supp val'!$B$8:$B$135,0)) -> 852000 | I97: 0.005074449077 | J97: 0
B98: =Names!I94 -> 2045 | C98: =Names!F94 -> Oberon | D98: =INDEX('ABS pop T1'!E$12:E$139,MATCH($C98,'ABS pop T1'!$H$12:$H$139,0)) -> 5411 | E98: =INDEX('ABS pop T1'!F$12:F$139,MATCH($C98,'ABS pop T1'!$H$12:$H$139,0)) -> 5419 | F98: 0.001478469784 | G98: =INDEX('Supp val'!D$8:D$135,MATCH($B98,'Supp val'!$B$8:$B$135,0)) -> 4560000 | H98: =INDEX('Supp val'!E$8:E$135,MATCH($B98,'Supp val'!$B$8:$B$135,0)) -> 16000 | I98: 0.00350877193 | J98: 0
B99: =Names!I95 -> 172 | C99: =Names!F95 -> Orange | D99: =INDEX('ABS pop T1'!E$12:E$139,MATCH($C99,'ABS pop T1'!$H$12:$H$139,0)) -> 42445 | E99: =INDEX('ABS pop T1'!F$12:F$139,MATCH($C99,'ABS pop T1'!$H$12:$H$139,0)) -> 42503 | F99: 0.001366474261 | G99: =INDEX('Supp val'!D$8:D$135,MATCH($B99,'Supp val'!$B$8:$B$135,0)) -> 34283000 | H99: =INDEX('Supp val'!E$8:E$135,MATCH($B99,'Supp val'!$B$8:$B$135,0)) -> 268000 | I99: 0.007817285535 | J99: 0
B100: =Names!I96 -> 173 | C100: =Names!F96 -> Parkes | D100: =INDEX('ABS pop T1'!E$12:E$139,MATCH($C100,'ABS pop T1'!$H$12:$H$139,0)) -> 14835 | E100: =INDEX('ABS pop T1'!F$12:F$139,MATCH($C100,'ABS pop T1'!$H$12:$H$139,0)) -> 14728 | F100: 0 | G100: =INDEX('Supp val'!D$8:D$135,MATCH($B100,'Supp val'!$B$8:$B$135,0)) -> 14104000 | H100: =INDEX('Supp val'!E$8:E$135,MATCH($B100,'Supp val'!$B$8:$B$135,0)) -> -13000 | I100: 0 | J100: 0
B101: =Names!I97 -> 2089 | C101: =Names!F97 -> Parramatta | D101: =INDEX('ABS pop T1'!E$12:E$139,MATCH($C101,'ABS pop T1'!$H$12:$H$139,0)) -> 257094 | E101: =INDEX('ABS pop T1'!F$12:F$139,MATCH($C101,'ABS pop T1'!$H$12:$H$139,0)) -> 260296 | F101: 0.01245458859 | G101: =INDEX('Supp val'!D$8:D$135,MATCH($B101,'Supp val'!$B$8:$B$135,0)) -> 148650000 | H101: =INDEX('Supp val'!E$8:E$135,MATCH($B101,'Supp val'!$B$8:$B$135,0)) -> 2312000 | I101: 0.01555331315 | J101: 0
B102: =Names!I98 -> 176 | C102: =Names!F98 -> Penrith | D102: =INDEX('ABS pop T1'!E$12:E$139,MATCH($C102,'ABS pop T1'!$H$12:$H$139,0)) -> 212944 | E102: =INDEX('ABS pop T1'!F$12:F$139,MATCH($C102,'ABS pop T1'!$H$12:$H$139,0)) -> 216282 | F102: 0.01567548276 | G102: =INDEX('Supp val'!D$8:D$135,MATCH($B102,'Supp val'!$B$8:$B$135,0)) -> 128469000 | H102: =INDEX('Supp val'!E$8:E$135,MATCH($B102,'Supp val'!$B$8:$B$135,0)) -> 1060000 | I102: 0.008251017755 | J102: 0.007424465001
B103: =Names!I99 -> 124 | C103: =Names!F99 -> Port Macquarie-Hastings | D103: =INDEX('ABS pop T1'!E$12:E$139,MATCH($C103,'ABS pop T1'!$H$12:$H$139,0)) -> 84515 | E103: =INDEX('ABS pop T1'!F$12:F$139,MATCH($C103,'ABS pop T1'!$H$12:$H$139,0)) -> 85952 | F103: 0.01700289889 | G103: =INDEX('Supp val'!D$8:D$135,MATCH($B103,'Supp val'!$B$8:$B$135,0)) -> 52287000 | H103: =INDEX('Supp val'!E$8:E$135,MATCH($B103,'Supp val'!$B$8:$B$135,0)) -> 371000 | I103: 0.007095453937 | J103: 0.009907444957
B104: =Names!I100 -> 178 | C104: =Names!F100 -> Port Stephens | D104: =INDEX('ABS pop T1'!E$12:E$139,MATCH($C104,'ABS pop T1'!$H$12:$H$139,0)) -> 73472 | E104: =INDEX('ABS pop T1'!F$12:F$139,MATCH($C104,'ABS pop T1'!$H$12:$H$139,0)) -> 74506 | F104: 0.0140733885 | G104: =INDEX('Supp val'!D$8:D$135,MATCH($B104,'Supp val'!$B$8:$B$135,0)) -> 43572000 | H104: =INDEX('Supp val'!E$8:E$135,MATCH($B104,'Supp val'!$B$8:$B$135,0)) -> 334000 | I104: 0.00766547324 | J104: 0.006407915262
B105: =Names!I101 -> 2095 | C105: =Names!F101 -> Queanbeyan-Palerang Regional | D105: =INDEX('ABS pop T1'!E$12:E$139,MATCH($C105,'ABS pop T1'!$H$12:$H$139,0)) -> 61089 | E105: =INDEX('ABS pop T1'!F$12:F$139,MATCH($C105,'ABS pop T1'!$H$12:$H$139,0)) -> 62239 | F105: 0.01882499304 | G105: =INDEX('Supp val'!D$8:D$135,MATCH($B105,'Supp val'!$B$8:$B$135,0)) -> 37531000 | H105: =INDEX('Supp val'!E$8:E$135,MATCH($B105,'Supp val'!$B$8:$B$135,0)) -> 737000 | I105: 0.0196371 | J105: 0
B106: =Names!I102 -> 181 | C106: =Names!F102 -> Randwick | D106: =INDEX('ABS pop T1'!E$12:E$139,MATCH($C106,'ABS pop T1'!$H$12:$H$139,0)) -> 155521 | E106: =INDEX('ABS pop T1'!F$12:F$139,MATCH($C106,'ABS pop T1'!$H$12:$H$139,0)) -> 156619 | F106: 0.007060139788 | G106: =INDEX('Supp val'!D$8:D$135,MATCH($B106,'Supp val'!$B$8:$B$135,0)) -> 87430000 | H106: =INDEX('Supp val'!E$8:E$135,MATCH($B106,'Supp val'!$B$8:$B$135,0)) -> 69000 | I106: 0.0007892027908 | J106: 0.006270936997
B107: =Names!I103 -> 1981 | C107: =Names!F103 -> Richmond Valley | D107: =INDEX('ABS pop T1'!E$12:E$139,MATCH($C107,'ABS pop T1'!$H$12:$H$139,0)) -> 23462 | E107: =INDEX('ABS pop T1'!F$12:F$139,MATCH($C107,'ABS pop T1'!$H$12:$H$139,0)) -> 23490 | F107: 0.001193419146 | G107: =INDEX('Supp val'!D$8:D$135,MATCH($B107,'Supp val'!$B$8:$B$135,0)) -> 13175000 | H107: =INDEX('Supp val'!E$8:E$135,MATCH($B107,'Supp val'!$B$8:$B$135,0)) -> 41000 | I107: 0.003111954459 | J107: 0
B108: =Names!I104 -> 184 | C108: =Names!F104 -> Ryde | D108: =INDEX('ABS pop T1'!E$12:E$139,MATCH($C108,'ABS pop T1'!$H$12:$H$139,0)) -> 131186 | E108: =INDEX('ABS pop T1'!F$12:F$139,MATCH($C108,'ABS pop T1'!$H$12:$H$139,0)) -> 133224 | F108: 0.0155351943 | G108: =INDEX('Supp val'!D$8:D$135,MATCH($B108,'Supp val'!$B$8:$B$135,0)) -> 70973000 | H108: =INDEX('Supp val'!E$8:E$135,MATCH($B108,'Supp val'!$B$8:$B$135,0)) -> 2047000 | I108: 0.02884195398 | J108: 0
B109: =Names!I105 -> 188 | C109: =Names!F105 -> Shellharbour | D109: =INDEX('ABS pop T1'!E$12:E$139,MATCH($C109,'ABS pop T1'!$H$12:$H$139,0)) -> 73225 | E109: =INDEX('ABS pop T1'!F$12:F$139,MATCH($C109,'ABS pop T1'!$H$12:$H$139,0)) -> 74622 | F109: 0.01907818368 | G109: =INDEX('Supp val'!D$8:D$135,MATCH($B109,'Supp val'!$B$8:$B$135,0)) -> 49667000 | H109: =INDEX('Supp val'!E$8:E$135,MATCH($B109,'Supp val'!$B$8:$B$135,0)) -> 266000 | I109: 0.005355668754 | J109: 0.01372251493
B110: =Names!I106 -> 189 | C110: =Names!F106 -> Shoalhaven | D110: =INDEX('ABS pop T1'!E$12:E$139,MATCH($C110,'ABS pop T1'!$H$12:$H$139,0)) -> 105637 | E110: =INDEX('ABS pop T1'!F$12:F$139,MATCH($C110,'ABS pop T1'!$H$12:$H$139,0)) -> 107191 | F110: 0.01471075475 | G110: =INDEX('Supp val'!D$8:D$135,MATCH($B110,'Supp val'!$B$8:$B$135,0)) -> 77640000 | H110: =INDEX('Supp val'!E$8:E$135,MATCH($B110,'Supp val'!$B$8:$B$135,0)) -> 387000 | I110: 0.004984544049 | J110: 0.009726210705
B111: =Names!I107 -> 190 | C111: =Names!F107 -> Singleton | D111: =INDEX('ABS pop T1'!E$12:E$139,MATCH($C111,'ABS pop T1'!$H$12:$H$139,0)) -> 23457 | E111: =INDEX('ABS pop T1'!F$12:F$139,MATCH($C111,'ABS pop T1'!$H$12:$H$139,0)) -> 23380 | F111: 0 | G111: =INDEX('Supp val'!D$8:D$135,MATCH($B111,'Supp val'!$B$8:$B$135,0)) -> 22122000 | H111: =INDEX('Supp val'!E$8:E$135,MATCH($B111,'Supp val'!$B$8:$B$135,0)) -> 296000 | I111: 0.01338034536 | J111: 0
B112: =Names!I108 -> 2096 | C112: =Names!F108 -> Snowy Monaro Regional | D112: =INDEX('ABS pop T1'!E$12:E$139,MATCH($C112,'ABS pop T1'!$H$12:$H$139,0)) -> 20793 | E112: =INDEX('ABS pop T1'!F$12:F$139,MATCH($C112,'ABS pop T1'!$H$12:$H$139,0)) -> 20997 | F112: 0.009810994085 | G112: =INDEX('Supp val'!D$8:D$135,MATCH($B112,'Supp val'!$B$8:$B$135,0)) -> 16311000 | H112: =INDEX('Supp val'!E$8:E$135,MATCH($B112,'Supp val'!$B$8:$B$135,0)) -> 140000 | I112: 0.008583164735 | J112: 0.001227829349
B113: =Names!I109 -> 2097 | C113: =Names!F109 -> Snowy Valleys | D113: =INDEX('ABS pop T1'!E$12:E$139,MATCH($C113,'ABS pop T1'!$H$12:$H$139,0)) -> 14476 | E113: =INDEX('ABS pop T1'!F$12:F$139,MATCH($C113,'ABS pop T1'!$H$12:$H$139,0)) -> 14412 | F113: 0 | G113: =INDEX('Supp val'!D$8:D$135,MATCH($B113,'Supp val'!$B$8:$B$135,0)) -> 9409000 | H113: =INDEX('Supp val'!E$8:E$135,MATCH($B113,'Supp val'!$B$8:$B$135,0)) -> 10000 | I113: 0.001062812201 | J113: 0
B114: =Names!I110 -> 193 | C114: =Names!F110 -> Strathfield | D114: =INDEX('ABS pop T1'!E$12:E$139,MATCH($C114,'ABS pop T1'!$H$12:$H$139,0)) -> 46896 | E114: =INDEX('ABS pop T1'!F$12:F$139,MATCH($C114,'ABS pop T1'!$H$12:$H$139,0)) -> 47767 | F114: 0.01857301262 | G114: =INDEX('Supp val'!D$8:D$135,MATCH($B114,'Supp val'!$B$8:$B$135,0)) -> 18421000 | H114: =INDEX('Supp val'!E$8:E$135,MATCH($B114,'Supp val'!$B$8:$B$135,0)) -> 261000 | I114: 0.01416861191 | J114: 0.004404400713
B115: =Names!I111 -> 194 | C115: =Names!F111 -> Sutherland | D115: =INDEX('ABS pop T1'!E$12:E$139,MATCH($C115,'ABS pop T1'!$H$12:$H$139,0)) -> 230579 | E115: =INDEX('ABS pop T1'!F$12:F$139,MATCH($C115,'ABS pop T1'!$H$12:$H$139,0)) -> 232369 | F115: 0.007763066021 | G115: =INDEX('Supp val'!D$8:D$135,MATCH($B115,'Supp val'!$B$8:$B$135,0)) -> 130839000 | H115: =INDEX('Supp val'!E$8:E$135,MATCH($B115,'Supp val'!$B$8:$B$135,0)) -> 1151000 | I115: 0.00879707121 | J115: 0
B116: =Names!I112 -> 2029 | C116: =Names!F112 -> Sydney | D116: =INDEX('ABS pop T1'!E$12:E$139,MATCH($C116,'ABS pop T1'!$H$12:$H$139,0)) -> 245942 | E116: =INDEX('ABS pop T1'!F$12:F$139,MATCH($C116,'ABS pop T1'!$H$12:$H$139,0)) -> 248736 | F116: 0.01136040205 | G116: =INDEX('Supp val'!D$8:D$135,MATCH($B116,'Supp val'!$B$8:$B$135,0)) -> 305065000 | H116: =INDEX('Supp val'!E$8:E$135,MATCH($B116,'Supp val'!$B$8:$B$135,0)) -> 1471000 | I116: 0.004821923197 | J116: 0.006538478849
B117: =Names!I113 -> 2038 | C117: =Names!F113 -> Tamworth Regional | D117: =INDEX('ABS pop T1'!E$12:E$139,MATCH($C117,'ABS pop T1'!$H$12:$H$139,0)) -> 62531 | E117: =INDEX('ABS pop T1'!F$12:F$139,MATCH($C117,'ABS pop T1'!$H$12:$H$139,0)) -> 62545 | F117: 0.0002238889511 | G117: =INDEX('Supp val'!D$8:D$135,MATCH($B117,'Supp val'!$B$8:$B$135,0)) -> 37073000 | H117: =INDEX('Supp val'!E$8:E$135,MATCH($B117,'Supp val'!$B$8:$B$135,0)) -> 240000 | I117: 0.006473714024 | J117: 0
B118: =Names!I114 -> 198 | C118: =Names!F114 -> Temora | D118: =INDEX('ABS pop T1'!E$12:E$139,MATCH($C118,'ABS pop T1'!$H$12:$H$139,0)) -> 6307 | E118: =INDEX('ABS pop T1'!F$12:F$139,MATCH($C118,'ABS pop T1'!$H$12:$H$139,0)) -> 6274 | F118: 0 | G118: =INDEX('Supp val'!D$8:D$135,MATCH($B118,'Supp val'!$B$8:$B$135,0)) -> 4042000 | H118: =INDEX('Supp val'!E$8:E$135,MATCH($B118,'Supp val'!$B$8:$B$135,0)) -> 3000 | I118: 0.0007422068283 | J118: 0
B119: =Names!I115 -> 199 | C119: =Names!F115 -> Tenterfield | D119: =INDEX('ABS pop T1'!E$12:E$139,MATCH($C119,'ABS pop T1'!$H$12:$H$139,0)) -> 6594 | E119: =INDEX('ABS pop T1'!F$12:F$139,MATCH($C119,'ABS pop T1'!$H$12:$H$139,0)) -> 6470 | F119: 0 | G119: =INDEX('Supp val'!D$8:D$135,MATCH($B119,'Supp val'!$B$8:$B$135,0)) -> 4598000 | H119: =INDEX('Supp val'!E$8:E$135,MATCH($B119,'Supp val'!$B$8:$B$135,0)) -> 0 | I119: 0 | J119: 0
B120: =Names!I116 -> 59 | C120: =Names!F116 -> Hills | D120: =INDEX('ABS pop T1'!E$12:E$139,MATCH($C120,'ABS pop T1'!$H$12:$H$139,0)) -> 177927 | E120: =INDEX('ABS pop T1'!F$12:F$139,MATCH($C120,'ABS pop T1'!$H$12:$H$139,0)) -> 183791 | F120: 0.03295733644 | G120: =INDEX('Supp val'!D$8:D$135,MATCH($B120,'Supp val'!$B$8:$B$135,0)) -> 74273000 | H120: =INDEX('Supp val'!E$8:E$135,MATCH($B120,'Supp val'!$B$8:$B$135,0)) -> 1816000 | I120: 0.02445033862 | J120: 0.00850699782
B121: =Names!I117 -> 202 | C121: =Names!F117 -> Tweed | D121: =INDEX('ABS pop T1'!E$12:E$139,MATCH($C121,'ABS pop T1'!$H$12:$H$139,0)) -> 96985 | E121: =INDEX('ABS pop T1'!F$12:F$139,MATCH($C121,'ABS pop T1'!$H$12:$H$139,0)) -> 98382 | F121: 0.01440428932 | G121: =INDEX('Supp val'!D$8:D$135,MATCH($B121,'Supp val'!$B$8:$B$135,0)) -> 63741000 | H121: =INDEX('Supp val'!E$8:E$135,MATCH($B121,'Supp val'!$B$8:$B$135,0)) -> 250000 | I121: 0.003922122339 | J121: 0.01048216698
B122: =Names!I118 -> 2046 | C122: =Names!F118 -> Upper Hunter | D122: =INDEX('ABS pop T1'!E$12:E$139,MATCH($C122,'ABS pop T1'!$H$12:$H$139,0)) -> 14178 | E122: =INDEX('ABS pop T1'!F$12:F$139,MATCH($C122,'ABS pop T1'!$H$12:$H$139,0)) -> 14167 | F122: 0 | G122: =INDEX('Supp val'!D$8:D$135,MATCH($B122,'Supp val'!$B$8:$B$135,0)) -> 11098000 | H122: =INDEX('Supp val'!E$8:E$135,MATCH($B122,'Supp val'!$B$8:$B$135,0)) -> 18000 | I122: 0.001621913858 | J122: 0
B123: =Names!I119 -> 2035 | C123: =Names!F119 -> Upper Lachlan | D123: =INDEX('ABS pop T1'!E$12:E$139,MATCH($C123,'ABS pop T1'!$H$12:$H$139,0)) -> 8059 | E123: =INDEX('ABS pop T1'!F$12:F$139,MATCH($C123,'ABS pop T1'!$H$12:$H$139,0)) -> 8274 | F123: 0.02667824792 | G123: =INDEX('Supp val'!D$8:D$135,MATCH($B123,'Supp val'!$B$8:$B$135,0)) -> 7325000 | H123: =INDEX('Supp val'!E$8:E$135,MATCH($B123,'Supp val'!$B$8:$B$135,0)) -> 70000 | I123: 0.009556313993 | J123: 0.01712193393
B124: =Names!I120 -> 204 | C124: =Names!F120 -> Uralla | D124: =INDEX('ABS pop T1'!E$12:E$139,MATCH($C124,'ABS pop T1'!$H$12:$H$139,0)) -> 6011 | E124: =INDEX('ABS pop T1'!F$12:F$139,MATCH($C124,'ABS pop T1'!$H$12:$H$139,0)) -> 5944 | F124: 0 | G124: =INDEX('Supp val'!D$8:D$135,MATCH($B124,'Supp val'!$B$8:$B$135,0)) -> 3909000 | H124: =INDEX('Supp val'!E$8:E$135,MATCH($B124,'Supp val'!$B$8:$B$135,0)) -> 0 | I124: 0 | J124: 0
B125: =Names!I121 -> 206 | C125: =Names!F121 -> Wagga Wagga | D125: =INDEX('ABS pop T1'!E$12:E$139,MATCH($C125,'ABS pop T1'!$H$12:$H$139,0)) -> 65249 | E125: =INDEX('ABS pop T1'!F$12:F$139,MATCH($C125,'ABS pop T1'!$H$12:$H$139,0)) -> 65770 | F125: 0.007984796702 | G125: =INDEX('Supp val'!D$8:D$135,MATCH($B125,'Supp val'!$B$8:$B$135,0)) -> 45251000 | H125: =INDEX('Supp val'!E$8:E$135,MATCH($B125,'Supp val'!$B$8:$B$135,0)) -> 496000 | I125: 0.01096108373 | J125: 0
B126: =Names!I122 -> 208 | C126: =Names!F122 -> Walcha | D126: =INDEX('ABS pop T1'!E$12:E$139,MATCH($C126,'ABS pop T1'!$H$12:$H$139,0)) -> 3134 | E126: =INDEX('ABS pop T1'!F$12:F$139,MATCH($C126,'ABS pop T1'!$H$12:$H$139,0)) -> 3105 | F126: 0 | G126: =INDEX('Supp val'!D$8:D$135,MATCH($B126,'Supp val'!$B$8:$B$135,0)) -> 3485000 | H126: =INDEX('Supp val'!E$8:E$135,MATCH($B126,'Supp val'!$B$8:$B$135,0)) -> 0 | I126: 0 | J126: 0
B127: =Names!I123 -> 209 | C127: =Names!F123 -> Walgett | D127: =INDEX('ABS pop T1'!E$12:E$139,MATCH($C127,'ABS pop T1'!$H$12:$H$139,0)) -> 5952 | E127: =INDEX('ABS pop T1'!F$12:F$139,MATCH($C127,'ABS pop T1'!$H$12:$H$139,0)) -> 5828 | F127: 0 | G127: =INDEX('Supp val'!D$8:D$135,MATCH($B127,'Supp val'!$B$8:$B$135,0)) -> 5662000 | H127: =INDEX('Supp val'!E$8:E$135,MATCH($B127,'Supp val'!$B$8:$B$135,0)) -> 1000 | I127: 0.0001766160367 | J127: 0
B128: =Names!I124 -> 210 | C128: =Names!F124 -> Warren | D128: =INDEX('ABS pop T1'!E$12:E$139,MATCH($C128,'ABS pop T1'!$H$12:$H$139,0)) -> 2697 | E128: =INDEX('ABS pop T1'!F$12:F$139,MATCH($C128,'ABS pop T1'!$H$12:$H$139,0)) -> 2716 | F128: 0.007044864664 | G128: =INDEX('Supp val'!D$8:D$135,MATCH($B128,'Supp val'!$B$8:$B$135,0)) -> 4901000 | H128: =INDEX('Supp val'!E$8:E$135,MATCH($B128,'Supp val'!$B$8:$B$135,0)) -> 5000 | I128: 0.001020199959 | J128: 0.006024664705
B129: =Names!I125 -> 2050 | C129: =Names!F125 -> Warrumbungle | D129: =INDEX('ABS pop T1'!E$12:E$139,MATCH($C129,'ABS pop T1'!$H$12:$H$139,0)) -> 9277 | E129: =INDEX('ABS pop T1'!F$12:F$139,MATCH($C129,'ABS pop T1'!$H$12:$H$139,0)) -> 9209 | F129: 0 | G129: =INDEX('Supp val'!D$8:D$135,MATCH($B129,'Supp val'!$B$8:$B$135,0)) -> 8153000 | H129: =INDEX('Supp val'!E$8:E$135,MATCH($B129,'Supp val'!$B$8:$B$135,0)) -> 6000 | I129: 0.0007359254262 | J129: 0
B130: =Names!I126 -> 212 | C130: =Names!F126 -> Waverley | D130: =INDEX('ABS pop T1'!E$12:E$139,MATCH($C130,'ABS pop T1'!$H$12:$H$139,0)) -> 74222 | E130: =INDEX('ABS pop T1'!F$12:F$139,MATCH($C130,'ABS pop T1'!$H$12:$H$139,0)) -> 74276 | F130: 0.0007275470885 | G130: =INDEX('Supp val'!D$8:D$135,MATCH($B130,'Supp val'!$B$8:$B$135,0)) -> 46068000 | H130: =INDEX('Supp val'!E$8:E$135,MATCH($B130,'Supp val'!$B$8:$B$135,0)) -> -75000 | I130: 0 | J130: 0.0007275470885
B131: =Names!I127 -> 213 | C131: =Names!F127 -> Weddin | D131: =INDEX('ABS pop T1'!E$12:E$139,MATCH($C131,'ABS pop T1'!$H$12:$H$139,0)) -> 3613 | E131: =INDEX('ABS pop T1'!F$12:F$139,MATCH($C131,'ABS pop T1'!$H$12:$H$139,0)) -> 3596 | F131: 0 | G131: =INDEX('Supp val'!D$8:D$135,MATCH($B131,'Supp val'!$B$8:$B$135,0)) -> 2835000 | H131: =INDEX('Supp val'!E$8:E$135,MATCH($B131,'Supp val'!$B$8:$B$135,0)) -> -7000 | I131: 0 | J131: 0
B132: =Names!I128 -> 215 | C132: =Names!F128 -> Wentworth | D132: =INDEX('ABS pop T1'!E$12:E$139,MATCH($C132,'ABS pop T1'!$H$12:$H$139,0)) -> 7053 | E132: =INDEX('ABS pop T1'!F$12:F$139,MATCH($C132,'ABS pop T1'!$H$12:$H$139,0)) -> 7090 | F132: 0.005245994612 | G132: =INDEX('Supp val'!D$8:D$135,MATCH($B132,'Supp val'!$B$8:$B$135,0)) -> 5271000 | H132: =INDEX('Supp val'!E$8:E$135,MATCH($B132,'Supp val'!$B$8:$B$135,0)) -> 54000 | I132: 0.01024473534 | J132: 0
B133: =Names!I129 -> 216 | C133: =Names!F129 -> Willoughby | D133: =INDEX('ABS pop T1'!E$12:E$139,MATCH($C133,'ABS pop T1'!$H$12:$H$139,0)) -> 81109 | E133: =INDEX('ABS pop T1'!F$12:F$139,MATCH($C133,'ABS pop T1'!$H$12:$H$139,0)) -> 81196 | F133: 0.001072630658 | G133: =INDEX('Supp val'!D$8:D$135,MATCH($B133,'Supp val'!$B$8:$B$135,0)) -> 51651000 | H133: =INDEX('Supp val'!E$8:E$135,MATCH($B133,'Supp val'!$B$8:$B$135,0)) -> 28000 | I133: 0.0005420998625 | J133: 0.000530530795
B134: =Names!I130 -> 218 | C134: =Names!F130 -> Wingecarribee | D134: =INDEX('ABS pop T1'!E$12:E$139,MATCH($C134,'ABS pop T1'!$H$12:$H$139,0)) -> 51127 | E134: =INDEX('ABS pop T1'!F$12:F$139,MATCH($C134,'ABS pop T1'!$H$12:$H$139,0)) -> 51760 | F134: 0.01238093375 | G134: =INDEX('Supp val'!D$8:D$135,MATCH($B134,'Supp val'!$B$8:$B$135,0)) -> 50857000 | H134: =INDEX('Supp val'!E$8:E$135,MATCH($B134,'Supp val'!$B$8:$B$135,0)) -> 391000 | I134: 0.007688223843 | J134: 0.00469270991
B135: =Names!I131 -> 219 | C135: =Names!F131 -> Wollondilly | D135: =INDEX('ABS pop T1'!E$12:E$139,MATCH($C135,'ABS pop T1'!$H$12:$H$139,0)) -> 53143 | E135: =INDEX('ABS pop T1'!F$12:F$139,MATCH($C135,'ABS pop T1'!$H$12:$H$139,0)) -> 54005 | F135: 0.0162203865 | G135: =INDEX('Supp val'!D$8:D$135,MATCH($B135,'Supp val'!$B$8:$B$135,0)) -> 38393000 | H135: =INDEX('Supp val'!E$8:E$135,MATCH($B135,'Supp val'!$B$8:$B$135,0)) -> 407000 | I135: 0.01060089079 | J135: 0.005619495717
B136: =Names!I132 -> 220 | C136: =Names!F132 -> Wollongong | D136: =INDEX('ABS pop T1'!E$12:E$139,MATCH($C136,'ABS pop T1'!$H$12:$H$139,0)) -> 218076 | E136: =INDEX('ABS pop T1'!F$12:F$139,MATCH($C136,'ABS pop T1'!$H$12:$H$139,0)) -> 219798 | F136: 0.00789632972 | G136: =INDEX('Supp val'!D$8:D$135,MATCH($B136,'Supp val'!$B$8:$B$135,0)) -> 170562000 | H136: =INDEX('Supp val'!E$8:E$135,MATCH($B136,'Supp val'!$B$8:$B$135,0)) -> 827000 | I136: 0.004848676728 | J136: 0.003047652992
B137: =Names!I133 -> 221 | C137: =Names!F133 -> Woollahra | D137: =INDEX('ABS pop T1'!E$12:E$139,MATCH($C137,'ABS pop T1'!$H$12:$H$139,0)) -> 59345 | E137: =INDEX('ABS pop T1'!F$12:F$139,MATCH($C137,'ABS pop T1'!$H$12:$H$139,0)) -> 59431 | F137: 0.001449153256 | G137: =INDEX('Supp val'!D$8:D$135,MATCH($B137,'Supp val'!$B$8:$B$135,0)) -> 40337000 | H137: =INDEX('Supp val'!E$8:E$135,MATCH($B137,'Supp val'!$B$8:$B$135,0)) -> 71000 | I137: 0.001760170563 | J137: 0
B138: =Names!I134 -> 2036 | C138: =Names!F134 -> Yass Valley | D138: =INDEX('ABS pop T1'!E$12:E$139,MATCH($C138,'ABS pop T1'!$H$12:$H$139,0)) -> 17086 | E138: =INDEX('ABS pop T1'!F$12:F$139,MATCH($C138,'ABS pop T1'!$H$12:$H$139,0)) -> 17321 | F138: 0.0137539506 | G138: =INDEX('Supp val'!D$8:D$135,MATCH($B138,'Supp val'!$B$8:$B$135,0)) -> 10933000 | H138: =INDEX('Supp val'!E$8:E$135,MATCH($B138,'Supp val'!$B$8:$B$135,0)) -> 86000 | I138: 0.007866093478 | J138: 0.005887857124
